Workbook

Sheet Úvod
A1: Nastavení modelu Obálka 2015 | O1: Výsledky
O4: SPÍNAČ | Q4: 2 | R4: =Stěny!G50 -> 1 | S4: Cena za 1m2 uvažovaných konstrukcí
O5: DŮSLEDEK SPÍNAČE | Q5: =IF(Q4=1,"1","0") -> 0 | R5: =IF(Q4=2,"1","0") -> 1 | S5: Okno | U5: =J16 -> 5435 | V5: Střešní okno | X5: =J18 -> 10143
A6: Dimenzování objektu | H6: Legenda barev buněk | O6: Body | P6: osa X (m) | Q6: osa Y (m) | R6: osa Z (m) | S6: Podlaha | U6: =F32 -> 2568.538 | V6: Stěna | X6: =G46 -> 2672
A7: Rozměr X (m) | B7: 14 | H7: Barva buňky | O7: A | P7: 0 | Q7: 0 | R7: 0 | S7: Skladba střechy | U7: =F60 -> 3039.09 | V7: Skladba přesahů střechy | X7: =K67 -> 522.54
A8: Rozměr Y (m) | B8: 8 | H8: Záhlaví tabulek, popisy buněk | M8: =IF(Q4=2,"X","Y") -> X | O8: B | P8: =B7 -> 14 | Q8: 0 | R8: 0
A9: Rozměr Z (m) | B9: 18 | H9: Výsledky výpočtů,nastavení modelu | M9: =IF(Q4=2,"Y","X") -> Y | O9: C | P9: =B7 -> 14 | Q9: =B8 -> 8 | R9: 0 | S9: A/V | U9: =Vymera_celkova_plocha/Vymera_objem -> 0.4829307494
A10: Sklon střechy | B10: 40 | H10: Potvrzení splnění podmínky | O10: D | P10: 0 | Q10: =B8 -> 8 | R10: 0 | S10: A *Uem | U10: =Vymera_celkova_plocha*V48 -> 389.5428318
A11: Plocha oken (m2) | B11: 65 | C11: Plocha střešních oken (m2) | E11: 10 | H11: Nesplnění/Nedefinování podmínky | O11: E | P11: 0 | Q11: =B8 -> 8 | R11: =B9 -> 18 | S11: V *Uem | U11: =Vymera_objem*V48 -> 806.6225484
A12: Hřeben rovnoběžný | H12: Buňka určená k vyplnění | O12: F | P12: =B7/2 -> 7 | Q12: =B8 -> 8 | R12: =B9+R5*Q20 -> 23.87369742 | S12: G1 | U12: =CCKce_Celkem/Vymera_objem -> 1429.183807
O13: G | P13: =B7 -> 14 | Q13: =B8 -> 8 | R13: =B9 -> 18 | S13: G2 | U13: =CCKce_Celkem/Plocha_ku_objemu -> 6939570.075
A14: Nastavení oken a střešních oken | O14: H | P14: =B7 -> 14 | Q14: =B8/2 -> 4 | R14: =B9+Q5*(Q19) -> 18 | S14: G3 | U14: =CCKce_Celkem/Objem_krat_uem -> 4154.770758
A15: Vybraná varianta zaskleni do stěn: | D15: cena za m2 (Kč) | E15: Součinitel prostupu tepla W/(m2K) | H15: =Úvod!H21 -> Uvažované konstrukce | J15: Cena za uvažované konstrukce na 1m2 (konstrukce oken) (Kč) | O15: CH | P15: =B7 -> 14 | Q15: 0 | R15: =B9 -> 18
A16: eurookno oknasirer.cz 2 sklo u=1 | D16: =VLOOKUP(A16,Okna!$H$4:$J$20,2,0) -> 5435 | E16: =VLOOKUP(A16,Okna!$H$4:$J$20,3,0) -> 1 | J16: =Úvod!D16*Okna!M3 -> 5435 | O16: I | P16: =B7/2 -> 7 | Q16: 0 | R16: =R12 -> 23.87369742
A17: Vybraná varianta zaskleni do střechy: | D17: cena za m2 (Kč) | E17: Součinitel prostupu tepla W/(m2K) | H17: =Úvod!H21 -> Uvažované konstrukce | J17: Cena za uvažované konstrukce na 1m2 (konstrukce oken) (Kč) | O17: J | P17: 0 | Q17: 0 | R17: =B9 -> 18 | S17: Modrá varianta střechy platí v případě nastavení hřebene rovnoběžného s osou X. V případě hřebene rovnoběžného s osou Y platí šedivá varianta
A18: Velux GLU 00551 U=1,1 | D18: =VLOOKUP(A18,Okna!$H$25:$J$31,2,0) -> 10143 | E18: =VLOOKUP(A18,Okna!$H$25:$J$31,3,0) -> 1.1 | J18: =D18*Okna!M24 -> 10143 | O18: K | P18: 0 | Q18: =B8/2 -> 4 | R18: =R14 -> 18
O19: Nárůst K H | Q19: =TAN(Q21)*(B8/2) -> 3.356398525
A20: Nastavení skladby podlahy | O20: Nárůst I F | Q20: =TAN(Q21)*(B7/2) -> 5.873697418
A21: Jednotlivé vrstvy | D21: Cena za m2 (Kč) | E21: Tepelný odpor R (m2K/W) | F21: Součinitel tepelné vodivosti λ (W/mK) | G21: Tloušťka vrstvy (mm) | H21: Uvažované konstrukce | O21: Přep. ze stupňů na rad | Q21: =RADIANS(B10) -> 0.6981317008
O22: Plocha zdí (m2) | Q22: =(B7*B9)*2+(B8*B9)*2-B11 -> 727 | S22: =Q22/$Q$28*100 -> 64.1978102
A23: Anhydritový potěr 50mm | D23: =VLOOKUP(A23,Podlahy!$M$3:$Q$55,2,0) -> 731 | E23: =VLOOKUP(A23,Podlahy!$M$3:$Q$55,3,0) -> 0.04166666667 | F23: =VLOOKUP(A23,Podlahy!$M$3:$Q$55,4,0) -> 1.2 | G23: =VLOOKUP(A23,Podlahy!$M$3:$Q$55,5,0) -> 50 | O23: Plocha oken (m2) | Q23: =B11 -> 65 | S23: 5.739831723
A24: Separační vrstva z asfaltového pásu | D24: =VLOOKUP(A24,Podlahy!$M$3:$Q$55,2,0) -> 28.8 | E24: =VLOOKUP(A24,Podlahy!$M$3:$Q$55,3,0) -> 0.003333333333 | F24: =VLOOKUP(A24,Podlahy!$M$3:$Q$55,4,0) -> 0.21 | G24: =VLOOKUP(A24,Podlahy!$M$3:$Q$55,5,0) -> 0.7 | O24: Plocha střešních oken (m2) | Q24: =E11 -> 10 | S24: 0.8830510344
A25: Polystyren EPS 100mm | D25: =VLOOKUP(A25,Podlahy!$M$3:$Q$55,2,0) -> 250.4 | E25: =VLOOKUP(A25,Podlahy!$M$3:$Q$55,3,0) -> 2.5 | F25: =VLOOKUP(A25,Podlahy!$M$3:$Q$55,4,0) -> 0.04 | G25: =VLOOKUP(A25,Podlahy!$M$3:$Q$55,5,0) -> 100 | O25: Plocha štítů (m2) | Q25: =Q5*(R14-B9)*B8+R5*(R12-B9)*B7 -> 82.23176386 | S25: 7.261484413
A26: Asfaltový pás | D26: =VLOOKUP(A26,Podlahy!$M$3:$Q$55,2,0) -> 231.2 | E26: =VLOOKUP(A26,Podlahy!$M$3:$Q$55,3,0) -> 0.01904761905 | F26: =VLOOKUP(A26,Podlahy!$M$3:$Q$55,4,0) -> 0.21 | G26: =VLOOKUP(A26,Podlahy!$M$3:$Q$55,5,0) -> 4 | O26: Plocha podlahy (m2) | Q26: =B7*B8 -> 112 | S26: 9.890171585
A27: Asfaltový nátěr | D27: =VLOOKUP(A27,Podlahy!$M$3:$Q$55,2,0) -> 23.138 | E27: =VLOOKUP(A27,Podlahy!$M$3:$Q$55,3,0) -> 0 | F27: =VLOOKUP(A27,Podlahy!$M$3:$Q$55,4,0) -> 0 | G27: =VLOOKUP(A27,Podlahy!$M$3:$Q$55,5,0) -> 0 | O27: Plocha střechy (m2) | Q27: =Q5*2*B7*SQRT((R14-B9)*(R14-B9)+(B8/2)*(B8/2))+R5*2*B8*SQRT((R12-B9)*(R12-B9)+(B7/2)*(B7/2))-Q24 -> 136.2056164 | S27: 12.02765105
A28: ŽLB deska 160mm | D28: =VLOOKUP(A28,Podlahy!$M$3:$Q$55,2,0) -> 1304 | E28: =VLOOKUP(A28,Podlahy!$M$3:$Q$55,3,0) -> 0.1118881119 | F28: =VLOOKUP(A28,Podlahy!$M$3:$Q$55,4,0) -> 1.43 | G28: =VLOOKUP(A28,Podlahy!$M$3:$Q$55,5,0) -> 160 | O28: Celková plocha (m2) | Q28: =SUM(Q22:R27) -> 1132.43738
A29: Výsledky daného nastavení skladby podlahy | O29: Obvod objektu (m) | Q29: =(B7+B8)*2 -> 44
A30: Součinitel prostupu tepla U (W/(m2K)) | C30: Celková cena za 1m2 dané skladby (Kč) | E30: Celková tloušťka (mm) | F30: Cena za uvažované konstrukce (skladba podlahy) na 1m2 | H30: Vlastní cena za uvažované kce na 1m2 | O30: Objem objektu (m3) | Q30: =B7*B8*B9+Q5*Q19*B7*B8/2+R5*Q20*B8*B7/2 -> 2344.927055
O31: Posouzení dílčích prvků z hlediska požadované a doporučené hodnoty součinitele prostupu tepla pro budovy s převažující návrhovou vnitřní teplotou v intervalu 18°C až 22°C včetně (dle ČSN 73 0540 2 str 13)
A32: =IF(Podlahy!M57=1/0.17,"Nedefinováno",Podlahy!M57) -> 0.3513782793 | C32: =SUM(Úvod!D23:D28) -> 2568.538 | E32: =SUM(Úvod!G23:G28) -> 314.7 | F32: =IF(H32>0,H32,(Úvod!D23*Podlahy!T4+Úvod!D24*Podlahy!T5+Úvod!D25*Podlahy!T6+Úvod!D26*Podlahy!T7+Úvod!D27*Podlahy!T8+Úvod!D28*Podlahy!T9)) -> 2568.538 | H32: 0
O33: Prvek | P33: Součinitel prostupu tepla U (W/(m2K)) | R33: Požadovaná hodnota UN,20 (W/(m2K)) | T33: Doporučená hodnota Urec,20 (W/(m2K)) | V33: Doporučená hodnota pro pasivní budovy Upas,20 (W/(m2K))
A34: Nastavení skladby stěny
A35: Jednotlivé vrstvy | D35: Cena za m2 (Kč) | E35: Tepelný odpor R (m2K/W) | F35: Součinitel tepelné vodivosti λ (W/mK) | G35: Tloušťka vrstvy (mm) | H35: =Úvod!H21 -> Uvažované konstrukce | O35: Okno | P35: =E16 -> 1 | R35: 1.5 | T35: 1.2 | V35: 0,8 až 0,6
O36: Střešní okno | P36: =E18 -> 1.1 | R36: =IF(B10>45,1.5,1.4) -> 1.4 | T36: =IF(B10>45,1.2,1.1) -> 1.1 | V36: =IF(B10>45,"0,8 až 0,6",0.9) -> 0.9
A37: Omítka vnější tenko. 2mm+ sklovlak. | D37: =VLOOKUP(A37,Stěny!$M$3:$Q$56,2,0) -> 304 | E37: =VLOOKUP(A37,Stěny!$M$3:$Q$56,3,0) -> 0.01315789474 | F37: =VLOOKUP(A37,Stěny!$M$3:$Q$56,4,0) -> 0.38 | G37: =VLOOKUP(A37,Stěny!$M$3:$Q$56,5,0) -> 5 | O37: Podlaha | P37: =A32 -> 0.3513782793 | R37: 0.45 | T37: 0.3 | V37: 0,22 až 0,15
A38: ISOVER NF333 s kol.or.vlaken tl. 80mm | D38: =VLOOKUP(A38,Stěny!$M$3:$Q$56,2,0) -> 838 | E38: =VLOOKUP(A38,Stěny!$M$3:$Q$56,3,0) -> 1.951219512 | F38: =VLOOKUP(A38,Stěny!$M$3:$Q$56,4,0) -> 0.041 | G38: =VLOOKUP(A38,Stěny!$M$3:$Q$56,5,0) -> 80 | O38: Stěna | P38: =A46 -> 0.2072570315 | R38: 0.3 | T38: =IF(R4=1,0.25,0.2) -> 0.25 | V38: 0,18 až 0,12
A39: Porotherm P8/P10 36,5 | D39: =VLOOKUP(A39,Stěny!$M$3:$Q$56,2,0) -> 1280 | E39: =VLOOKUP(A39,Stěny!$M$3:$Q$56,3,0) -> 2.664233577 | F39: =VLOOKUP(A39,Stěny!$M$3:$Q$56,4,0) -> 0.137 | G39: =VLOOKUP(A39,Stěny!$M$3:$Q$56,5,0) -> 365 | O39: Střecha | P39: =A60 -> 0.1220628624 | R39: =IF(B10>45,0.3,0.24) -> 0.24 | T39: =IF(B10>45,0.2,0.16) -> 0.16 | V39: =IF(B10>45,"0,18 až 0,12","0,15 až 0,10") -> 0,15 až 0,10
A40: Omítka vnitřní Cemix 032 10mm | D40: =VLOOKUP(A40,Stěny!$M$3:$Q$56,2,0) -> 120 | E40: =VLOOKUP(A40,Stěny!$M$3:$Q$56,3,0) -> 0.02631578947 | F40: =VLOOKUP(A40,Stěny!$M$3:$Q$56,4,0) -> 0.38 | G40: =VLOOKUP(A40,Stěny!$M$3:$Q$56,5,0) -> 10 | O40: Průměrný součinitel prostupu tepla Uem
A41: Nic | D41: =VLOOKUP(A41,Stěny!$M$3:$Q$56,2,0) -> 0 | E41: =VLOOKUP(A41,Stěny!$M$3:$Q$56,3,0) -> 0 | F41: =VLOOKUP(A41,Stěny!$M$3:$Q$56,4,0) -> 0 | G41: =VLOOKUP(A41,Stěny!$M$3:$Q$56,5,0) -> 0 | O41: Činitel teplotní redukce b pro konstrukce ve styku s vnějším vzduchem (-) | V41: 1
A42: Nic | D42: =VLOOKUP(A42,Stěny!$M$3:$Q$56,2,0) -> 0 | E42: =VLOOKUP(A42,Stěny!$M$3:$Q$56,3,0) -> 0 | F42: =VLOOKUP(A42,Stěny!$M$3:$Q$56,4,0) -> 0 | G42: =VLOOKUP(A42,Stěny!$M$3:$Q$56,5,0) -> 0 | O42: Činitel teplotní redukce b pro konstrukce ve styku se zeminou (-) | V42: =(C64-V43)/(C64-R43) -> 0.4054054054
A43: Výsledky daného nastavení stěny | O43: Návrhová venkovní teplota vzduchu v zimním období θe (°C) | R43: =ROUND('Teplotní oblasti'!B11,0) -> -17 | S43: Návrhová teplota v přilehlé zemině θg (°C) | V43: 5 | W43: maximální hodnota Uem,N pro nové obytné budovy (W/(m2K)) | Y43: 0.5
A44: Součinitel prostupu tepla U (W/(m2K)) | C44: Celková cena za 1m2 dané skladby (Kč) | E44: Celková tloušťka (mm) | F44: Ohodnocení stěny | G44: Cena za uvažované konstrukce (skladba stěny) na 1m2 | H44: Vlastní cena za uvažované kce na 1m2
O45: Požadovaný průměrný součinitel prostupu tepla Uem,N (W/(m2.K)) | V45: =((R36*Q24*V41)+(R35*Q23*V41)+(R38*(Q22+Q25)*V41)+(R39*Q27*V41)+(R37*Q26*V42))/Q28+0.02 -> 0.3797473173 | W45: Podmínky:
A46: =IF(Stěny!J50=1/0.17,"Nedefinováno",Stěny!J50) -> 0.2072570315 | C46: =SUM(Úvod!D37:D42)+130*Stěny!Y3 -> 2672 | E46: =SUM(Úvod!G37:G42) -> 460 | F46: =IF(Stěny!G50=1,"těžká stěna","lehká stěna") -> těžká stěna | G46: =IF(H46>0,H46,(Úvod!D37*Stěny!U3+Úvod!D38*Stěny!U4+Úvod!D39*Stěny!U5+Úvod!D40*Stěny!U6+Úvod!D41*Stěny!U7+Úvod!D42*Stěny!U8+Stěny!X9*130)) -> 2672 | H46: 0 | O46: Průměrný vliv tepelných vazeb ∆Utbm (W/(m2K)) | R46: =C67 -> 0.1 | S46: Měrný tepelný tok HT (W/K) | V46: =((P35*Q23*V41)+(P38*(Q22+Q25)*V41)+(P39*Q27*V41)+(P37*Q26*V42)+(P36*Q24*V41))+Q28*R46 -> 389.5428318 | W46: =IF(V45<=Y43,"Uem,N vyhovuje","Uem,N přesahuje přípustnou mez") -> Uem,N vyhovuje
W47: =IF(V48>V45,"Uem,N<Uem => Uem nevyhovuje","Uem vyhovuje") -> Uem vyhovuje
A48: Nastavení skladby střechy | O48: Průměrný součinitel prostupu tepla Uem (W/(m2.K)) | V48: =V46/Q28 -> 0.3439862006
A49: Jednotlivé vrstvy | D49: Cena za m2 (Kč) | E49: Tepelný odpor R (m2K/W) | F49: Součinitel tepelné vodivosti λ (W/mK) | G49: Tloušťka vrstvy (mm) | H49: =Úvod!H35 -> Uvažované konstrukce | O49: Výsledky nastavení konstrukcí
O50: Název konstrukce | Q50: Součinitel prostupu tepla U (W/(m2K)) | S50: Tloušťka konstrukce (mm) | T50: Celková cena konstrukce dané skladby | V50: Celková cena za uvažované konstrukce | W50: Celková cena všech konstrukcí daných skladeb bez DPH
A51: Taška betonová Moravská plus 33,5x42 | D51: =VLOOKUP(A51,Střecha!$M$3:$Q$60,2,0) -> 452 | E51: =VLOOKUP(A51,Střecha!$M$3:$Q$60,3,0) -> 0 | F51: =VLOOKUP(A51,Střecha!$M$3:$Q$60,4,0) -> 0 | G51: =VLOOKUP(A51,Střecha!$M$3:$Q$60,5,0) -> 0
A52: Laťování 30x50 150-360mm max60° | D52: =VLOOKUP(A52,Střecha!$M$3:$Q$60,2,0) -> 70.54 | E52: =VLOOKUP(A52,Střecha!$M$3:$Q$60,3,0) -> 0 | F52: =VLOOKUP(A52,Střecha!$M$3:$Q$60,4,0) -> 0 | G52: =VLOOKUP(A52,Střecha!$M$3:$Q$60,5,0) -> 30 | O52: Okna | Q52: =P35 -> 1 | T52: =B11*D16 -> 353275 | V52: =B11*J16 -> 353275 | W52: =SUM(T52:U57) -> 3429543.427
A53: Folie podstřešní difuzní JUTAFOL D | D53: =VLOOKUP(A53,Střecha!$M$3:$Q$60,2,0) -> 48.2 | E53: =VLOOKUP(A53,Střecha!$M$3:$Q$60,3,0) -> 0.00125 | F53: =VLOOKUP(A53,Střecha!$M$3:$Q$60,4,0) -> 0.2 | G53: =VLOOKUP(A53,Střecha!$M$3:$Q$60,5,0) -> 0.25 | O53: Podlaha | Q53: =P37 -> 0.3513782793 | S53: =E32 -> 314.7 | T53: =C32*Q26 -> 287676.256 | V53: =F32*Q26 -> 287676.256 | W53: Celková cena všech uvažovaných konstrukcí daných skladeb bez DPH
A54: Kontrolatě po 1m sklon do 60° 30x50 | D54: =VLOOKUP(A54,Střecha!$M$3:$Q$60,2,0) -> 19.15 | E54: =VLOOKUP(A54,Střecha!$M$3:$Q$60,3,0) -> 0 | F54: =VLOOKUP(A54,Střecha!$M$3:$Q$60,4,0) -> 0 | G54: =VLOOKUP(A54,Střecha!$M$3:$Q$60,5,0) -> 30 | O54: Stěna | Q54: =P38 -> 0.2072570315 | S54: =E46 -> 460 | T54: =C46*(Q25+Q22) -> 2162267.273 | V54: =G46*(Q25+Q22) -> 2162267.273
A55: Parotěsná folie JUTAFOL N 140g SDK podhled | D55: =VLOOKUP(A55,Střecha!$M$3:$Q$60,2,0) -> 49.2 | E55: =VLOOKUP(A55,Střecha!$M$3:$Q$60,3,0) -> 0.00125 | F55: =VLOOKUP(A55,Střecha!$M$3:$Q$60,4,0) -> 0.2 | G55: =VLOOKUP(A55,Střecha!$M$3:$Q$60,5,0) -> 0.25 | O55: Střecha (obálka) | Q55: =P39 -> 0.1220628624 | S55: =E60 -> 390.5 | T55: =C60*Q27 -> 413941.1268 | V55: =F60*Q27 -> 413941.1268
A56: SDK podkroví +300 mm ISOVER ORSIK | D56: =VLOOKUP(A56,Střecha!$M$3:$Q$60,2,0) -> 1200 | E56: =VLOOKUP(A56,Střecha!$M$3:$Q$60,3,0) -> 8.02 | F56: =VLOOKUP(A56,Střecha!$M$3:$Q$60,4,0) -> 0.038 | G56: =VLOOKUP(A56,Střecha!$M$3:$Q$60,5,0) -> 330 | O56: Střecha (přesahy) | T56: =K64*K65 -> 110953.7714 | V56: =K64*K67 -> 32742.1212 | W56: =SUM(V52:V57) -> 3351331.777
A57: Výsledky daného nastavení střechy | O57: Střešní okna | Q57: =P36 -> 1.1 | T57: =E11*D18 -> 101430 | V57: =J18*E11 -> 101430
A58: Součinitel prostupu tepla U (W/(m2K)) | C58: Celková cena za 1m2 dané skladby (Kč) | E58: Celková tloušťka (mm) | F58: Cena za uvažované konstrukce (skladba střechy) na 1m2 | H58: Vlastní cena za uvažované kce na 1m2
A60: =IF(Střecha!M62=1/0.17,"Nedefinováno",Střecha!M62) -> 0.1220628624 | C60: =SUM(Úvod!D51:D56)+Střecha!F28*Střecha!Z3 -> 3039.09 | E60: =SUM(Úvod!G51:G56) -> 390.5 | F60: =IF(H60>0,H60,(Úvod!D51*Střecha!T3+Úvod!D52*Střecha!T4+Úvod!D53*Střecha!T5+Úvod!D54*Střecha!T6+Úvod!D55*Střecha!T7+Úvod!D56*Střecha!T8+Střecha!F28*Střecha!X9)) -> 3039.09 | H60: 0
A63: Nastavení teplotních veličin | F63: Nastavení přesahů střechy
A64: Návrhová vnitřní teplota θi (°C) | C64: 20 | F64: Vlastní cena za uvažované konstrukce na 1m2 | H64: 0 | I64: Celková plocha přesahů (m2) | K64: =Střecha!F7-Úvod!Q27-Plocha_stresnich_oken -> 62.65954989
A65: Nastavení teplotní oblasti | C65: 3 | F65: Přesah přes zeď ležící v ose x (m) | H65: 1 | I65: Cena za m2 přesahu (Kč) | K65: =Střecha!I16 -> 1770.74
A66: Nadmořská výška objektu (m.n.m.) | C66: 560
A67: =O46 -> Průměrný vliv tepelných vazeb ∆Utbm (W/(m2K)) | C67: 0.1 | F67: Přesah přes zeď ležící v ose y (m) | H67: 1 | I67: Cena za m2 přesahu uvažovaných vrstev (Kč) | K67: =IF(H64>0,H64,Střecha!J16) -> 522.54
F69: Skladba střechy | H69: Vrstvy v přesahu | J69: Uvažované vrstvy
F70: =A51 -> Taška betonová Moravská plus 33,5x42
A71: Nastavení informací o objektu | F71: Laťování 30x50 150-360mm max60°
A72: Objednatel: | B72: Petr Macháček | F72: Folie podstřešní difuzní JUTAFOL D
A73: Email objednatele : | B73: machacek.petr@seznam.cz | F73: Kontrolatě po 1m sklon do 60° 30x50
A74: Tel. Objednatele: | B74: 712542454 | F74: Parotěsná folie JUTAFOL N 140g SDK podhled
A75: Projektant: | B75: Ing. Jan Skála | F75: SDK podkroví +300 mm ISOVER ORSIK
A76: Email projektanta : | B76: skala.jan@archpra.com
A77: Tel. projektanta: | B77: 743200119 | G77: Rozsah dynamiky (pokročilé možnosti modelu-nejdříve nastavte model)
A78: Dodavatel: | B78: RYCHLOSTAV s.r.o. | F78: Dimenze objektu | G78: Nastavení rozsahu | H78: Parametry dynamiky
A79: Email dodavatele: | B79: help@rychlostav.cz | F79: =Rozměr_X -> 14 | G79: 6 | H79: =IF(Rozměr_X>rozsah_dynamiky_x,"Rozsah dynamiky X (m)","Nastavený rozsah dynamiky X je větší než základní nastavení X. Snižte rozsah X nebo zviště základní nastavení X") -> Rozsah dynamiky X (m)
A80: Tel. Dodavatele: | B80: 787492465 | F80: =Rozměr_Y -> 8 | G80: 7 | H80: =IF(Rozměr_Y>rozsah_dynamiky_y,"Rozsah dynamiky Y (m)","Nastavený rozsah dynamiky Y je větší než základní nastavení Y. Snižte rozsah Y nebo zviště základní nastavení Y") -> Rozsah dynamiky Y (m)
A81: Adresa objektu: | B81: Krupská 308 Teplice | F81: =Rozměr_Z -> 18 | G81: 8 | H81: =IF(Rozměr_Z>rozsah_dynamiky_z,"Rozsah dynamiky Z (m)","Nastavený rozsah dynamiky Z je větší než základní nastavení Z. Snižte rozsah Z nebo zviště základní nastavení Z") -> Rozsah dynamiky Z (m)
A82: PSČ objektu | B82: 417 12 | F82: =Sklon_střechy -> 40 | G82: 16 | H82: =IF(Sklon_střechy>rozsah_dynamiky_sklonu_strechy,"Rozsah dynamiky sklonu střechy (°)","Nastavený rozsah dynamiky sklonu je větší než základní nastavení sklonu. Snižte rozsah sklonu nebo zviště základní nastavení sklonu") -> Rozsah dynamiky sklonu střechy (°)
A83: Pojmenování objektu: | B83: Rodiný dům | F83: =Plocha_oken -> 65 | G83: 16 | H83: =IF(Plocha_oken>rozsah_dynamiky_plochy_oken,"Rozsah dynamiky plochy oken (m2)","Nastavený rozsah dynamiky plochy oken je větší než základní nastavení plochy oken. Snižte rozsah plochy oken nebo zviště základní nastavení plochy oken") -> Rozsah dynamiky plochy oken (m2)
A84: Sazba DPH | B84: 0.21 | G84: 1 | H84: Velikost kroku pro dynamickou simulaci

Sheet Okna
H2: Monžné varianty oken ve stěnách | K2: Nastavování vrstev | M2: Výsledek nastavení
H3: typ | I3: cena za 1m2 | J3: součínítel prostupu tepla | K3: TRUE | M3: =IF(K3=TRUE,1,0) -> 1
H4: Nic | I4: 0 | J4: Nedefinováno
H5: plast oknoshop.cz 2 sklo u=1,1 | I5: =2765/1.2 -> 2304.166667 | J5: 1.1
H6: plast oknoshop.cz 3 sklo u=0,7 | I6: =2990/1.2 -> 2491.666667 | J6: 0.7
H7: plast stavo-plast 2 sklo u=1,1 | I7: =4346/1.2 -> 3621.666667 | J7: 1.1
H8: plast stavo-plast 2 sklo u=1,0 | I8: =4476/1.2 -> 3730 | J8: 1
H9: plast stavo-plast 3 sklo u=0,7 | I9: =4733/1.2 -> 3944.166667 | J9: 0.7
H10: plast stavo-plast 3 sklo u=0,6 | I10: =5069/1.2 -> 4224.166667 | J10: 0.6
H11: plast okno-eshop.cz 2 sklo u=1,1 | I11: =2443/1.2 -> 2035.833333 | J11: 1.1
H12: plast okno-eshop.cz 3 sklo u=0,7 | I12: =3024/1.2 -> 2520 | J12: 0.7
H13: plast okno-eshop.cz 3 sklo u=0,5 | I13: =3420/1.2 -> 2850 | J13: 0.5
H14: plast skladova-okna.cz 2 sklo u=1 | I14: =2633/1.2 -> 2194.166667 | J14: 1
H15: plast skladova-okna.cz 3 sklo u=0,7 | I15: =3123/1.2 -> 2602.5 | J15: 0.7
H16: eurookno okna-eshop.cz 2 sklo u=1,1 | I16: 4693 | J16: 1.1
H17: eurookno okna-eshop.cz 3 sklo u=0,7 | I17: 5425 | J17: 0.7
H18: eurookno oknasirer.cz 2 sklo u=1 | I18: 5435 | J18: 1
H19: eurookno oknasirer.cz 3 sklo u=0,5 | I19: 6177 | J19: 0.5
H20: eurookno oknaharald.cz 2 sklo u=1,1 | I20: 5179 | J20: 1.1
H23: Možné varianty střešních oken | K23: =K2 -> Nastavování vrstev | M23: =M2 -> Výsledek nastavení
H24: typ | I24: cena za 1m2 | J24: součínítel prostupu tepla | K24: TRUE | M24: =IF(K24=TRUE,1,0) -> 1
H25: Velux GLU 00551 U=1,1 | I25: 10143 | J25: 1.1
H26: Velux GPL 3050 U = 0,5 | I26: 13405.23883 | J26: 0.5
H27: Velux GGL 3066 U = 0,5 | I27: 15844.88958 | J27: 0.5
H28: Velux GGL 306621 INTEGRA U = 0,5 | I28: 27657.93529 | J28: 0.5
H29: Velux GLL 1055 U = 1 | I29: 9167.950695 | J29: 1
H30: Velux GLL B 1055 U = 1 | I30: 9732.922447 | J30: 1
H31: Velux GZL 1050 U = 1 | I31: 7575.757577 | J31: 1

Sheet Podlahy
M1: Možné varianty vrstev podlahy
M2: Sloupec1 | N2: Cena | O2: tepelny odpor R | P2: lambda λ | Q2: tloušťka d(mm) | R2: Vrstva | S2: Nastavování vrstev | T2: Výsledek nastavení
M3: Nic | N3: 0 | O3: 0 | P3: 0 | Q3: 0
M4: Separační vrstva z asfaltového pásu | N4: 28.8 | O4: =(Q4/1000)/P4 -> 0.003333333333 | P4: 0.21 | Q4: 0.7 | R4: 1 | S4: TRUE | T4: =IF(S4=TRUE,1,0) -> 1
M5: Separační vrstva z PE folie | N5: 14.1 | O5: =(Q5/1000)/P5 -> 0.0003333333333 | P5: 0.3 | Q5: 0.1 | R5: 2 | S5: TRUE | T5: 1
M6: Anhydritový potěr 50mm | N6: 731 | O6: =(Q6/1000)/P6 -> 0.04166666667 | P6: 1.2 | Q6: 50 | R6: 3 | S6: TRUE | T6: 1
M7: Asfaltový nátěr | N7: 23.138 | O7: 0 | P7: 0 | Q7: 0 | R7: 4 | S7: TRUE | T7: 1
M8: Asfaltový pás | N8: 231.2 | O8: =(Q8/1000)/P8 -> 0.01904761905 | P8: 0.21 | Q8: 4 | R8: 5 | S8: TRUE | T8: 1
M9: Betonová mazanina C12/15 100mm | N9: =2820/1000*Tabulka3[[#This Row],[tloušťka d(mm)]]+95.4/1000*Tabulka3[[#This Row],[tloušťka d(mm)]]+23700/1000*Tabulka3[[#This Row],[tloušťka d(mm)]]*0.015 -> 327.09 | O9: 0.06993006993 | P9: 1.43 | Q9: 100 | R9: 6 | S9: TRUE | T9: 1
M10: Betonová mazanina C12/15 110mm | N10: =2820/1000*Tabulka3[[#This Row],[tloušťka d(mm)]]+95.4/1000*Tabulka3[[#This Row],[tloušťka d(mm)]]+23700/1000*Tabulka3[[#This Row],[tloušťka d(mm)]]*0.015 -> 359.799 | O10: 0.07692307692 | P10: 1.43 | Q10: 110
M11: Betonová mazanina C12/15 120mm | N11: =2820/1000*Tabulka3[[#This Row],[tloušťka d(mm)]]+95.4/1000*Tabulka3[[#This Row],[tloušťka d(mm)]]+23700/1000*Tabulka3[[#This Row],[tloušťka d(mm)]]*0.015 -> 392.508 | O11: 0.08391608392 | P11: 1.43 | Q11: 120
M12: Betonová mazanina C12/15 50mm | N12: =2970/1000*Tabulka3[[#This Row],[tloušťka d(mm)]]+191/1000*Tabulka3[[#This Row],[tloušťka d(mm)]]+23700*0.015/1000*Tabulka3[[#This Row],[tloušťka d(mm)]] -> 175.825 | O12: 0.03496503497 | P12: 1.43 | Q12: 50
M13: Betonová mazanina C12/15 60mm | N13: =2970/1000*Tabulka3[[#This Row],[tloušťka d(mm)]]+191/1000*Tabulka3[[#This Row],[tloušťka d(mm)]]+23700*0.015/1000*Tabulka3[[#This Row],[tloušťka d(mm)]] -> 210.99 | O13: 0.04195804196 | P13: 1.43 | Q13: 60
M14: Betonová mazanina C12/15 70mm | N14: =2970/1000*Tabulka3[[#This Row],[tloušťka d(mm)]]+191/1000*Tabulka3[[#This Row],[tloušťka d(mm)]]+23700*0.015/1000*Tabulka3[[#This Row],[tloušťka d(mm)]] -> 246.155 | O14: 0.04895104895 | P14: 1.43 | Q14: 70
M15: Betonová mazanina C12/15 80mm | N15: =2970/1000*Tabulka3[[#This Row],[tloušťka d(mm)]]+191/1000*Tabulka3[[#This Row],[tloušťka d(mm)]]+23700*0.015/1000*Tabulka3[[#This Row],[tloušťka d(mm)]] -> 281.32 | O15: 0.05594405594 | P15: 1.43 | Q15: 80
M16: Betonová mazanina C12/15 90mm | N16: =2820/1000*Tabulka3[[#This Row],[tloušťka d(mm)]]+95.4/1000*Tabulka3[[#This Row],[tloušťka d(mm)]]+23700*0.015/1000*Tabulka3[[#This Row],[tloušťka d(mm)]] -> 294.381 | O16: 0.06293706294 | P16: 1.43 | Q16: 90
M17: Cementový potěr 30mm | N17: 342 | O17: 0.025 | P17: 1.2 | Q17: 30
M18: Cementový potěr 40mm | N18: 436 | O18: 0.03333333333 | P18: 1.2 | Q18: 40
M19: Cementový potěr 50mm | N19: 529 | O19: 0.04166666667 | P19: 1.2 | Q19: 50
M20: Folie z PE 1,5mm | N20: 258.3 | O20: 0.004285714286 | P20: 0.35 | Q20: 1.5
D21: $ | M21: Folie z PE 1mm | N21: 225.74 | O21: 0.002857142857 | P21: 0.35 | Q21: 1
M22: Folie z PE 2mm | N22: 302.3 | O22: 0.005714285714 | P22: 0.35 | Q22: 2
M23: Sadrovlák. podlaha 30mm | N23: 858 | O23: 0.09375 | P23: 0.32 | Q23: 30
D24: λ | M24: Sadrovlák. podlaha 30mm(10mm podsyp) | N24: 754 | O24: 0.1034482759 | P24: 0.29 | Q24: 30
M25: Sadrovlák. podlaha 40mm(20mm podsyp) | N25: 816 | O25: 0.1454545455 | P25: 0.275 | Q25: 40
M26: Sadrovlák. podlaha 50mm(20mm podsyp) | N26: 984 | O26: 0.176056338 | P26: 0.284 | Q26: 50
M27: Sadrovlák. podlaha 25 | N27: 691 | O27: 0.078125 | P27: 0.32 | Q27: 25
M28: Penetrační nátěr | N28: 14.88 | O28: 0 | P28: 0 | Q28: 0
M29: Polystyren EPS 140mm | N29: 345 | O29: =(Q29/1000)/P29 -> 3.5 | P29: 0.04 | Q29: 140
M30: Polystyren EPS 120mm | N30: 297.7 | O30: 3 | P30: 0.04 | Q30: 120
M31: Polystyren EPS 20mm | N31: 62.08 | O31: 0.5 | P31: 0.04 | Q31: 20
M32: Polystyren EPS 30mm | N32: 85.51 | O32: 0.75 | P32: 0.04 | Q32: 30
M33: Polystyren EPS 40mm | N33: 109.05 | O33: 1 | P33: 0.04 | Q33: 40
M34: Polystyren EPS 50mm | N34: 134.7 | O34: 1.25 | P34: 0.04 | Q34: 50
M35: Polystyren EPS 60mm | N35: 156.9 | O35: 1.5 | P35: 0.04 | Q35: 60
M36: Polystyren EPS 80mm | N36: 204.2 | O36: 2 | P36: 0.04 | Q36: 80
M37: Polystyren EPS 100mm | N37: 250.4 | O37: 2.5 | P37: 0.04 | Q37: 100
M38: Podlaha SDK F141 KNAUF + 20mm podsyp | N38: 785 | O38: =(Q38/1000)/P38 -> 0.2055921053 | P38: 0.21888 | Q38: 45
M39: Podlaha SDK F141 KNAUF + 30mm podsyp | N39: 855.5 | O39: 0.2489814396 | P39: 0.2209 | Q39: 55
M40: Podlaha SDK F141 KNAUF + 40mm podsyp | N40: 926 | O40: 0.2923976608 | P40: 0.2223 | Q40: 65
M41: Podlaha SDK F141 KNAUF + 50mm podsyp | N41: 996.5 | O41: 0.3358710255 | P41: 0.2233 | Q41: 75
M42: Podlaha SDK F141 KNAUF bez podsypu | N42: 651 | O42: 0.119047619 | P42: 0.21 | Q42: 25
M43: Podlaha SDK F141 KNAUF+20mm vaty | N43: 790 | O43: 0.3335804299 | P43: 0.1349 | Q43: 45
M44: Sadrovlák. podlaha 30mm(10mm dřevovláknitá deska) | N44: 791 | O44: 0.1327433628 | P44: 0.226 | Q44: 30
M45: ŽLB deska C16/20 100mm | N45: =2450/1000*Tabulka3[[#This Row],[tloušťka d(mm)]]+38000*0.15/1000*Tabulka3[[#This Row],[tloušťka d(mm)]] -> 815 | O45: 0.06993006993 | P45: 1.43 | Q45: 100
M46: ŽLB deska 110mm | N46: =2450/1000*Tabulka3[[#This Row],[tloušťka d(mm)]]+38000*0.15/1000*Tabulka3[[#This Row],[tloušťka d(mm)]] -> 896.5 | O46: 0.07692307692 | P46: 1.43 | Q46: 110
M47: ŽLB deska 120mm | N47: =2450/1000*Tabulka3[[#This Row],[tloušťka d(mm)]]+38000*0.15/1000*Tabulka3[[#This Row],[tloušťka d(mm)]] -> 978 | O47: 0.08391608392 | P47: 1.43 | Q47: 120
M48: ŽLB deska 130mm | N48: =2450/1000*Tabulka3[[#This Row],[tloušťka d(mm)]]+38000*0.15/1000*Tabulka3[[#This Row],[tloušťka d(mm)]] -> 1059.5 | O48: 0.09090909091 | P48: 1.43 | Q48: 130
M49: ŽLB deska 140mm | N49: =2450/1000*Tabulka3[[#This Row],[tloušťka d(mm)]]+38000*0.15/1000*Tabulka3[[#This Row],[tloušťka d(mm)]] -> 1141 | O49: 0.0979020979 | P49: 1.43 | Q49: 140
M50: ŽLB deska 150mm | N50: =2450/1000*Tabulka3[[#This Row],[tloušťka d(mm)]]+38000*0.15/1000*Tabulka3[[#This Row],[tloušťka d(mm)]] -> 1222.5 | O50: 0.1048951049 | P50: 1.43 | Q50: 150
M51: ŽLB deska 160mm | N51: =2450/1000*Tabulka3[[#This Row],[tloušťka d(mm)]]+38000*0.15/1000*Tabulka3[[#This Row],[tloušťka d(mm)]] -> 1304 | O51: 0.1118881119 | P51: 1.43 | Q51: 160
M52: ŽLB deska 170mm | N52: =2450/1000*Tabulka3[[#This Row],[tloušťka d(mm)]]+38000*0.15/1000*Tabulka3[[#This Row],[tloušťka d(mm)]] -> 1385.5 | O52: 0.1188811189 | P52: 1.43 | Q52: 170
M53: ŽLB deska 180mm | N53: =2450/1000*Tabulka3[[#This Row],[tloušťka d(mm)]]+38000*0.15/1000*Tabulka3[[#This Row],[tloušťka d(mm)]] -> 1467 | O53: 0.1258741259 | P53: 1.43 | Q53: 180
M54: ŽLB deska 190mm | N54: =2450/1000*Tabulka3[[#This Row],[tloušťka d(mm)]]+38000*0.15/1000*Tabulka3[[#This Row],[tloušťka d(mm)]] -> 1548.5 | O54: 0.1328671329 | P54: 1.43 | Q54: 190
M55: ŽLB deska 200mm | N55: =2450/1000*Tabulka3[[#This Row],[tloušťka d(mm)]]+38000*0.15/1000*Tabulka3[[#This Row],[tloušťka d(mm)]] -> 1630 | O55: 0.1398601399 | P55: 1.43 | Q55: 200
M57: =1/(SUM(Úvod!E23:E28)+0.13+0.04) -> 0.3513782793

Sheet Stěny
M1: Možné varianty vrtev stěny
M2: Sloupec1 | N2: Cena | O2: tepelny odpor R | P2: lambda λ | Q2: tloušťka d (mm) | R2: Hmotnost vrstvy (kg) | S2: =Podlahy!R2 -> Vrstva | T2: =Podlahy!S2 -> Nastavování vrstev | U2: =Podlahy!T2 -> Výsledek nastavení | V2: Vrstvy nic | W2: Posouzení nic | X2: Posouzený pro dáné kce | Y2: pro cenu
M3: Nic | N3: 0 | O3: 0 | P3: 0 | Q3: 0 | R3: 0 | S3: 1 | T3: TRUE | U3: =IF(T3=TRUE,1,0) -> 1 | V3: =Úvod!A37 -> Omítka vnější tenko. 2mm+ sklovlak. | W3: =IF(V3="Nic",0,1) -> 1 | X3: =W3*U3 -> 1 | Y3: =IF((SUM(W3:W8))>0,1,0) -> 1
M4: Heluz plus 36,5 P8/P10 | N4: 1330 | O4: =(Q4/1000)/P4 -> 3.65 | P4: 0.1 | Q4: 365 | R4: 211.2 | S4: 2 | T4: TRUE | U4: 1 | V4: =Úvod!A38 -> ISOVER NF333 s kol.or.vlaken tl. 80mm | W4: 1 | X4: 1
M5: Heluz plus 38 P8/P10 | N5: 1440 | O5: =(Q5/1000)/P5 -> 3.838383838 | P5: 0.099 | Q5: 380 | R5: 224 | S5: 3 | T5: TRUE | U5: 1 | V5: =Úvod!A39 -> Porotherm P8/P10 36,5 | W5: 1 | X5: 1
M6: Heluz plus 40 P8/P10 | N6: 1530 | O6: 4 | P6: 0.1 | Q6: 400 | R6: 238.4 | S6: 4 | T6: TRUE | U6: 1 | V6: =Úvod!A40 -> Omítka vnitřní Cemix 032 10mm | W6: 1 | X6: 1
M7: Heluz plus 44 P8/P10 | N7: 1700 | O7: 4.489795918 | P7: 0.098 | Q7: 440 | R7: 264 | S7: 5 | T7: TRUE | U7: 1 | V7: =Úvod!A41 -> Nic | W7: 0 | X7: 0
M8: Obklad Lignopor na ŽLB kci 50mm | N8: 369 | O8: 1.136363636 | P8: 0.044 | Q8: 50 | R8: 4.3 | S8: 6 | T8: TRUE | U8: 1 | V8: =Úvod!A42 -> Nic | W8: 0 | X8: 0
M9: Obklad Lignopor na ŽLB kci 35mm | N9: 310 | O9: 0.7608695652 | P9: 0.046 | Q9: 35 | R9: 4.1 | S9: Posouzeí zda je třeba u uvažovaných vrstev dát lešení | X9: =IF((SUM(X3:X8))>0,1,0) -> 1
M10: Obklad Lignopor na ŽLB kci 25mm | N10: 270 | O10: 0.5319148936 | P10: 0.047 | Q10: 25 | R10: 3.9
M11: ISOVER NF333 s kol.or.vlaken tl. 100mm | N11: 930 | O11: 2.43902439 | P11: 0.041 | Q11: 100 | R11: =88*Tabulka4[[#This Row],[tloušťka d (mm)]]/1000 -> 8.8
M12: ISOVER NF333 s kol.or.vlaken tl. 120mm | N12: 1011 | O12: 2.926829268 | P12: 0.041 | Q12: 120 | R12: =88*Tabulka4[[#This Row],[tloušťka d (mm)]]/1000 -> 10.56
M13: ISOVER NF333 s kol.or.vlaken tl. 140mm | N13: 1116 | O13: 3.414634146 | P13: 0.041 | Q13: 140 | R13: =88*Tabulka4[[#This Row],[tloušťka d (mm)]]/1000 -> 12.32
M14: ISOVER NF333 s kol.or.vlaken tl. 160mm | N14: 1197 | O14: 3.902439024 | P14: 0.041 | Q14: 160 | R14: =88*Tabulka4[[#This Row],[tloušťka d (mm)]]/1000 -> 14.08
M15: ISOVER NF333 s kol.or.vlaken tl. 180mm | N15: 1294 | O15: 4.390243902 | P15: 0.041 | Q15: 180 | R15: =88*Tabulka4[[#This Row],[tloušťka d (mm)]]/1000 -> 15.84
M16: ISOVER NF333 s kol.or.vlaken tl. 200mm | N16: 1374 | O16: 4.87804878 | P16: 0.041 | Q16: 200 | R16: =88*Tabulka4[[#This Row],[tloušťka d (mm)]]/1000 -> 17.6
M17: ISOVER NF333 s kol.or.vlaken tl. 20mm | N17: 585.4 | O17: 0.487804878 | P17: 0.041 | Q17: 20 | R17: =88*Tabulka4[[#This Row],[tloušťka d (mm)]]/1000 -> 1.76
M18: ISOVER NF333 s kol.or.vlaken tl. 30mm | N18: 626 | O18: 0.7317073171 | P18: 0.041 | Q18: 30 | R18: =88*Tabulka4[[#This Row],[tloušťka d (mm)]]/1000 -> 2.64
M19: ISOVER NF333 s kol.or.vlaken tl. 40mm | N19: 666 | O19: 0.9756097561 | P19: 0.041 | Q19: 40 | R19: =88*Tabulka4[[#This Row],[tloušťka d (mm)]]/1000 -> 3.52
M20: ISOVER NF333 s kol.or.vlaken tl. 50mm | N20: 717 | O20: 1.219512195 | P20: 0.041 | Q20: 50 | R20: =88*Tabulka4[[#This Row],[tloušťka d (mm)]]/1000 -> 4.4
M21: ISOVER NF333 s kol.or.vlaken tl. 60mm | N21: 758 | O21: 1.463414634 | P21: 0.041 | Q21: 60 | R21: =88*Tabulka4[[#This Row],[tloušťka d (mm)]]/1000 -> 5.28
M22: ISOVER NF333 s kol.or.vlaken tl. 70mm | N22: 798 | O22: 1.707317073 | P22: 0.041 | Q22: 70 | R22: =88*Tabulka4[[#This Row],[tloušťka d (mm)]]/1000 -> 6.16
M23: ISOVER NF333 s kol.or.vlaken tl. 80mm | N23: 838 | O23: 1.951219512 | P23: 0.041 | Q23: 80 | R23: =88*Tabulka4[[#This Row],[tloušťka d (mm)]]/1000 -> 7.04
M24: Omítka vnější tenko.2mm +sklovlak. (silikátová zrnitá) | N24: 394 | O24: =(Q24/1000)/P24 -> 0.01315789474 | P24: 0.38 | Q24: 5 | R24: 3.5
M25: Polystyren EPS 100mm | N25: 755.4 | O25: 2.5 | P25: 0.04 | Q25: 100 | R25: =23/1000*Tabulka4[[#This Row],[tloušťka d (mm)]] -> 2.3
M26: Polystyren EPS 120mm | N26: 802.7 | O26: 3 | P26: 0.04 | Q26: 120 | R26: =23/1000*Tabulka4[[#This Row],[tloušťka d (mm)]] -> 2.76
M27: Polystyren EPS 140mm | N27: 930 | O27: 3.5 | P27: 0.04 | Q27: 140 | R27: =23/1000*Tabulka4[[#This Row],[tloušťka d (mm)]] -> 3.22
M28: Polystyren EPS 160mm | N28: 977.2 | O28: 4 | P28: 0.04 | Q28: 160 | R28: =23/1000*Tabulka4[[#This Row],[tloušťka d (mm)]] -> 3.68
M29: Polystyren EPS 180mm | N29: 1045.5 | O29: 4.5 | P29: 0.04 | Q29: 180 | R29: =23/1000*Tabulka4[[#This Row],[tloušťka d (mm)]] -> 4.14
M30: Polystyren EPS 200mm | N30: 1071.9 | O30: 5 | P30: 0.04 | Q30: 200 | R30: =23/1000*Tabulka4[[#This Row],[tloušťka d (mm)]] -> 4.6
M31: Polystyren EPS 20mm | N31: 540.08 | O31: 0.5 | P31: 0.04 | Q31: 20 | R31: =23/1000*Tabulka4[[#This Row],[tloušťka d (mm)]] -> 0.46
M32: Polystyren EPS 30mm | N32: 563.51 | O32: 0.75 | P32: 0.04 | Q32: 30 | R32: =23/1000*Tabulka4[[#This Row],[tloušťka d (mm)]] -> 0.69
M33: Polystyren EPS 40mm | N33: 587.05 | O33: 1 | P33: 0.04 | Q33: 40 | R33: =23/1000*Tabulka4[[#This Row],[tloušťka d (mm)]] -> 0.92
M34: Polystyren EPS 50mm | N34: 624.7 | O34: 1.25 | P34: 0.04 | Q34: 50 | R34: =23/1000*Tabulka4[[#This Row],[tloušťka d (mm)]] -> 1.15
M35: Polystyren EPS 60mm | N35: 648.9 | O35: 1.5 | P35: 0.04 | Q35: 60 | R35: =23/1000*Tabulka4[[#This Row],[tloušťka d (mm)]] -> 1.38
M36: Polystyren EPS 80mm | N36: 696.2 | O36: 2 | P36: 0.04 | Q36: 80 | R36: =23/1000*Tabulka4[[#This Row],[tloušťka d (mm)]] -> 1.84
M37: Porotherm P8/P10 36,5 | N37: 1280 | O37: 2.664233577 | P37: 0.137 | Q37: 365 | R37: 272
M38: Porotherm P8/P10 40 | N38: 1420 | O38: 2.75862069 | P38: 0.145 | Q38: 400 | R38: 300
M39: Porotherm P8/P10 44 | N39: 1560 | O39: 3.076923077 | P39: 0.143 | Q39: 440 | R39: 326.4
M40: Ytong P2-400 375mm | N40: 1507.5 | O40: 3.90625 | P40: 0.096 | Q40: 375 | R40: 150
F41: Posouzení stěny lehká / těžká | M41: Ytong P4-500 200mm | N41: 862 | O41: 1.538461538 | P41: 0.13 | Q41: 200 | R41: 100
F42: Vrstvy | J42: Hmotnost (kg) | M42: Ytong P4-500 250mm | N42: 1047.5 | O42: 1.923076923 | P42: 0.13 | Q42: 250 | R42: 125
F43: =Úvod!A37 -> Omítka vnější tenko. 2mm+ sklovlak. | J43: =VLOOKUP(F43,$M$3:$R$56,6,0) -> 3.5 | M43: Ytong P4-500 300mm | N43: 1278 | O43: 2.307692308 | P43: 0.13 | Q43: 300 | R43: 150
F44: =Úvod!A38 -> ISOVER NF333 s kol.or.vlaken tl. 80mm | J44: =VLOOKUP(F44,$M$3:$R$56,6,0) -> 7.04 | M44: ŽLB zeď 200mm | N44: 2356.8 | O44: 0.1398601399 | P44: 1.43 | Q44: 200 | R44: 500
F45: =Úvod!A39 -> Porotherm P8/P10 36,5 | J45: 272 | M45: ŽLB zeď 250mm | N45: 2713.5 | O45: 0.1748251748 | P45: 1.43 | Q45: 250 | R45: 625
F46: =Úvod!A40 -> Omítka vnitřní Cemix 032 10mm | J46: 20 | M46: ŽLB zeď 300mm | N46: 3070.2 | O46: 0.2097902098 | P46: 1.43 | Q46: 300 | R46: 750
F47: =Úvod!A41 -> Nic | J47: 0 | M47: ŽLB zeď 350mm | N47: 3426.9 | O47: 0.2447552448 | P47: 1.43 | Q47: 350 | R47: 875
F48: =Úvod!A42 -> Nic | J48: 0 | M48: ŽLB zeď 400mm | N48: 3783.6 | O48: 0.2797202797 | P48: 1.43 | Q48: 400 | R48: 1000
F49: Suma jednotlivých váh konstrukcí | J49: =SUM(J43:J48) -> 302.54 | M49: Omítka vnitřní Cemix 032 10mm | N49: 120 | O49: 0.02631578947 | P49: 0.38 | Q49: 10 | R49: =2000*Tabulka4[[#This Row],[tloušťka d (mm)]]/1000 -> 20
F50: Posouzení stěny spínač | G50: =IF(J49>100,1,0) -> 1 | H50: Součinitel prostupu tepla U | J50: =1/(SUM(Úvod!E37:E42)+0.13+0.04) -> 0.2072570315 | M50: Omítka vnitřní štuk Cemix 033 15mm | N50: 171 | O50: 0.03488372093 | P50: 0.43 | Q50: 15 | R50: =2000*Tabulka4[[#This Row],[tloušťka d (mm)]]/1000 -> 30
M51: Omítka vnitřní VC Cemix MCV 073 5mm | N51: 90.4 | O51: 0.01041666667 | P51: 0.48 | Q51: 5 | R51: =2000*Tabulka4[[#This Row],[tloušťka d (mm)]]/1000 -> 10
M52: Omítka vnitřní VS Cemix 016 10mm | N52: 161 | O52: 0.02127659574 | P52: 0.47 | Q52: 10 | R52: =2000*Tabulka4[[#This Row],[tloušťka d (mm)]]/1000 -> 20
M53: Omítka vnější VC Cemix 032 15mm | N53: 136 | O53: 0.03947368421 | P53: 0.38 | Q53: 15 | R53: =2000*Tabulka4[[#This Row],[tloušťka d (mm)]]/1000 -> 30
M54: Omítka vnější štuk Cemix 023j 20mm | N54: 203 | O54: 0.04651162791 | P54: 0.43 | Q54: 20 | R54: =2000*Tabulka4[[#This Row],[tloušťka d (mm)]]/1000 -> 40
M55: Omítka vnější tenko.2mm +sklovlak. (akrylátová rýhovaná) | N55: 354 | O55: 0.01315789474 | P55: 0.38 | Q55: 5 | R55: 3.5
M56: Omítka vnější tenko. 2mm+ sklovlak. | N56: 304 | O56: 0.01315789474 | P56: 0.38 | Q56: 5 | R56: =700*Tabulka4[[#This Row],[tloušťka d (mm)]]/1000 -> 3.5

Sheet Střecha
M1: Možné varianty vrstev střechy
D2: Přesahy střechy výpočet | L2: Vrstvy přesahů | M2: Sloupec1 | N2: Cena | O2: tepelny odpor R | P2: lambda λ | Q2: tloušťka d | R2: =Podlahy!R2 -> Vrstva | S2: =Podlahy!S2 -> Nastavování vrstev | T2: =Podlahy!T2 -> Výsledek nastavení | U2: Vrstvi nic | X2: Posouzení nic | Y2: Posouzený pro dáné kce | Z2: pro cenu
D3: Rozměr střechy s přesahy v ose x | F3: =Úvod!B7+2*Úvod!H67 -> 16 | G3: TRUE | H3: TRUE | I3: =IF(G3=TRUE,1,0) -> 1 | J3: 1 | L3: =IF(I3=1,Úvod!A51,"") -> Taška betonová Moravská plus 33,5x42 | M3: Nic | N3: 0 | O3: 0 | P3: 0 | Q3: 0 | R3: 1 | S3: TRUE | T3: =IF(S3=TRUE,1,0) -> 1 | U3: =Úvod!A51 -> Taška betonová Moravská plus 33,5x42 | X3: =IF(U3="Nic",0,1) -> 1 | Y3: =X3*T3 -> 1 | Z3: =IF((SUM(X3:X8))>0,1,0) -> 1
G4: TRUE | H4: TRUE | I4: 1 | J4: 1 | L4: =IF(I4=1,Úvod!A52,"") -> Laťování 30x50 150-360mm max60° | M4: Asf. Pás Bitagit 40 mineral | N4: 198.9 | O4: =(Q4/1000)/P4 -> 0.01904761905 | P4: 0.21 | Q4: 4 | R4: 2 | S4: TRUE | T4: 1 | U4: =Úvod!A52 -> Laťování 30x50 150-360mm max60° | X4: 1 | Y4: 1
D5: Rozměr střechy s přesahy v ose y | F5: =Úvod!B8+2*Úvod!H65 -> 10 | G5: TRUE | H5: FALSE | I5: 1 | J5: 0 | L5: =IF(I5=1,Úvod!A53,"") -> Folie podstřešní difuzní JUTAFOL D | M5: Asf. Pás Bitubitagit PE V60S35 | N5: 173.49 | O5: 0.01666666667 | P5: 0.21 | Q5: 3.5 | R5: 3 | S5: TRUE | T5: 1 | U5: =Úvod!A53 -> Folie podstřešní difuzní JUTAFOL D | X5: 1 | Y5: 1
G6: FALSE | H6: TRUE | I6: 0 | J6: 1 | L6: =IF(I6=1,Úvod!A54,"") ->  | M6: Asf. Pás Bitubitagit V60 design barevný | N6: 185.7 | O6: 0.01904761905 | P6: 0.21 | Q6: 4 | R6: 4 | S6: TRUE | T6: 1 | U6: =Úvod!A54 -> Kontrolatě po 1m sklon do 60° 30x50 | X6: 1 | Y6: 1
D7: Plocha střechy s přesahy | F7: =Úvod!Q5*((Střecha!F5/Střecha!F9)*Střecha!F3)+Úvod!R5*((Střecha!F3/Střecha!F9)*Střecha!F5) -> 208.8651663 | G7: FALSE | H7: TRUE | I7: 0 | J7: 1 | L7: =IF(I7=1,Úvod!A55,"") ->  | M7: Asf. Pás Dekbit V60 | N7: 180.42 | O7: 0.01666666667 | P7: 0.21 | Q7: 3.5 | R7: 5 | S7: TRUE | T7: 1 | U7: =Úvod!A55 -> Parotěsná folie JUTAFOL N 140g SDK podhled | X7: 1 | Y7: 1
G8: TRUE | H8: FALSE | I8: 1 | J8: 0 | L8: =IF(I8=1,Úvod!A56,"") -> SDK podkroví +300 mm ISOVER ORSIK | M8: Asf. Pás Extrasklobit PE (G200 S 40) | N8: 216.5 | O8: 0.01904761905 | P8: 0.21 | Q8: 4 | R8: 6 | S8: TRUE | T8: 1 | U8: =Úvod!A56 -> SDK podkroví +300 mm ISOVER ORSIK | X8: 1 | Y8: 1
D9: Úhel sklonu střechy | F9: =COS(Úvod!B10*PI()/180) -> 0.7660444431 | H9: cena | I9: v presahu | J9: uvazovane | M9: Asf. Pás Glasbit G200 S40 | N9: 234.1 | O9: 0.01904761905 | P9: 0.21 | Q9: 4 | X9: =IF(SUM(Y3:Y8)>0,1,0) -> 1
H10: =Úvod!D51 -> 452 | I10: =H10*I3 -> 452 | J10: =H10*I3*J3 -> 452 | M10: Asfaltový nátěr střecha do 10° | N10: 21.623 | O10: 0 | P10: 0 | Q10: 0
H11: =Úvod!D52 -> 70.54 | I11: 70.54 | J11: 70.54 | M11: Asfaltový nátěr střecha nad 10° | N11: 23.303 | O11: 0 | P11: 0 | Q11: 0
H12: =Úvod!D53 -> 48.2 | I12: 48.2 | J12: 0 | M12: Betonová mazanina 50mm | N12: 175.825 | O12: =(Q12/1000)/P12 -> 0.03496503497 | P12: 1.43 | Q12: 50
H13: =Úvod!D54 -> 19.15 | I13: 0 | J13: 0 | M13: Betonová mazanina 60mm | N13: 210.99 | O13: 0.04195804196 | P13: 1.43 | Q13: 60
H14: =Úvod!D55 -> 49.2 | I14: 0 | J14: 0 | M14: Betonová mazanina 70mm | N14: 246.155 | O14: 0.04895104895 | P14: 1.43 | Q14: 70
H15: =Úvod!D56 -> 1200 | I15: 1200 | J15: 0 | M15: Deska Cetris na sraz šroub krokev 12 | N15: 306 | O15: 0.03428571429 | P15: 0.35 | Q15: 12
I16: =SUM(I10:I15) -> 1770.74 | J16: =SUM(J10:J15) -> 522.54 | M16: Deska Cetris na sraz šroub krokev 14 | N16: 351 | O16: 0.04 | P16: 0.35 | Q16: 14
M17: Deska Cetris na sraz šroub krokev 16 | N17: 383 | O17: 0.04571428571 | P17: 0.35 | Q17: 16
D18: Výpočet ceny krovu | M18: Deska Cetris na sraz šroub krokev 18 | N18: 421 | O18: 0.05142857143 | P18: 0.35 | Q18: 18
D19: Jedná se o sedlovou střechu | F19: =IF(Úvod!B10>0,1,0) -> 1 | M19: Deska Cetris na sraz šroub krokev 20 | N19: 460 | O19: 0.05714285714 | P19: 0.35 | Q19: 20
D20: Cena hambálku (Kč) | F20: 919 | M20: Folie podstřešní difuzní JUTAFOL D | N20: 48.2 | O20: 0.00125 | P20: 0.2 | Q20: 0.25
D21: Cena složitějšího krovu (Kč) | F21: 1200 | M21: Hydroizolace Fatrafol 804 | N21: 418.4 | O21: 0.0125 | P21: 0.16 | Q21: 2
D22: Max rozpětí hambálku (m) | F22: 10.1 | M22: Kontrolatě po 1m sklon do 60° 30x50 | N22: 19.15 | O22: 0 | P22: 0 | Q22: 30
D23: Rozpětí X (m) | F23: =Úvod!B7 -> 14 | M23: Kontrolatě po 1m sklon do 60° 40x50 | N23: 22.73 | O23: 0 | P23: 0 | Q23: 40
D24: Rozpětí Y (m) | F24: =Úvod!B8 -> 8 | M24: Kontrolatě po 1m sklon do 60° 50x52 | N24: 26.31 | O24: 0 | P24: 0 | Q24: 50
D25: Posouzení X (Kč) | F25: =IF(F23<F22,F20,F21) -> 1200 | M25: Laťování 30x50 150-360mm max60° | N25: 70.54 | O25: 0 | P25: 0 | Q25: 30
D26: Posouzení Y (Kč) | F26: =IF(F24<F22,F20,F21) -> 919 | M26: Laťování 40x50 150-360mm max60° | N26: 81.5 | O26: 0 | P26: 0 | Q26: 40
D27: Spínač hřebene | F27: =Úvod!Q5 -> 0 | G27: =Úvod!R5 -> 1 | M27: Laťování 50x50 150-360mm max60° | N27: 92.2 | O27: 0 | P27: 0 | Q27: 50
D28: Cena daného krovu za m2 (Kč) | F28: =F19*(F27*F26+G27*F25) -> 1200 | M28: Omítka vnitřní Cemix 032 10mm | N28: 135 | O28: =(Q28/1000)/P28 -> 0.02631578947 | P28: 0.38 | Q28: 10
M29: Omítka vnitřní štuk Cemix 033 15mm | N29: 198 | O29: 0.03488372093 | P29: 0.43 | Q29: 15
M30: Omítka vnitřní VC Cemix MCV 073 5mm | N30: 106 | O30: 0.01041666667 | P30: 0.48 | Q30: 5
M31: Omítka vnitřní VS Cemix 016 10mm | N31: 188 | O31: 0.02127659574 | P31: 0.47 | Q31: 10
M32: OSB deska na sraz šroub krokev 15mm | N32: 275 | O32: 0.1153846154 | P32: 0.13 | Q32: 15
M33: OSB deska na sraz šroub krokev 18mm | N33: 314 | O33: 0.1384615385 | P33: 0.13 | Q33: 18
M34: OSB deska na sraz šroub krokev 22mm | N34: 368 | O34: 0.1692307692 | P34: 0.13 | Q34: 22
M35: OSB deska na sraz šroub krokev 25mm | N35: 411 | O35: 0.1923076923 | P35: 0.13 | Q35: 25
M36: Parotěsná folie JUTAFOL N 140g SDK podhled | N36: 49.2 | O36: 0.00125 | P36: 0.2 | Q36: 0.25
M37: Polystyren EPS 100mm (pro ploch. střechu) | N37: 261.9 | O37: =(Q37/1000)/P37 -> 2.5 | P37: 0.04 | Q37: 100
M38: Polystyren EPS 120mm (pro ploch. střechu) | N38: 309.2 | O38: 3 | P38: 0.04 | Q38: 120
M39: Polystyren EPS 140mm (pro ploch. střechu) | N39: 356.5 | O39: 3.5 | P39: 0.04 | Q39: 140
M40: Polystyren EPS 160mm (pro ploch. střechu) | N40: 403.8 | O40: 4 | P40: 0.04 | Q40: 160
M41: Polystyren EPS 180mm (pro ploch. střechu) | N41: 450 | O41: 4.5 | P41: 0.04 | Q41: 180
M42: Polystyren EPS 200mm (pro ploch. střechu) | N42: 476.4 | O42: 5 | P42: 0.04 | Q42: 200
M43: Polystyren EPS 20mm (pro ploch. střechu) | N43: 73.58 | O43: 0.5 | P43: 0.04 | Q43: 20
M44: Polystyren EPS 30mm (pro ploch. střechu) | N44: 97.01 | O44: 0.75 | P44: 0.04 | Q44: 30
M45: Polystyren EPS 40mm (pro ploch. střechu) | N45: 120.55 | O45: 1 | P45: 0.04 | Q45: 40
M46: Polystyren EPS 50mm (pro ploch. střechu) | N46: 144.2 | O46: 1.25 | P46: 0.04 | Q46: 50
M47: Polystyren EPS 60mm (pro ploch. střechu) | N47: 168.4 | O47: 1.5 | P47: 0.04 | Q47: 60
M48: Polystyren EPS 80mm (pro ploch. střechu) | N48: 215.7 | O48: 2 | P48: 0.04 | Q48: 80
M49: SDK podkroví +200 mm ISOVER ORSIK | N49: 946 | O49: 6.05 | P49: 0.038 | Q49: 230
M50: SDK podkroví +240 mm ISOVER ORSIK | N50: 1110.9 | O50: 6.45 | P50: 0.038 | Q50: 270
M51: SDK podkroví +250 mm ISOVER ORSIK | N51: 1125.3 | O51: 6.71 | P51: 0.038 | Q51: 280
M52: SDK podkroví +260 mm ISOVER ORSIK | N52: 1139.8 | O52: 6.97 | P52: 0.038 | Q52: 290
M53: SDK podkroví +280 mm ISOVER ORSIK | N53: 1170 | O53: 7.5 | P53: 0.038 | Q53: 310
M54: SDK podkroví +300 mm ISOVER ORSIK | N54: 1200 | O54: 8.02 | P54: 0.038 | Q54: 330
M55: Taška betonová Moravská plus 33,5x42 | N55: 452 | O55: 0 | P55: 0
M56: Taška keramická bobrovka glazovaná 18x38 | N56: 1060 | O56: =(Q56/1000)/P56 -> 0 | P56: 1.43
M57: Taška keramická bobrovka režná 18x38 | N57: 737 | O57: =(Q57/1000)/P57 -> 0 | P57: 1.43
M58: Taška keramická Stodo 12 režná 27,5x43 | N58: 483 | O58: 0 | P58: 0
M59: ŽLB deska 200mm | N59: =2640*Tabulka46[[#This Row],[tloušťka d]]/1000+358+104+120+27+38400*0.15*Tabulka46[[#This Row],[tloušťka d]]/1000 -> 2289 | O59: =(Q59/1000)/P59 -> 0.1398601399 | P59: 1.43 | Q59: 200
M60: ŽLB deska 250mm | N60: =2640*Tabulka46[[#This Row],[tloušťka d]]/1000+358+104+120+27+38400*0.15*Tabulka46[[#This Row],[tloušťka d]]/1000 -> 2709 | O60: =(Q60/1000)/P60 -> 0.1748251748 | P60: 1.43 | Q60: 250
M62: =1/(SUM(Úvod!E51:E56)+0.13+0.04) -> 0.1220628624

Sheet Teplotní oblasti
A3: Teplotní oblasti České republiky v zimním období,jejich průměrná nadmořská výška základní návrhová teplota venkovního vzduchu a teplotní gradient
A4: Teplotní oblast | B4: Průměrná nadmořská výška v teplotní oblasti hm (m n.m.) | C4: Základní návrhová teplota venkovního vzduchu pro 100 m n.m. θe,100 (°C) | D4: Základní teplotní gradient nad 100 m n.m. ∆θe,0
A6: 1 | B6: 240 | C6: -12 | D6: -0.5
A7: 2 | B7: 320 | C7: -14 | D7: -0.3
A8: 3 | B8: 540 | C8: -16 | D8: -0.2
A9: 4 | B9: 820 | C9: -18 | D9: -0.2
A10: zvolene θe,100 = | B10: =VLOOKUP(Úvod!C65,$A$6:$D$9,3,0) -> -16 | C10: zvolené ∆θe,100 = | D10: =VLOOKUP(Úvod!C65,$A$6:$D$9,4,0) -> -0.2
A11: θe (°C) nezaokrouhlené | B11: =B10+(D10*((Úvod!C66-100)/100)) -> -16.92

Sheet Výsledky simulace
A1: Výsledky simulace
A2: Minimální cena objektu | D2: =S3 -> 1832347.421 | F2: Maximální cena objektu | I2: =T3 -> 10005975.67 | L2: Medián ceny objektu | O2: =U3 -> 4953807.327 | S2: Min | T2: Max | U2: Median | AF2: =D2 -> 1832347.421 | AG2: =O2 -> 4953807.327
A3: Plocha střešních oken (m2) | B3: Rozměr X (m) | C3: Rozměr Y (m) | D3: Rozměr Z (m) | E3: Plocha zdí (m2) | F3: Plocha oken (m2) | G3: Plocha štítů (m2) | H3: Plocha podlahy (m2) | I3: Plocha střechy (m2) | J3: Celková plocha (m2) | K3: Obvod objektu (m) | L3: Objem objektu (m3) | M3: Okna (Kč) | N3: Podlaha (Kč) | O3: Stěna (Kč) | P3: Střecha obálka (Kč) | Q3: Střecha přesahy (Kč) | R3: Cena celkem (Kč) | S3: =MIN(R4:R3319) -> 1832347.421 | T3: =MAX(R4:R3319) -> 10005975.67 | U3: =MEDIAN(R4:R3319) -> 4953807.327 | V3: Sklon střechy (°) | W3: Střešní okna (Kč) | X3: A/V | Y3: A *Uem | Z3: V *Uem | AA3: cena/m3 | AB3: cena/(A/v) | AC3: cena/W/k | AD3: Uem (W/(m2.K) | AF3: =I2 -> 10005975.67
A4: 10 | B4: 10 | C4: 8 | D4: 10 | E4: 295 | F4: 65 | G4: 41.95498156 | H4: 80 | I4: 94.43258315 | J4: 586.3875647 | K4: 36 | L4: 967.8199262 | M4: 353275 | N4: 205483.04 | O4: 900343.7107 | P4: 239395.0972 | Q4: 32420.5733 | R4: 1832347.421 | V4: 40 | W4: 101430 | X4: 0.6058849883 | Y4: 231.0470856 | Z4: 381.3381914 | AA4: 1893.273089 | AB4: 3024249.58 | AC4: 4805.045659 | AD4: 0.3940177104
A5: 10 | B5: 10 | C5: 8 | D5: 11 | E5: 331 | F5: 65 | G5: 41.95498156 | H5: 80 | I5: 94.43258315 | J5: 622.3875647 | K5: 36 | L5: 1047.819926 | M5: 353275 | N5: 205483.04 | O5: 996535.7107 | P5: 239395.0972 | Q5: 32420.5733 | R5: 1928539.421 | V5: 40 | W5: 101430 | X5: 0.5939833259 | Y5: 242.1083388 | Z5: 407.6012376 | AA5: 1840.525622 | AB5: 3246790.503 | AC5: 4731.436618 | AD5: 0.3889993189
A6: 10 | B6: 10 | C6: 8 | D6: 12 | E6: 367 | F6: 65 | G6: 41.95498156 | H6: 80 | I6: 94.43258315 | J6: 658.3875647 | K6: 36 | L6: 1127.819926 | M6: 353275 | N6: 205483.04 | O6: 1092727.711 | P6: 239395.0972 | Q6: 32420.5733 | R6: 2024731.421 | V6: 40 | W6: 101430 | X6: 0.583770112 | Y6: 253.1695919 | Z6: 433.6802907 | AA6: 1795.261259 | AB6: 3468371.161 | AC6: 4668.719019 | AD6: 0.3845297291
A7: 10 | B7: 10 | C7: 8 | D7: 13 | E7: 403 | F7: 65 | G7: 41.95498156 | H7: 80 | I7: 94.43258315 | J7: 694.3875647 | K7: 36 | L7: 1207.819926 | M7: 353275 | N7: 205483.04 | O7: 1188919.711 | P7: 239395.0972 | Q7: 32420.5733 | R7: 2120923.421 | V7: 40 | W7: 101430 | X7: 0.5749098434 | Y7: 264.230845 | Z7: 459.6039675 | AA7: 1755.993071 | AB7: 3689140.907 | AC7: 4614.676049 | AD7: 0.3805235843
A8: 10 | B8: 10 | C8: 8 | D8: 14 | E8: 439 | F8: 65 | G8: 41.95498156 | H8: 80 | I8: 94.43258315 | J8: 730.3875647 | K8: 36 | L8: 1287.819926 | M8: 353275 | N8: 205483.04 | O8: 1285111.711 | P8: 239395.0972 | Q8: 32420.5733 | R8: 2217115.421 | V8: 40 | W8: 101430 | X8: 0.5671503832 | Y8: 275.2920982 | Z8: 485.3952431 | AA8: 1721.6036 | AB8: 3909219.647 | AC8: 4567.649668 | AD8: 0.3769123565
A9: 10 | B9: 10 | C9: 8 | D9: 15 | E9: 475 | F9: 65 | G9: 41.95498156 | H9: 80 | I9: 94.43258315 | J9: 766.3875647 | K9: 36 | L9: 1367.819926 | M9: 353275 | N9: 205483.04 | O9: 1381303.711 | P9: 239395.0972 | Q9: 32420.5733 | R9: 2313307.421 | V9: 40 | W9: 101430 | X9: 0.5602985817 | Y9: 286.3533513 | Z9: 511.0727756 | AA9: 1691.236819 | AB9: 4128704.76 | AC9: 4526.375757 | AD9: 0.3736403936
A10: 10 | B10: 10 | C10: 8 | D10: 16 | E10: 511 | F10: 65 | G10: 41.95498156 | H10: 80 | I10: 94.43258315 | J10: 802.3875647 | K10: 36 | L10: 1447.819926 | M10: 353275 | N10: 205483.04 | O10: 1477495.711 | P10: 239395.0972 | Q10: 32420.5733 | R10: 2409499.421 | V10: 40 | W10: 101430 | X10: 0.5542039795 | Y10: 297.4146044 | Z10: 536.6518745 | AA10: 1664.225901 | AB10: 4347676.145 | AC10: 4489.874229 | AD10: 0.3706620311
A11: 10 | B11: 10 | C11: 8 | D11: 17 | E11: 547 | F11: 65 | G11: 41.95498156 | H11: 80 | I11: 94.43258315 | J11: 838.3875647 | K11: 36 | L11: 1527.819926 | M11: 353275 | N11: 205483.04 | O11: 1573687.711 | P11: 239395.0972 | Q11: 32420.5733 | R11: 2505691.421 | V11: 40 | W11: 101430 | X11: 0.5487476307 | Y11: 308.4758576 | Z11: 562.1452199 | AA11: 1640.043685 | AB11: 4566199.981 | AC11: 4457.373882 | AD11: 0.3679394478
A12: 10 | B12: 10 | C12: 8 | D12: 18 | E12: 583 | F12: 65 | G12: 41.95498156 | H12: 80 | I12: 94.43258315 | J12: 874.3875647 | K12: 36 | L12: 1607.819926 | M12: 353275 | N12: 205483.04 | O12: 1669879.711 | P12: 239395.0972 | Q12: 32420.5733 | R12: 2601883.421 | V12: 40 | W12: 101430 | X12: 0.5438342631 | Y12: 319.5371107 | Z12: 587.5634038 | AA12: 1618.267928 | AB12: 4784331.547 | AC12: 4428.259835 | AD12: 0.3654410511
A13: 10 | B13: 10 | C13: 8 | D13: 19 | E13: 619 | F13: 65 | G13: 41.95498156 | H13: 80 | I13: 94.43258315 | J13: 910.3875647 | K13: 36 | L13: 1687.819926 | M13: 353275 | N13: 205483.04 | O13: 1766071.711 | P13: 239395.0972 | Q13: 32420.5733 | R13: 2698075.421 | V13: 40 | W13: 101430 | X13: 0.5393866671 | Y13: 330.5983638 | Z13: 612.9153425 | AA13: 1598.556445 | AB13: 5002117.378 | AC13: 4402.03603 | AD13: 0.3631402456
A14: 10 | B14: 10 | C14: 8 | D14: 20 | E14: 655 | F14: 65 | G14: 41.95498156 | H14: 80 | I14: 94.43258315 | J14: 946.3875647 | K14: 36 | L14: 1767.819926 | M14: 353275 | N14: 205483.04 | O14: 1862263.711 | P14: 239395.0972 | Q14: 32420.5733 | R14: 2794267.421 | V14: 40 | W14: 101430 | X14: 0.5353416095 | Y14: 341.659617 | Z14: 638.2085959 | AA14: 1580.628988 | AB14: 5219596.929 | AC14: 4378.298003 | AD14: 0.3610144825
A15: 10 | B15: 10 | C15: 8 | D15: 21 | E15: 691 | F15: 65 | G15: 41.95498156 | H15: 80 | I15: 94.43258315 | J15: 982.3875647 | K15: 36 | L15: 1847.819926 | M15: 353275 | N15: 205483.04 | O15: 1958455.711 | P15: 239395.0972 | Q15: 32420.5733 | R15: 2890459.421 | V15: 40 | W15: 101430 | X15: 0.5316468075 | Y15: 352.7208701 | Z15: 663.4496156 | AA15: 1564.253843 | AB15: 5436803.871 | AC15: 4356.712783 | AD15: 0.3590445184
A16: 10 | B16: 10 | C16: 8 | D16: 22 | E16: 727 | F16: 65 | G16: 41.95498156 | H16: 80 | I16: 94.43258315 | J16: 1018.387565 | K16: 36 | L16: 1927.819926 | M16: 353275 | N16: 205483.04 | O16: 2054647.711 | P16: 239395.0972 | Q16: 32420.5733 | R16: 2986651.421 | V16: 40 | W16: 101430 | X16: 0.5282586568 | Y16: 363.7821232 | Z16: 688.6439409 | AA16: 1549.237758 | AB16: 5653767.114 | AC16: 4337.003847 | AD16: 0.3572138308
A17: 10 | B17: 10 | C17: 8 | D17: 23 | E17: 763 | F17: 65 | G17: 41.95498156 | H17: 80 | I17: 94.43258315 | J17: 1054.387565 | K17: 36 | L17: 2007.819926 | M17: 353275 | N17: 205483.04 | O17: 2150839.711 | P17: 239395.0972 | Q17: 32420.5733 | R17: 3082843.421 | V17: 40 | W17: 101430 | X17: 0.5251405024 | Y17: 374.8433764 | Z17: 713.7963548 | AA17: 1535.418282 | AB17: 5870511.62 | AC17: 4318.939709 | AD17: 0.3555081536
A18: 10 | B18: 10 | C18: 8 | D18: 24 | E18: 799 | F18: 65 | G18: 41.95498156 | H18: 80 | I18: 94.43258315 | J18: 1090.387565 | K18: 36 | L18: 2087.819926 | M18: 353275 | N18: 205483.04 | O18: 2247031.711 | P18: 239395.0972 | Q18: 32420.5733 | R18: 3179035.421 | V18: 40 | W18: 101430 | X18: 0.5222613076 | Y18: 385.9046295 | Z18: 738.9110085 | AA18: 1522.65786 | AB18: 6087059.054 | AC18: 4302.325158 | AD18: 0.353915105
A19: 10 | B19: 10 | C19: 8 | D19: 25 | E19: 835 | F19: 65 | G19: 41.95498156 | H19: 80 | I19: 94.43258315 | J19: 1126.387565 | K19: 36 | L19: 2167.819926 | M19: 353275 | N19: 205483.04 | O19: 2343223.711 | P19: 239395.0972 | Q19: 32420.5733 | R19: 3275227.421 | V19: 40 | W19: 101430 | X19: 0.5195946172 | Y19: 396.9658826 | Z19: 763.9915224 | AA19: 1510.839245 | AB19: 6303428.313 | AC19: 4286.994456 | AD19: 0.3524238859
A20: 10 | B20: 10 | C20: 8 | D20: 26 | E20: 871 | F20: 65 | G20: 41.95498156 | H20: 80 | I20: 94.43258315 | J20: 1162.387565 | K20: 36 | L20: 2247.819926 | M20: 353275 | N20: 205483.04 | O20: 2439415.711 | P20: 239395.0972 | Q20: 32420.5733 | R20: 3371419.421 | V20: 40 | W20: 101430 | X20: 0.517117742 | Y20: 408.0271358 | Z20: 789.0410686 | AA20: 1499.86188 | AB20: 6519635.95 | AC20: 4272.806011 | AD20: 0.3510250351
A21: 10 | B21: 10 | C21: 9 | D21: 10 | E21: 315 | F21: 65 | G21: 41.95498156 | H21: 90 | I21: 107.486656 | J21: 629.4416376 | K21: 38 | L21: 1088.797417 | M21: 353275 | N21: 231168.42 | O21: 953783.7107 | P21: 272488.3469 | Q21: 34041.6019 | R21: 1946187.079 | V21: 40 | W21: 101430 | X21: 0.5781072105 | Y21: 243.0200224 | Z21: 420.371893 | AA21: 1787.46482 | AB21: 3366481.241 | AC21: 4629.679367 | AD21: 0.3860882533
A22: 10 | B22: 10 | C22: 9 | D22: 11 | E22: 353 | F22: 65 | G22: 41.95498156 | H22: 90 | I22: 107.486656 | J22: 667.4416376 | K22: 38 | L22: 1178.797417 | M22: 353275 | N22: 231168.42 | O22: 1055319.711 | P22: 272488.3469 | Q22: 34041.6019 | R22: 2047723.079 | V22: 40 | W22: 101430 | X22: 0.5662055481 | Y22: 254.6957896 | Z22: 449.8292016 | AA22: 1737.128916 | AB22: 3616571.908 | AC22: 4552.223538 | AD22: 0.381600091
A23: 10 | B23: 10 | C23: 9 | D23: 12 | E23: 391 | F23: 65 | G23: 41.95498156 | H23: 90 | I23: 107.486656 | J23: 705.4416376 | K23: 38 | L23: 1268.797417 | M23: 353275 | N23: 231168.42 | O23: 1156855.711 | P23: 272488.3469 | Q23: 34041.6019 | R23: 2149259.079 | V23: 40 | W23: 101430 | X23: 0.5559923343 | Y23: 266.3715568 | Z23: 479.0921392 | AA23: 1693.933997 | AB23: 3865627.181 | AC23: 4486.108002 | AD23: 0.377595456
A24: 10 | B24: 10 | C24: 9 | D24: 13 | E24: 429 | F24: 65 | G24: 41.95498156 | H24: 90 | I24: 107.486656 | J24: 743.4416376 | K24: 38 | L24: 1358.797417 | M24: 353275 | N24: 231168.42 | O24: 1258391.711 | P24: 272488.3469 | Q24: 34041.6019 | R24: 2250795.079 | V24: 40 | W24: 101430 | X24: 0.5471320657 | Y24: 278.047324 | Z24: 508.190511 | AA24: 1656.461111 | AB24: 4113805.826 | AC24: 4429.037991 | AD24: 0.3740002039
A25: 10 | B25: 10 | C25: 9 | D25: 14 | E25: 467 | F25: 65 | G25: 41.95498156 | H25: 90 | I25: 107.486656 | J25: 781.4416376 | K25: 38 | L25: 1448.797417 | M25: 353275 | N25: 231168.42 | O25: 1359927.711 | P25: 272488.3469 | Q25: 34041.6019 | R25: 2352331.079 | V25: 40 | W25: 101430 | X25: 0.5393726055 | Y25: 289.7230912 | Z25: 537.1483243 | AA25: 1623.643894 | AB25: 4361235.732 | AC25: 4379.295202 | AD25: 0.3707546121
A26: 10 | B26: 10 | C26: 9 | D26: 15 | E26: 505 | F26: 65 | G26: 41.95498156 | H26: 90 | I26: 107.486656 | J26: 819.4416376 | K26: 38 | L26: 1538.797417 | M26: 353275 | N26: 231168.42 | O26: 1461463.711 | P26: 272488.3469 | Q26: 34041.6019 | R26: 2453867.079 | V26: 40 | W26: 101430 | X26: 0.5325208039 | Y26: 301.3988584 | Z26: 565.9851337 | AA26: 1594.665453 | AB26: 4608021.06 | AC26: 4335.56808 | AD26: 0.3678100362
A27: 10 | B27: 10 | C27: 9 | D27: 16 | E27: 543 | F27: 65 | G27: 41.95498156 | H27: 90 | I27: 107.486656 | J27: 857.4416376 | K27: 38 | L27: 1628.797417 | M27: 353275 | N27: 231168.42 | O27: 1562999.711 | P27: 272488.3469 | Q27: 34041.6019 | R27: 2555403.079 | V27: 40 | W27: 101430 | X27: 0.5264262017 | Y27: 313.0746256 | Z27: 594.717027 | AA27: 1568.889447 | AB27: 4854247.511 | AC27: 4296.838603 | AD27: 0.3651264551
A28: 10 | B28: 10 | C28: 9 | D28: 17 | E28: 581 | F28: 65 | G28: 41.95498156 | H28: 90 | I28: 107.486656 | J28: 895.4416376 | K28: 38 | L28: 1718.797417 | M28: 353275 | N28: 231168.42 | O28: 1664535.711 | P28: 272488.3469 | Q28: 34041.6019 | R28: 2656939.079 | V28: 40 | W28: 101430 | X28: 0.520969853 | Y28: 324.7503928 | Z28: 623.3573612 | AA28: 1545.812818 | AB28: 5099986.236 | AC28: 4262.304811 | AD28: 0.3626706411
A29: 10 | B29: 10 | C29: 9 | D29: 18 | E29: 619 | F29: 65 | G29: 41.95498156 | H29: 90 | I29: 107.486656 | J29: 933.4416376 | K29: 38 | L29: 1808.797417 | M29: 353275 | N29: 231168.42 | O29: 1766071.711 | P29: 272488.3469 | Q29: 34041.6019 | R29: 2758475.079 | V29: 40 | W29: 101430 | X29: 0.5160564853 | Y29: 336.42616 | Z29: 651.9173184 | AA29: 1525.032629 | AB29: 5345296.8 | AC29: 4231.326584 | AD29: 0.3604147774
A30: 10 | B30: 10 | C30: 9 | D30: 19 | E30: 657 | F30: 65 | G30: 41.95498156 | H30: 90 | I30: 107.486656 | J30: 971.4416376 | K30: 38 | L30: 1898.797417 | M30: 353275 | N30: 231168.42 | O30: 1867607.711 | P30: 272488.3469 | Q30: 34041.6019 | R30: 2860011.079 | V30: 40 | W30: 101430 | X30: 0.5116088893 | Y30: 348.1019272 | Z30: 680.4063308 | AA30: 1506.222335 | AB30: 5590229.449 | AC30: 4203.386932 | AD30: 0.3583353994
A31: 10 | B31: 10 | C31: 9 | D31: 20 | E31: 695 | F31: 65 | G31: 41.95498156 | H31: 90 | I31: 107.486656 | J31: 1009.441638 | K31: 38 | L31: 1988.797417 | M31: 353275 | N31: 231168.42 | O31: 1969143.711 | P31: 272488.3469 | Q31: 34041.6019 | R31: 2961547.079 | V31: 40 | W31: 101430 | X31: 0.5075638318 | Y31: 359.7776944 | Z31: 708.8324106 | AA31: 1489.114504 | AB31: 5834826.861 | AC31: 4178.063863 | AD31: 0.356412576
A32: 10 | B32: 10 | C32: 9 | D32: 21 | E32: 733 | F32: 65 | G32: 41.95498156 | H32: 90 | I32: 107.486656 | J32: 1047.441638 | K32: 38 | L32: 2078.797417 | M32: 353275 | N32: 231168.42 | O32: 2070679.711 | P32: 272488.3469 | Q32: 34041.6019 | R32: 3063083.079 | V32: 40 | W32: 101430 | X32: 0.5038690298 | Y32: 371.4534616 | Z32: 737.2024071 | AA32: 1473.488015 | AB32: 6079125.524 | AC32: 4155.009601 | AD32: 0.3546292684
A33: 10 | B33: 10 | C33: 9 | D33: 22 | E33: 771 | F33: 65 | G33: 41.95498156 | H33: 90 | I33: 107.486656 | J33: 1085.441638 | K33: 38 | L33: 2168.797417 | M33: 353275 | N33: 231168.42 | O33: 2172215.711 | P33: 272488.3469 | Q33: 34041.6019 | R33: 3164619.079 | V33: 40 | W33: 101430 | X33: 0.500480879 | Y33: 383.1292288 | Z33: 765.5222105 | AA33: 1459.158451 | AB33: 6323156.813 | AC33: 4133.935027 | AD33: 0.3529708236
A34: 10 | B34: 10 | C34: 9 | D34: 23 | E34: 809 | F34: 65 | G34: 41.95498156 | H34: 90 | I34: 107.486656 | J34: 1123.441638 | K34: 38 | L34: 2258.797417 | M34: 353275 | N34: 231168.42 | O34: 2273751.711 | P34: 272488.3469 | Q34: 34041.6019 | R34: 3266155.079 | V34: 40 | W34: 101430 | X34: 0.4973627246 | Y34: 394.804996 | Z34: 793.7969141 | AA34: 1445.970787 | AB34: 6566947.859 | AC34: 4114.597854 | AD34: 0.3514245714
A35: 10 | B35: 10 | C35: 9 | D35: 24 | E35: 847 | F35: 65 | G35: 41.95498156 | H35: 90 | I35: 107.486656 | J35: 1161.441638 | K35: 38 | L35: 2348.797417 | M35: 353275 | N35: 231168.42 | O35: 2375287.711 | P35: 272488.3469 | Q35: 34041.6019 | R35: 3367691.079 | V35: 40 | W35: 101430 | X35: 0.4944835298 | Y35: 406.4807632 | Z35: 822.0309447 | AA35: 1433.79376 | AB35: 6810522.245 | AC35: 4096.793559 | AD35: 0.3499794996
A36: 10 | B36: 10 | C36: 9 | D36: 25 | E36: 885 | F36: 65 | G36: 41.95498156 | H36: 90 | I36: 107.486656 | J36: 1199.441638 | K36: 38 | L36: 2438.797417 | M36: 353275 | N36: 231168.42 | O36: 2476823.711 | P36: 272488.3469 | Q36: 34041.6019 | R36: 3469227.079 | V36: 40 | W36: 101430 | X36: 0.4918168394 | Y36: 418.1565304 | Z36: 850.228168 | AA36: 1422.515481 | AB36: 7053900.561 | AC36: 4080.348323 | AD36: 0.3486259917
A37: 10 | B37: 10 | C37: 9 | D37: 26 | E37: 923 | F37: 65 | G37: 41.95498156 | H37: 90 | I37: 107.486656 | J37: 1237.441638 | K37: 38 | L37: 2528.797417 | M37: 353275 | N37: 231168.42 | O37: 2578359.711 | P37: 272488.3469 | Q37: 34041.6019 | R37: 3570763.079 | V37: 40 | W37: 101430 | X37: 0.4893399642 | Y37: 429.8322976 | Z37: 878.3919749 | AA37: 1412.03999 | AB37: 7297100.872 | AC37: 4065.113505 | AD37: 0.3473556122
A38: 10 | B38: 10 | C38: 10 | D38: 10 | E38: 335 | F38: 65 | G38: 41.95498156 | H38: 100 | I38: 120.5407289 | J38: 672.4957105 | K38: 40 | L38: 1209.774908 | M38: 353275 | N38: 256853.8 | O38: 1007223.711 | P38: 305581.5965 | Q38: 35662.6306 | R38: 2060026.738 | V38: 40 | W38: 101430 | X38: 0.5558849883 | Y38: 254.9929592 | Z38: 458.7153181 | AA38: 1702.818206 | AB38: 3705850.637 | AC38: 4490.861013 | AD38: 0.3791741051
A39: 10 | B39: 10 | C39: 10 | D39: 11 | E39: 375 | F39: 65 | G39: 41.95498156 | H39: 100 | I39: 120.5407289 | J39: 712.4957105 | K39: 40 | L39: 1309.774908 | M39: 353275 | N39: 256853.8 | O39: 1114103.711 | P39: 305581.5965 | Q39: 35662.6306 | R39: 2166906.738 | V39: 40 | W39: 101430 | X39: 0.5439833259 | Y39: 267.2832405 | Z39: 491.3445464 | AA39: 1654.411552 | AB39: 3983406.54 | AC39: 4410.1573 | AD39: 0.3751366311
A40: 10 | B40: 10 | C40: 10 | D40: 12 | E40: 415 | F40: 65 | G40: 41.95498156 | H40: 100 | I40: 120.5407289 | J40: 752.4957105 | K40: 40 | L40: 1409.774908 | M40: 353275 | N40: 256853.8 | O40: 1220983.711 | P40: 305581.5965 | Q40: 35662.6306 | R40: 2273786.738 | V40: 40 | W40: 101430 | X40: 0.533770112 | Y40: 279.5735218 | Z40: 523.7714054 | AA40: 1612.872186 | AB40: 4259861.477 | AC40: 4341.181505 | AD40: 0.3715283926
A41: 10 | B41: 10 | C41: 10 | D41: 13 | E41: 455 | F41: 65 | G41: 41.95498156 | H41: 100 | I41: 120.5407289 | J41: 792.4957105 | K41: 40 | L41: 1509.774908 | M41: 353275 | N41: 256853.8 | O41: 1327863.711 | P41: 305581.5965 | Q41: 35662.6306 | R41: 2380666.738 | V41: 40 | W41: 101430 | X41: 0.5249098434 | Y41: 291.863803 | Z41: 556.026538 | AA41: 1576.835544 | AB41: 4535382.157 | AC41: 4281.570348 | AD41: 0.3682843947
A42: 10 | B42: 10 | C42: 10 | D42: 14 | E42: 495 | F42: 65 | G42: 41.95498156 | H42: 100 | I42: 120.5407289 | J42: 832.4957105 | K42: 40 | L42: 1609.774908 | M42: 353275 | N42: 256853.8 | O42: 1434743.711 | P42: 305581.5965 | Q42: 35662.6306 | R42: 2487546.738 | V42: 40 | W42: 101430 | X42: 0.5171503832 | Y42: 304.1540843 | Z42: 588.1346976 | AA42: 1545.276129 | AB42: 4810103.247 | AC42: 4229.552767 | AD42: 0.3653521339
A43: 10 | B43: 10 | C43: 10 | D43: 15 | E43: 535 | F43: 65 | G43: 41.95498156 | H43: 100 | I43: 120.5407289 | J43: 872.4957105 | K43: 40 | L43: 1709.774908 | M43: 353275 | N43: 256853.8 | O43: 1541623.711 | P43: 305581.5965 | Q43: 35662.6306 | R43: 2594426.738 | V43: 40 | W43: 101430 | X43: 0.5102985817 | Y43: 316.4443655 | Z43: 620.1160984 | AA43: 1517.408359 | AB43: 5084134.722 | AC43: 4183.775819 | AD43: 0.362688735
A44: 10 | B44: 10 | C44: 10 | D44: 16 | E44: 575 | F44: 65 | G44: 41.95498156 | H44: 100 | I44: 120.5407289 | J44: 912.4957105 | K44: 40 | L44: 1809.774908 | M44: 353275 | N44: 256853.8 | O44: 1648503.711 | P44: 305581.5965 | Q44: 35662.6306 | R44: 2701306.738 | V44: 40 | W44: 101430 | X44: 0.5042039795 | Y44: 328.7346468 | Z44: 651.9874102 | AA44: 1492.620285 | AB44: 5357567.27 | AC44: 4143.188497 | AD44: 0.3602588407
A45: 10 | B45: 10 | C45: 10 | D45: 17 | E45: 615 | F45: 65 | G45: 41.95498156 | H45: 100 | I45: 120.5407289 | J45: 952.4957105 | K45: 40 | L45: 1909.774908 | M45: 353275 | N45: 256853.8 | O45: 1755383.711 | P45: 305581.5965 | Q45: 35662.6306 | R45: 2808186.738 | V45: 40 | W45: 101430 | X45: 0.4987476307 | Y45: 341.024928 | Z45: 683.7625024 | AA45: 1470.428126 | AB45: 5630476.347 | AC45: 4106.962181 | AD45: 0.3580330329
A46: 10 | B46: 10 | C46: 10 | D46: 18 | E46: 655 | F46: 65 | G46: 41.95498156 | H46: 100 | I46: 120.5407289 | J46: 992.4957105 | K46: 40 | L46: 2009.774908 | M46: 353275 | N46: 256853.8 | O46: 1862263.711 | P46: 305581.5965 | Q46: 35662.6306 | R46: 2915066.738 | V46: 40 | W46: 101430 | X46: 0.4938342631 | Y46: 353.3152093 | Z46: 715.4530087 | AA46: 1450.444389 | AB46: 5902925.244 | AC46: 4074.434942 | AD46: 0.3559866361
A47: 10 | B47: 10 | C47: 10 | D47: 19 | E47: 695 | F47: 65 | G47: 41.95498156 | H47: 100 | I47: 120.5407289 | J47: 1032.49571 | K47: 40 | L47: 2109.774908 | M47: 353275 | N47: 256853.8 | O47: 1969143.711 | P47: 305581.5965 | Q47: 35662.6306 | R47: 3021946.738 | V47: 40 | W47: 101430 | X47: 0.4893866671 | Y47: 365.6054906 | Z47: 747.06876 | AA47: 1432.355047 | AB47: 6174967.446 | AC47: 4045.071752 | AD47: 0.3540987985
A48: 10 | B48: 10 | C48: 10 | D48: 20 | E48: 735 | F48: 65 | G48: 41.95498156 | H48: 100 | I48: 120.5407289 | J48: 1072.49571 | K48: 40 | L48: 2209.774908 | M48: 353275 | N48: 256853.8 | O48: 2076023.711 | P48: 305581.5965 | Q48: 35662.6306 | R48: 3128826.738 | V48: 40 | W48: 101430 | X48: 0.4853416095 | Y48: 377.8957718 | Z48: 778.6181205 | AA48: 1415.902917 | AB48: 6446648.456 | AC48: 4018.435553 | AD48: 0.3523517792
A49: 10 | B49: 10 | C49: 10 | D49: 21 | E49: 775 | F49: 65 | G49: 41.95498156 | H49: 100 | I49: 120.5407289 | J49: 1112.49571 | K49: 40 | L49: 2309.774908 | M49: 353275 | N49: 256853.8 | O49: 2182903.711 | P49: 305581.5965 | Q49: 35662.6306 | R49: 3235706.738 | V49: 40 | W49: 101430 | X49: 0.4816468075 | Y49: 390.1860531 | Z49: 810.1082515 | AA49: 1400.875352 | AB49: 6718007.235 | AC49: 3994.165881 | AD49: 0.3507303888
A50: 10 | B50: 10 | C50: 10 | D50: 22 | E50: 815 | F50: 65 | G50: 41.95498156 | H50: 100 | I50: 120.5407289 | J50: 1152.49571 | K50: 40 | L50: 2409.774908 | M50: 353275 | N50: 256853.8 | O50: 2289783.711 | P50: 305581.5965 | Q50: 35662.6306 | R50: 3342586.738 | V50: 40 | W50: 101430 | X50: 0.4782586568 | Y50: 402.4763343 | Z50: 841.54532 | AA50: 1387.095005 | AB50: 6989077.334 | AC50: 3971.962838 | AD50: 0.3492215465
A51: 10 | B51: 10 | C51: 10 | D51: 23 | E51: 855 | F51: 65 | G51: 41.95498156 | H51: 100 | I51: 120.5407289 | J51: 1192.49571 | K51: 40 | L51: 2509.774908 | M51: 353275 | N51: 256853.8 | O51: 2396663.711 | P51: 305581.5965 | Q51: 35662.6306 | R51: 3449466.738 | V51: 40 | W51: 101430 | X51: 0.4751405024 | Y51: 414.7666156 | Z51: 872.9346657 | AA51: 1374.412792 | AB51: 7259887.803 | AC51: 3951.574927 | AD51: 0.3478139267
A52: 10 | B52: 10 | C52: 10 | D52: 24 | E52: 895 | F52: 65 | G52: 41.95498156 | H52: 100 | I52: 120.5407289 | J52: 1232.49571 | K52: 40 | L52: 2609.774908 | M52: 353275 | N52: 256853.8 | O52: 2503543.711 | P52: 305581.5965 | Q52: 35662.6306 | R52: 3556346.738 | V52: 40 | W52: 101430 | X52: 0.4722613076 | Y52: 427.0568969 | Z52: 904.2809351 | AA52: 1362.70248 | AB52: 7530463.92 | AC52: 3932.789689 | AD52: 0.346497674
A53: 10 | B53: 10 | C53: 10 | D53: 25 | E53: 935 | F53: 65 | G53: 41.95498156 | H53: 100 | I53: 120.5407289 | J53: 1272.49571 | K53: 40 | L53: 2709.774908 | M53: 353275 | N53: 256853.8 | O53: 2610423.711 | P53: 305581.5965 | Q53: 35662.6306 | R53: 3663226.738 | V53: 40 | W53: 101430 | X53: 0.4695946172 | Y53: 439.3471781 | Z53: 935.5881904 | AA53: 1351.856469 | AB53: 7800827.786 | AC53: 3915.42644 | AD53: 0.3452641722
A54: 10 | B54: 10 | C54: 10 | D54: 26 | E54: 975 | F54: 65 | G54: 41.95498156 | H54: 100 | I54: 120.5407289 | J54: 1312.49571 | K54: 40 | L54: 2809.774908 | M54: 353275 | N54: 256853.8 | O54: 2717303.711 | P54: 305581.5965 | Q54: 35662.6306 | R54: 3770106.738 | V54: 40 | W54: 101430 | X54: 0.467117742 | Y54: 451.6374594 | Z54: 966.8599986 | AA54: 1341.782478 | AB54: 8070998.806 | AC54: 3899.330558 | AD54: 0.3441058556
A55: 10 | B55: 10 | C55: 11 | D55: 10 | E55: 355 | F55: 65 | G55: 41.95498156 | H55: 110 | I55: 133.5948018 | J55: 715.5497834 | K55: 42 | L55: 1330.752399 | M55: 353275 | N55: 282539.18 | O55: 1060663.711 | P55: 338674.8462 | Q55: 37283.6593 | R55: 2173866.396 | V55: 40 | W55: 101430 | X55: 0.5377031701 | Y55: 266.965896 | Z55: 496.4930669 | AA55: 1633.561885 | AB55: 4042874.428 | AC55: 4378.442603 | AD55: 0.3730919948
A56: 10 | B56: 10 | C56: 11 | D56: 11 | E56: 397 | F56: 65 | G56: 41.95498156 | H56: 110 | I56: 133.5948018 | J56: 757.5497834 | K56: 42 | L56: 1440.752399 | M56: 353275 | N56: 282539.18 | O56: 1172887.711 | P56: 338674.8462 | Q56: 37283.6593 | R56: 2286090.396 | V56: 40 | W56: 101430 | X56: 0.5258015077 | Y56: 279.8706914 | Z56: 532.2744177 | AA56: 1586.733708 | AB56: 4347820.162 | AC56: 4294.946967 | AD56: 0.3694419793
A57: 10 | B57: 10 | C57: 11 | D57: 12 | E57: 439 | F57: 65 | G57: 41.95498156 | H57: 110 | I57: 133.5948018 | J57: 799.5497834 | K57: 42 | L57: 1550.752399 | M57: 353275 | N57: 282539.18 | O57: 1285111.711 | P57: 338674.8462 | Q57: 37283.6593 | R57: 2398314.396 | V57: 40 | W57: 101430 | X57: 0.5155882939 | Y57: 292.7754867 | Z57: 567.8474282 | AA57: 1546.548887 | AB57: 4651607.542 | AC57: 4223.51899 | AD57: 0.3661754312
A58: 10 | B58: 10 | C58: 11 | D58: 13 | E58: 481 | F58: 65 | G58: 41.95498156 | H58: 110 | I58: 133.5948018 | J58: 841.5497834 | K58: 42 | L58: 1660.752399 | M58: 353275 | N58: 282539.18 | O58: 1397335.711 | P58: 338674.8462 | Q58: 37283.6593 | R58: 2510538.396 | V58: 40 | W58: 101430 | X58: 0.5067280253 | Y58: 305.680282 | Z58: 603.2432918 | AA58: 1511.687352 | AB58: 4954410.001 | AC58: 4161.734462 | AD58: 0.3632349363
A59: 10 | B59: 10 | C59: 11 | D59: 14 | E59: 523 | F59: 65 | G59: 41.95498156 | H59: 110 | I59: 133.5948018 | J59: 883.5497834 | K59: 42 | L59: 1770.752399 | M59: 353275 | N59: 282539.18 | O59: 1509559.711 | P59: 338674.8462 | Q59: 37283.6593 | R59: 2622762.396 | V59: 40 | W59: 101430 | X59: 0.4989685651 | Y59: 318.5850773 | Z59: 638.4872708 | AA59: 1481.157048 | AB59: 5256367.996 | AC59: 4107.775544 | AD59: 0.3605739974
A60: 10 | B60: 10 | C60: 11 | D60: 15 | E60: 565 | F60: 65 | G60: 41.95498156 | H60: 110 | I60: 133.5948018 | J60: 925.5497834 | K60: 42 | L60: 1880.752399 | M60: 353275 | N60: 282539.18 | O60: 1621783.711 | P60: 338674.8462 | Q60: 37283.6593 | R60: 2734986.396 | V60: 40 | W60: 101430 | X60: 0.4921167635 | Y60: 331.4898726 | Z60: 673.6000421 | AA60: 1454.19801 | AB60: 5557596.487 | AC60: 4060.252709 | AD60: 0.358154557
A61: 10 | B61: 10 | C61: 11 | D61: 16 | E61: 607 | F61: 65 | G61: 41.95498156 | H61: 110 | I61: 133.5948018 | J61: 967.5497834 | K61: 42 | L61: 1990.752399 | M61: 353275 | N61: 282539.18 | O61: 1734007.711 | P61: 338674.8462 | Q61: 37283.6593 | R61: 2847210.396 | V61: 40 | W61: 101430 | X61: 0.4860221613 | Y61: 344.394668 | Z61: 708.5986924 | AA61: 1430.218242 | AB61: 5858190.475 | AC61: 4018.085874 | AD61: 0.3559451657
A62: 10 | B62: 10 | C62: 11 | D62: 17 | E62: 649 | F62: 65 | G62: 41.95498156 | H62: 110 | I62: 133.5948018 | J62: 1009.549783 | K62: 42 | L62: 2100.752399 | M62: 353275 | N62: 282539.18 | O62: 1846231.711 | P62: 338674.8462 | Q62: 37283.6593 | R62: 2959434.396 | V62: 40 | W62: 101430 | X62: 0.4805658125 | Y62: 357.2994633 | Z62: 743.4974648 | AA62: 1408.74974 | AB62: 6158229.152 | AC62: 3980.422982 | AD62: 0.3539196077
A63: 10 | B63: 10 | C63: 11 | D63: 18 | E63: 691 | F63: 65 | G63: 41.95498156 | H63: 110 | I63: 133.5948018 | J63: 1051.549783 | K63: 42 | L63: 2210.752399 | M63: 353275 | N63: 282539.18 | O63: 1958455.711 | P63: 338674.8462 | Q63: 37283.6593 | R63: 3071658.396 | V63: 40 | W63: 101430 | X63: 0.4756524449 | Y63: 370.2042586 | Z63: 778.308327 | AA63: 1389.417647 | AB63: 6457779.055 | AC63: 3946.582979 | AD63: 0.3520558555
A64: 10 | B64: 10 | C64: 11 | D64: 19 | E64: 733 | F64: 65 | G64: 41.95498156 | H64: 110 | I64: 133.5948018 | J64: 1093.549783 | K64: 42 | L64: 2320.752399 | M64: 353275 | N64: 282539.18 | O64: 2070679.711 | P64: 338674.8462 | Q64: 37283.6593 | R64: 3183882.396 | V64: 40 | W64: 101430 | X64: 0.4712048489 | Y64: 383.1090539 | Z64: 813.0414082 | AA64: 1371.918175 | AB64: 6756896.503 | AC64: 3916.015057 | AD64: 0.3503352657
A65: 10 | B65: 10 | C65: 11 | D65: 20 | E65: 775 | F65: 65 | G65: 41.95498156 | H65: 110 | I65: 133.5948018 | J65: 1135.549783 | K65: 42 | L65: 2430.752399 | M65: 353275 | N65: 282539.18 | O65: 2182903.711 | P65: 338674.8462 | Q65: 37283.6593 | R65: 3296106.396 | V65: 40 | W65: 101430 | X65: 0.4671597914 | Y65: 396.0138493 | Z65: 847.7053389 | AA65: 1356.002527 | AB65: 7055629.481 | AC65: 3888.269007 | AD65: 0.3487419531
A66: 10 | B66: 10 | C66: 11 | D66: 21 | E66: 817 | F66: 65 | G66: 41.95498156 | H66: 110 | I66: 133.5948018 | J66: 1177.549783 | K66: 42 | L66: 2540.752399 | M66: 353275 | N66: 282539.18 | O66: 2295127.711 | P66: 338674.8462 | Q66: 37283.6593 | R66: 3408330.396 | V66: 40 | W66: 101430 | X66: 0.4634649894 | Y66: 408.9186446 | Z66: 882.3075183 | AA66: 1341.464992 | AB66: 7354019.126 | AC66: 3862.973312 | AD66: 0.3472622987
A67: 10 | B67: 10 | C67: 11 | D67: 22 | E67: 859 | F67: 65 | G67: 41.95498156 | H67: 110 | I67: 133.5948018 | J67: 1219.549783 | K67: 42 | L67: 2650.752399 | M67: 353275 | N67: 282539.18 | O67: 2407351.711 | P67: 338674.8462 | Q67: 37283.6593 | R67: 3520554.396 | V67: 40 | W67: 101430 | X67: 0.4600768386 | Y67: 421.8234399 | Z67: 916.8543263 | AA67: 1328.134004 | AB67: 7652100.912 | AC67: 3839.81871 | AD67: 0.3458845597
A68: 10 | B68: 10 | C68: 11 | D68: 23 | E68: 901 | F68: 65 | G68: 41.95498156 | H68: 110 | I68: 133.5948018 | J68: 1261.549783 | K68: 42 | L68: 2760.752399 | M68: 353275 | N68: 282539.18 | O68: 2519575.711 | P68: 338674.8462 | Q68: 37283.6593 | R68: 3632778.396 | V68: 40 | W68: 101430 | X68: 0.4569586842 | Y68: 434.7282352 | Z68: 951.3512934 | AA68: 1315.865341 | AB68: 7949905.587 | AC68: 3818.545706 | AD68: 0.3445985572
A69: 10 | B69: 10 | C69: 11 | D69: 24 | E69: 943 | F69: 65 | G69: 41.95498156 | H69: 110 | I69: 133.5948018 | J69: 1303.549783 | K69: 42 | L69: 2870.752399 | M69: 353275 | N69: 282539.18 | O69: 2631799.711 | P69: 338674.8462 | Q69: 37283.6593 | R69: 3745002.396 | V69: 40 | W69: 101430 | X69: 0.4540794894 | Y69: 447.6330305 | Z69: 985.803237 | AA69: 1304.536887 | AB69: 8247459.935 | AC69: 3798.934976 | AD69: 0.343395424
A70: 10 | B70: 10 | C70: 11 | D70: 25 | E70: 985 | F70: 65 | G70: 41.95498156 | H70: 110 | I70: 133.5948018 | J70: 1345.549783 | K70: 42 | L70: 2980.752399 | M70: 353275 | N70: 282539.18 | O70: 2744023.711 | P70: 338674.8462 | Q70: 37283.6593 | R70: 3857226.396 | V70: 40 | W70: 101430 | X70: 0.451412799 | Y70: 460.5378259 | Z70: 1020.214373 | AA70: 1294.04455 | AB70: 8544787.398 | AC70: 3780.799896 | AD70: 0.3422673999
A71: 10 | B71: 10 | C71: 11 | D71: 26 | E71: 1027 | F71: 65 | G71: 41.95498156 | H71: 110 | I71: 133.5948018 | J71: 1387.549783 | K71: 42 | L71: 3090.752399 | M71: 353275 | N71: 282539.18 | O71: 2856247.711 | P71: 338674.8462 | Q71: 37283.6593 | R71: 3969450.396 | V71: 40 | W71: 101430 | X71: 0.4489359238 | Y71: 473.4426212 | Z71: 1054.588408 | AA71: 1284.299059 | AB71: 8841908.579 | AC71: 3763.980683 | AD71: 0.3412076647
A72: 10 | B72: 10 | C72: 12 | D72: 10 | E72: 375 | F72: 65 | G72: 41.95498156 | H72: 120 | I72: 146.6488747 | J72: 758.6038563 | K72: 44 | L72: 1451.729889 | M72: 353275 | N72: 308224.56 | O72: 1114103.711 | P72: 371768.0958 | Q72: 38904.6879 | R72: 2287706.055 | V72: 40 | W72: 101430 | X72: 0.522551655 | Y72: 278.9388328 | Z72: 533.8014533 | AA72: 1575.848284 | AB72: 4377951.984 | AC72: 4285.687198 | AD72: 0.3677002569
A73: 10 | B73: 10 | C73: 12 | D73: 11 | E73: 419 | F73: 65 | G73: 41.95498156 | H73: 120 | I73: 146.6488747 | J73: 802.6038563 | K73: 44 | L73: 1571.729889 | M73: 353275 | N73: 308224.56 | O73: 1231671.711 | P73: 371768.0958 | Q73: 38904.6879 | R73: 2405274.055 | V73: 40 | W73: 101430 | X73: 0.5106499925 | Y73: 292.4581422 | Z73: 572.7174121 | AA73: 1530.335505 | AB73: 4710220.483 | AC73: 4199.757164 | AD73: 0.3643866646
A74: 10 | B74: 10 | C74: 12 | D74: 12 | E74: 463 | F74: 65 | G74: 41.95498156 | H74: 120 | I74: 146.6488747 | J74: 846.6038563 | K74: 44 | L74: 1691.729889 | M74: 353275 | N74: 308224.56 | O74: 1349239.711 | P74: 371768.0958 | Q74: 38904.6879 | R74: 2522842.055 | V74: 40 | W74: 101430 | X74: 0.5004367787 | Y74: 305.9774516 | Z74: 611.420792 | AA74: 1491.279471 | AB74: 5041280.261 | AC74: 4126.196046 | AD74: 0.3614175028
A75: 10 | B75: 10 | C75: 12 | D75: 13 | E75: 507 | F75: 65 | G75: 41.95498156 | H75: 120 | I75: 146.6488747 | J75: 890.6038563 | K75: 44 | L75: 1811.729889 | M75: 353275 | N75: 308224.56 | O75: 1466807.711 | P75: 371768.0958 | Q75: 38904.6879 | R75: 2640410.055 | V75: 40 | W75: 101430 | X75: 0.4915765101 | Y75: 319.496761 | Z75: 649.9431002 | AA75: 1457.397193 | AB75: 5371310.468 | AC75: 4062.52494 | AD75: 0.358741722
A76: 10 | B76: 10 | C76: 12 | D76: 14 | E76: 551 | F76: 65 | G76: 41.95498156 | H76: 120 | I76: 146.6488747 | J76: 934.6038563 | K76: 44 | L76: 1931.729889 | M76: 353275 | N76: 308224.56 | O76: 1584375.711 | P76: 371768.0958 | Q76: 38904.6879 | R76: 2757978.055 | V76: 40 | W76: 101430 | X76: 0.4838170499 | Y76: 333.0160704 | Z76: 688.3099106 | AA76: 1427.724481 | AB76: 5700456.516 | AC76: 4006.884126 | AD76: 0.3563178861
A77: 10 | B77: 10 | C77: 12 | D77: 15 | E77: 595 | F77: 65 | G77: 41.95498156 | H77: 120 | I77: 146.6488747 | J77: 978.6038563 | K77: 44 | L77: 2051.729889 | M77: 353275 | N77: 308224.56 | O77: 1701943.711 | P77: 371768.0958 | Q77: 38904.6879 | R77: 2875546.055 | V77: 40 | W77: 101430 | X77: 0.4769652484 | Y77: 346.5353798 | Z77: 726.5421977 | AA77: 1401.52272 | AB77: 6028837.665 | AC77: 3957.8514 | AD77: 0.3541120112
A78: 10 | B78: 10 | C78: 12 | D78: 16 | E78: 639 | F78: 65 | G78: 41.95498156 | H78: 120 | I78: 146.6488747 | J78: 1022.603856 | K78: 44 | L78: 2171.729889 | M78: 353275 | N78: 308224.56 | O78: 1819511.711 | P78: 371768.0958 | Q78: 38904.6879 | R78: 2993114.055 | V78: 40 | W78: 101430 | X78: 0.4708706462 | Y78: 360.0546891 | Z78: 764.6573259 | AA78: 1378.21654 | AB78: 6356552.652 | AC78: 3914.320772 | AD78: 0.3520959626
A79: 10 | B79: 10 | C79: 12 | D79: 17 | E79: 683 | F79: 65 | G79: 41.95498156 | H79: 120 | I79: 146.6488747 | J79: 1066.603856 | K79: 44 | L79: 2291.729889 | M79: 353275 | N79: 308224.56 | O79: 1937079.711 | P79: 371768.0958 | Q79: 38904.6879 | R79: 3110682.055 | V79: 40 | W79: 101430 | X79: 0.4654142974 | Y79: 373.5739985 | Z79: 802.6697947 | AA79: 1357.351086 | AB79: 6683683.917 | AC79: 3875.419351 | AD79: 0.3502462478
A80: 10 | B80: 10 | C80: 12 | D80: 18 | E80: 727 | F80: 65 | G80: 41.95498156 | H80: 120 | I80: 146.6488747 | J80: 1110.603856 | K80: 44 | L80: 2411.729889 | M80: 353275 | N80: 308224.56 | O80: 2054647.711 | P80: 371768.0958 | Q80: 38904.6879 | R80: 3228250.055 | V80: 40 | W80: 101430 | X80: 0.4605009297 | Y80: 387.0933079 | Z80: 840.5918054 | AA80: 1338.562029 | AB80: 7010300.84 | AC80: 3840.449114 | AD80: 0.3485430973
A81: 10 | B81: 10 | C81: 12 | D81: 19 | E81: 771 | F81: 65 | G81: 41.95498156 | H81: 120 | I81: 146.6488747 | J81: 1154.603856 | K81: 44 | L81: 2531.729889 | M81: 353275 | N81: 308224.56 | O81: 2172215.711 | P81: 371768.0958 | Q81: 38904.6879 | R81: 3345818.055 | V81: 40 | W81: 101430 | X81: 0.4560533338 | Y81: 400.6126173 | Z81: 878.4336998 | AA81: 1321.554115 | AB81: 7336462.222 | AC81: 3808.845284 | AD81: 0.3469697551
A82: 10 | B82: 10 | C82: 12 | D82: 20 | E82: 815 | F82: 65 | G82: 41.95498156 | H82: 120 | I82: 146.6488747 | J82: 1198.603856 | K82: 44 | L82: 2651.729889 | M82: 353275 | N82: 308224.56 | O82: 2289783.711 | P82: 371768.0958 | Q82: 38904.6879 | R82: 3463386.055 | V82: 40 | W82: 101430 | X82: 0.4520082762 | Y82: 414.1319267 | Z82: 916.2043008 | AA82: 1306.085536 | AB82: 7662218.231 | AC82: 3780.146034 | AD82: 0.3455119258
A83: 10 | B83: 10 | C83: 12 | D83: 21 | E83: 859 | F83: 65 | G83: 41.95498156 | H83: 120 | I83: 146.6488747 | J83: 1242.603856 | K83: 44 | L83: 2771.729889 | M83: 353275 | N83: 308224.56 | O83: 2407351.711 | P83: 371768.0958 | Q83: 38904.6879 | R83: 3580954.055 | V83: 40 | W83: 101430 | X83: 0.4483134742 | Y83: 427.6512361 | Z83: 953.9111819 | AA83: 1291.956358 | AB83: 7987611.929 | AC83: 3753.970099 | AD83: 0.3441573386
A84: 10 | B84: 10 | C84: 12 | D84: 22 | E84: 903 | F84: 65 | G84: 41.95498156 | H84: 120 | I84: 146.6488747 | J84: 1286.603856 | K84: 44 | L84: 2891.729889 | M84: 353275 | N84: 308224.56 | O84: 2524919.711 | P84: 371768.0958 | Q84: 38904.6879 | R84: 3698522.055 | V84: 40 | W84: 101430 | X84: 0.4449253234 | Y84: 441.1705455 | Z84: 991.5608805 | AA84: 1278.999836 | AB84: 8312680.488 | AC84: 3729.99997 | AD84: 0.3428954012
A85: 10 | B85: 10 | C85: 12 | D85: 23 | E85: 947 | F85: 65 | G85: 41.95498156 | H85: 120 | I85: 146.6488747 | J85: 1330.603856 | K85: 44 | L85: 3011.729889 | M85: 353275 | N85: 308224.56 | O85: 2642487.711 | P85: 371768.0958 | Q85: 38904.6879 | R85: 3816090.055 | V85: 40 | W85: 101430 | X85: 0.441807169 | Y85: 454.6898548 | Z85: 1029.159069 | AA85: 1267.075799 | AB85: 8637456.162 | AC85: 3707.969126 | AD85: 0.3417169225
A86: 10 | B86: 10 | C86: 12 | D86: 24 | E86: 991 | F86: 65 | G86: 41.95498156 | H86: 120 | I86: 146.6488747 | J86: 1374.603856 | K86: 44 | L86: 3131.729889 | M86: 353275 | N86: 308224.56 | O86: 2760055.711 | P86: 371768.0958 | Q86: 38904.6879 | R86: 3933658.055 | V86: 40 | W86: 101430 | X86: 0.4389279743 | Y86: 468.2091642 | Z86: 1066.710694 | AA86: 1256.065559 | AB86: 8961967.077 | AC86: 3687.652215 | AD86: 0.3406138882
A87: 10 | B87: 10 | C87: 12 | D87: 25 | E87: 1035 | F87: 65 | G87: 41.95498156 | H87: 120 | I87: 146.6488747 | J87: 1418.603856 | K87: 44 | L87: 3251.729889 | M87: 353275 | N87: 308224.56 | O87: 2877623.711 | P87: 371768.0958 | Q87: 38904.6879 | R87: 4051226.055 | V87: 40 | W87: 101430 | X87: 0.4362612839 | Y87: 481.7284736 | Z87: 1104.220089 | AA87: 1245.867951 | AB87: 9286237.868 | AC87: 3668.857409 | AD87: 0.3395792782
A88: 10 | B88: 10 | C88: 12 | D88: 26 | E88: 1079 | F88: 65 | G88: 41.95498156 | H88: 120 | I88: 146.6488747 | J88: 1462.603856 | K88: 44 | L88: 3371.729889 | M88: 353275 | N88: 308224.56 | O88: 2995191.711 | P88: 371768.0958 | Q88: 38904.6879 | R88: 4168794.055 | V88: 40 | W88: 101430 | X88: 0.4337844087 | Y88: 495.247783 | Z88: 1141.691064 | AA88: 1236.396209 | AB88: 9610290.207 | AC88: 3651.420412 | AD88: 0.3386069173
A89: 10 | B89: 10 | C89: 13 | D89: 10 | E89: 395 | F89: 65 | G89: 41.95498156 | H89: 130 | I89: 159.7029476 | J89: 801.6579292 | K89: 46 | L89: 1572.70738 | M89: 353275 | N89: 333909.94 | O89: 1167543.711 | P89: 404861.3455 | Q89: 40525.7166 | R89: 2401545.713 | V89: 40 | W89: 101430 | X89: 0.5097311422 | Y89: 290.9117696 | Z89: 570.7161003 | AA89: 1527.013698 | AB89: 4711396.88 | AC89: 4207.951575 | AD89: 0.3628876595
A90: 10 | B90: 10 | C90: 13 | D90: 11 | E90: 441 | F90: 65 | G90: 41.95498156 | H90: 130 | I90: 159.7029476 | J90: 847.6579292 | K90: 46 | L90: 1702.70738 | M90: 353275 | N90: 333909.94 | O90: 1290455.711 | P90: 404861.3455 | Q90: 40525.7166 | R90: 2524457.713 | V90: 40 | W90: 101430 | X90: 0.4978294797 | Y90: 305.0455931 | Z90: 612.7511638 | AA90: 1482.613949 | AB90: 5070928.532 | AC90: 4119.874203 | AD90: 0.3598687426
A91: 10 | B91: 10 | C91: 13 | D91: 12 | E91: 487 | F91: 65 | G91: 41.95498156 | H91: 130 | I91: 159.7029476 | J91: 893.6579292 | K91: 46 | L91: 1832.70738 | M91: 353275 | N91: 333909.94 | O91: 1413367.711 | P91: 404861.3455 | Q91: 40525.7166 | R91: 2647369.713 | V91: 40 | W91: 101430 | X91: 0.4876162659 | Y91: 319.1794165 | Z91: 654.570897 | AA91: 1444.513042 | AB91: 5429207.141 | AC91: 4044.435408 | AD91: 0.3571606161
A92: 10 | B92: 10 | C92: 13 | D92: 13 | E92: 533 | F92: 65 | G92: 41.95498156 | H92: 130 | I92: 159.7029476 | J92: 939.6579292 | K92: 46 | L92: 1962.70738 | M92: 353275 | N92: 333909.94 | O92: 1536279.711 | P92: 404861.3455 | Q92: 40525.7166 | R92: 2770281.713 | V92: 40 | W92: 101430 | X92: 0.4787559973 | Y92: 333.31324 | Z92: 696.2069235 | AA92: 1411.459365 | AB92: 5786416.731 | AC92: 3979.106813 | AD92: 0.3547176367
A93: 10 | B93: 10 | C93: 13 | D93: 14 | E93: 579 | F93: 65 | G93: 41.95498156 | H93: 130 | I93: 159.7029476 | J93: 985.6579292 | K93: 46 | L93: 2092.70738 | M93: 353275 | N93: 333909.94 | O93: 1659191.711 | P93: 404861.3455 | Q93: 40525.7166 | R93: 2893193.713 | V93: 40 | W93: 101430 | X93: 0.4709965371 | Y93: 347.4470634 | Z93: 737.6849638 | AA93: 1382.512309 | AB93: 6142706.973 | AC93: 3921.990897 | AD93: 0.3525026819
A94: 10 | B94: 10 | C94: 13 | D94: 15 | E94: 625 | F94: 65 | G94: 41.95498156 | H94: 130 | I94: 159.7029476 | J94: 1031.657929 | K94: 46 | L94: 2222.70738 | M94: 353275 | N94: 333909.94 | O94: 1782103.711 | P94: 404861.3455 | Q94: 40525.7166 | R94: 3016105.713 | V94: 40 | W94: 101430 | X94: 0.4641447356 | Y94: 361.5808869 | Z94: 779.0261511 | AA94: 1356.95132 | AB94: 6498200.845 | AC94: 3871.636027 | AD94: 0.3504852497
A95: 10 | B95: 10 | C95: 13 | D95: 16 | E95: 671 | F95: 65 | G95: 41.95498156 | H95: 130 | I95: 159.7029476 | J95: 1077.657929 | K95: 46 | L95: 2352.70738 | M95: 353275 | N95: 333909.94 | O95: 1905015.711 | P95: 404861.3455 | Q95: 40525.7166 | R95: 3139017.713 | V95: 40 | W95: 101430 | X95: 0.4580501333 | Y95: 375.7147103 | Z95: 820.2480099 | AA95: 1334.2151 | AB95: 6853000.325 | AC95: 3826.912927 | AD95: 0.3486400463
A96: 10 | B96: 10 | C96: 13 | D96: 17 | E96: 717 | F96: 65 | G96: 41.95498156 | H96: 130 | I96: 159.7029476 | J96: 1123.657929 | K96: 46 | L96: 2482.70738 | M96: 353275 | N96: 333909.94 | O96: 2027927.711 | P96: 404861.3455 | Q96: 40525.7166 | R96: 3261929.713 | V96: 40 | W96: 101430 | X96: 0.4525937846 | Y96: 389.8485338 | Z96: 861.3651956 | AA96: 1313.859917 | AB96: 7207190.695 | AC96: 3786.930015 | AD96: 0.3469459198
A97: 10 | B97: 10 | C97: 13 | D97: 18 | E97: 763 | F97: 65 | G97: 41.95498156 | H97: 130 | I97: 159.7029476 | J97: 1169.657929 | K97: 46 | L97: 2612.70738 | M97: 353275 | N97: 333909.94 | O97: 2150839.711 | P97: 404861.3455 | Q97: 40525.7166 | R97: 3384841.713 | V97: 40 | W97: 101430 | X97: 0.4476804169 | Y97: 403.9823572 | Z97: 902.3900577 | AA97: 1295.530352 | AB97: 7560843.819 | AC97: 3750.974076 | AD97: 0.3453850456
A98: 10 | B98: 10 | C98: 13 | D98: 19 | E98: 809 | F98: 65 | G98: 41.95498156 | H98: 130 | I98: 159.7029476 | J98: 1215.657929 | K98: 46 | L98: 2742.70738 | M98: 353275 | N98: 333909.94 | O98: 2273751.711 | P98: 404861.3455 | Q98: 40525.7166 | R98: 3507753.713 | V98: 40 | W98: 101430 | X98: 0.443232821 | Y98: 418.1161807 | Z98: 943.3330766 | AA98: 1278.938372 | AB98: 7914020.684 | AC98: 3718.467845 | AD98: 0.3439422971
A99: 10 | B99: 10 | C99: 13 | D99: 20 | E99: 855 | F99: 65 | G99: 41.95498156 | H99: 130 | I99: 159.7029476 | J99: 1261.657929 | K99: 46 | L99: 2872.70738 | M99: 353275 | N99: 333909.94 | O99: 2396663.711 | P99: 404861.3455 | Q99: 40525.7166 | R99: 3630665.713 | V99: 40 | W99: 101430 | X99: 0.4391877634 | Y99: 432.2500041 | Z99: 984.2032045 | AA99: 1263.848082 | AB99: 8266773.383 | AC99: 3688.93913 | AD99: 0.3426047537
A100: 10 | B100: 10 | C100: 13 | D100: 21 | E100: 901 | F100: 65 | G100: 41.95498156 | H100: 130 | I100: 159.7029476 | J100: 1307.657929 | K100: 46 | L100: 3002.70738 | M100: 353275 | N100: 333909.94 | O100: 2519575.711 | P100: 404861.3455 | Q100: 40525.7166 | R100: 3753577.713 | V100: 40 | W100: 101430 | X100: 0.4354929614 | Y100: 446.3838276 | Z100: 1025.008134 | AA100: 1250.064438 | AB100: 8619146.681 | AC100: 3661.997978 | AD100: 0.3413613129
A101: 10 | B101: 10 | C101: 13 | D101: 22 | E101: 947 | F101: 65 | G101: 41.95498156 | H101: 130 | I101: 159.7029476 | J101: 1353.657929 | K101: 46 | L101: 3132.70738 | M101: 353275 | N101: 333909.94 | O101: 2642487.711 | P101: 404861.3455 | Q101: 40525.7166 | R101: 3876489.713 | V101: 40 | W101: 101430 | X101: 0.4321048106 | Y101: 460.517651 | Z101: 1065.754511 | AA101: 1237.424771 | AB101: 8971179.255 | AC101: 3637.319546 | AD101: 0.3402023813
A102: 10 | B102: 10 | C102: 13 | D102: 23 | E102: 993 | F102: 65 | G102: 41.95498156 | H102: 130 | I102: 159.7029476 | J102: 1399.657929 | K102: 46 | L102: 3262.70738 | M102: 353275 | N102: 333909.94 | O102: 2765399.711 | P102: 404861.3455 | Q102: 40525.7166 | R102: 3999401.713 | V102: 40 | W102: 101430 | X102: 0.4289866562 | Y102: 474.6514745 | Z102: 1106.448109 | AA102: 1225.79234 | AB102: 9322904.699 | AC102: 3614.631071 | AD102: 0.3391196267
A103: 10 | B103: 10 | C103: 13 | D103: 24 | E103: 1039 | F103: 65 | G103: 41.95498156 | H103: 130 | I103: 159.7029476 | J103: 1445.657929 | K103: 46 | L103: 3392.70738 | M103: 353275 | N103: 333909.94 | O103: 2888311.711 | P103: 404861.3455 | Q103: 40525.7166 | R103: 4122313.713 | V103: 40 | W103: 101430 | X103: 0.4261074614 | Y103: 488.7852979 | Z103: 1147.093966 | AA103: 1215.051359 | AB103: 9674352.331 | AC103: 3593.701854 | AD103: 0.3381057773
A104: 10 | B104: 10 | C104: 13 | D104: 25 | E104: 1085 | F104: 65 | G104: 41.95498156 | H104: 130 | I104: 159.7029476 | J104: 1491.657929 | K104: 46 | L104: 3522.70738 | M104: 353275 | N104: 333909.94 | O104: 3011223.711 | P104: 404861.3455 | Q104: 40525.7166 | R104: 4245225.713 | V104: 40 | W104: 101430 | X104: 0.423440771 | Y104: 502.9191213 | Z104: 1187.696499 | AA104: 1205.103137 | AB104: 10025547.85 | AC104: 3574.33546 | AD104: 0.3371544585
A105: 10 | B105: 10 | C105: 13 | D105: 26 | E105: 1131 | F105: 65 | G105: 41.95498156 | H105: 130 | I105: 159.7029476 | J105: 1537.657929 | K105: 46 | L105: 3652.70738 | M105: 353275 | N105: 333909.94 | O105: 3134135.711 | P105: 404861.3455 | Q105: 40525.7166 | R105: 4368137.713 | V105: 40 | W105: 101430 | X105: 0.4209638959 | Y105: 517.0529448 | Z105: 1228.259596 | AA105: 1195.863029 | AB105: 10376513.89 | AC105: 3556.363594 | AD105: 0.3362600582
A106: 10 | B106: 10 | C106: 14 | D106: 10 | E106: 415 | F106: 65 | G106: 41.95498156 | H106: 140 | I106: 172.7570205 | J106: 844.7120021 | K106: 48 | L106: 1693.684871 | M106: 353275 | N106: 359595.32 | O106: 1220983.711 | P106: 437954.5951 | Q106: 42146.7453 | R106: 2515385.371 | V106: 40 | W106: 101430 | X106: 0.4987421312 | Y106: 302.8847064 | Z106: 607.2972133 | AA106: 1485.155482 | AB106: 5043458.761 | AC106: 4141.934651 | AD106: 0.3585656481
A107: 10 | B107: 10 | C107: 14 | D107: 11 | E107: 463 | F107: 65 | G107: 41.95498156 | H107: 140 | I107: 172.7570205 | J107: 892.7120021 | K107: 48 | L107: 1833.684871 | M107: 353275 | N107: 359595.32 | O107: 1349239.711 | P107: 437954.5951 | Q107: 42146.7453 | R107: 2643641.371 | V107: 40 | W107: 101430 | X107: 0.4868404687 | Y107: 317.633044 | Z107: 652.4376348 | AA107: 1441.709758 | AB107: 5430200.529 | AC107: 4051.944937 | AD107: 0.3558068484
A108: 10 | B108: 10 | C108: 14 | D108: 12 | E108: 511 | F108: 65 | G108: 41.95498156 | H108: 140 | I108: 172.7570205 | J108: 940.7120021 | K108: 48 | L108: 1973.684871 | M108: 353275 | N108: 359595.32 | O108: 1477495.711 | P108: 437954.5951 | Q108: 42146.7453 | R108: 2771897.371 | V108: 40 | W108: 101430 | X108: 0.4766272549 | Y108: 332.3813815 | Z108: 697.3612567 | AA108: 1404.427531 | AB108: 5815650.16 | AC108: 3974.837065 | AD108: 0.3533295852
A109: 10 | B109: 10 | C109: 14 | D109: 13 | E109: 559 | F109: 65 | G109: 41.95498156 | H109: 140 | I109: 172.7570205 | J109: 988.7120021 | K109: 48 | L109: 2113.684871 | M109: 353275 | N109: 359595.32 | O109: 1605751.711 | P109: 437954.5951 | Q109: 42146.7453 | R109: 2900153.371 | V109: 40 | W109: 101430 | X109: 0.4677669863 | Y109: 347.129719 | Z109: 742.0996546 | AA109: 1372.084085 | AB109: 6199995.844 | AC109: 3908.037624 | AD109: 0.3510928544
A110: 10 | B110: 10 | C110: 14 | D110: 14 | E110: 607 | F110: 65 | G110: 41.95498156 | H110: 140 | I110: 172.7570205 | J110: 1036.712002 | K110: 48 | L110: 2253.684871 | M110: 353275 | N110: 359595.32 | O110: 1734007.711 | P110: 437954.5951 | Q110: 42146.7453 | R110: 3028409.371 | V110: 40 | W110: 101430 | X110: 0.4600075261 | Y110: 361.8780565 | Z110: 786.6785562 | AA110: 1343.759019 | AB110: 6583390.921 | AC110: 3849.614747 | AD110: 0.3490632459
A111: 10 | B111: 10 | C111: 14 | D111: 15 | E111: 655 | F111: 65 | G111: 41.95498156 | H111: 140 | I111: 172.7570205 | J111: 1084.712002 | K111: 48 | L111: 2393.684871 | M111: 353275 | N111: 359595.32 | O111: 1862263.711 | P111: 437954.5951 | Q111: 42146.7453 | R111: 3156665.371 | V111: 40 | W111: 101430 | X111: 0.4531557246 | Y111: 376.626394 | Z111: 831.1191354 | AA111: 1318.747263 | AB111: 6965961.589 | AC111: 3798.090113 | AD111: 0.3472132633
A112: 10 | B112: 10 | C112: 14 | D112: 16 | E112: 703 | F112: 65 | G112: 41.95498156 | H112: 140 | I112: 172.7570205 | J112: 1132.712002 | K112: 48 | L112: 2533.684871 | M112: 353275 | N112: 359595.32 | O112: 1990519.711 | P112: 437954.5951 | Q112: 42146.7453 | R112: 3284921.371 | V112: 40 | W112: 101430 | X112: 0.4470611223 | Y112: 391.3747315 | Z112: 875.4389768 | AA112: 1296.49958 | AB112: 7347812.652 | AC112: 3752.313363 | AD112: 0.3455200711
A113: 10 | B113: 10 | C113: 14 | D113: 17 | E113: 751 | F113: 65 | G113: 41.95498156 | H113: 140 | I113: 172.7570205 | J113: 1180.712002 | K113: 48 | L113: 2673.684871 | M113: 353275 | N113: 359595.32 | O113: 2118775.711 | P113: 437954.5951 | Q113: 42146.7453 | R113: 3413177.371 | V113: 40 | W113: 101430 | X113: 0.4416047736 | Y113: 406.123069 | Z113: 919.6528056 | AA113: 1276.581772 | AB113: 7729031.875 | AC113: 3711.376022 | AD113: 0.3439645471
A114: 10 | B114: 10 | C114: 14 | D114: 18 | E114: 799 | F114: 65 | G114: 41.95498156 | H114: 140 | I114: 172.7570205 | J114: 1228.712002 | K114: 48 | L114: 2813.684871 | M114: 353275 | N114: 359595.32 | O114: 2247031.711 | P114: 437954.5951 | Q114: 42146.7453 | R114: 3541433.371 | V114: 40 | W114: 101430 | X114: 0.4366914059 | Y114: 420.8714065 | Z114: 963.7730462 | AA114: 1258.646058 | AB114: 8109693.306 | AC114: 3674.551166 | AD114: 0.3425305571
A115: 10 | B115: 10 | C115: 14 | D115: 19 | E115: 847 | F115: 65 | G115: 41.95498156 | H115: 140 | I115: 172.7570205 | J115: 1276.712002 | K115: 48 | L115: 2953.684871 | M115: 353275 | N115: 359595.32 | O115: 2375287.711 | P115: 437954.5951 | Q115: 42146.7453 | R115: 3669689.371 | V115: 40 | W115: 101430 | X115: 0.43224381 | Y115: 435.619744 | Z115: 1007.810254 | AA115: 1242.410593 | AB115: 8489859.858 | AC115: 3641.250281 | AD115: 0.3412043933
A116: 10 | B116: 10 | C116: 14 | D116: 20 | E116: 895 | F116: 65 | G116: 41.95498156 | H116: 140 | I116: 172.7570205 | J116: 1324.712002 | K116: 48 | L116: 3093.684871 | M116: 353275 | N116: 359595.32 | O116: 2503543.711 | P116: 437954.5951 | Q116: 42146.7453 | R116: 3797945.371 | V116: 40 | W116: 101430 | X116: 0.4281987524 | Y116: 450.3680815 | Z116: 1051.773456 | AA116: 1227.64455 | AB116: 8869585.326 | AC116: 3610.991845 | AD116: 0.3399743347
A117: 10 | B117: 10 | C117: 14 | D117: 21 | E117: 943 | F117: 65 | G117: 41.95498156 | H117: 140 | I117: 172.7570205 | J117: 1372.712002 | K117: 48 | L117: 3233.684871 | M117: 353275 | N117: 359595.32 | O117: 2631799.711 | P117: 437954.5951 | Q117: 42146.7453 | R117: 3926201.371 | V117: 40 | W117: 101430 | X117: 0.4245039504 | Y117: 465.1164191 | Z117: 1095.670414 | AA117: 1214.157077 | AB117: 9248915.981 | AC117: 3583.378105 | AD117: 0.3388302997
A118: 10 | B118: 10 | C118: 14 | D118: 22 | E118: 991 | F118: 65 | G118: 41.95498156 | H118: 140 | I118: 172.7570205 | J118: 1420.712002 | K118: 48 | L118: 3373.684871 | M118: 353275 | N118: 359595.32 | O118: 2760055.711 | P118: 437954.5951 | Q118: 42146.7453 | R118: 4054457.371 | V118: 40 | W118: 101430 | X118: 0.4211157996 | Y118: 479.8647566 | Z118: 1139.507843 | AA118: 1201.789001 | AB118: 9627891.841 | AC118: 3558.077634 | AD118: 0.3377635692
A119: 10 | B119: 10 | C119: 14 | D119: 23 | E119: 1039 | F119: 65 | G119: 41.95498156 | H119: 140 | I119: 172.7570205 | J119: 1468.712002 | K119: 48 | L119: 3513.684871 | M119: 353275 | N119: 359595.32 | O119: 2888311.711 | P119: 437954.5951 | Q119: 42146.7453 | R119: 4182713.371 | V119: 40 | W119: 101430 | X119: 0.4179976452 | Y119: 494.6130941 | Z119: 1183.29158 | AA119: 1190.406518 | AB119: 10006547.69 | AC119: 3534.81208 | AD119: 0.3367665637
A120: 10 | B120: 10 | C120: 14 | D120: 24 | E120: 1087 | F120: 65 | G120: 41.95498156 | H120: 140 | I120: 172.7570205 | J120: 1516.712002 | K120: 48 | L120: 3653.684871 | M120: 353275 | N120: 359595.32 | O120: 3016567.711 | P120: 437954.5951 | Q120: 42146.7453 | R120: 4310969.371 | V120: 40 | W120: 101430 | X120: 0.4151184505 | Y120: 509.3614316 | Z120: 1227.026722 | AA120: 1179.89633 | AB120: 10384913.91 | AC120: 3513.345955 | AD120: 0.3358326636
A121: 10 | B121: 10 | C121: 14 | D121: 25 | E121: 1135 | F121: 65 | G121: 41.95498156 | H121: 140 | I121: 172.7570205 | J121: 1564.712002 | K121: 48 | L121: 3793.684871 | M121: 353275 | N121: 359595.32 | O121: 3144823.711 | P121: 437954.5951 | Q121: 42146.7453 | R121: 4439225.371 | V121: 40 | W121: 101430 | X121: 0.41245176 | Y121: 524.1097691 | Z121: 1270.717742 | AA121: 1170.161867 | AB121: 10763017.16 | AC121: 3493.478705 | AD121: 0.3349560612
A122: 10 | B122: 10 | C122: 14 | D122: 26 | E122: 1183 | F122: 65 | G122: 41.95498156 | H122: 140 | I122: 172.7570205 | J122: 1612.712002 | K122: 48 | L122: 3933.684871 | M122: 353275 | N122: 359595.32 | O122: 3273079.711 | P122: 437954.5951 | Q122: 42146.7453 | R122: 4567481.371 | V122: 40 | W122: 101430 | X122: 0.4099748849 | Y122: 538.8581066 | Z122: 1314.368578 | AA122: 1161.120303 | AB122: 11140880.92 | AC122: 3475.038468 | AD122: 0.3341316403
A123: 10 | B123: 10 | C123: 15 | D123: 10 | E123: 435 | F123: 65 | G123: 41.95498156 | H123: 150 | I123: 185.8110934 | J123: 887.766075 | K123: 50 | L123: 1814.662362 | M123: 353275 | N123: 385280.7 | O123: 1274423.711 | P123: 471047.8448 | Q123: 43767.7739 | R123: 2629225.029 | V123: 40 | W123: 101430 | X123: 0.4892183217 | Y123: 314.8576432 | Z123: 643.5933188 | AA123: 1448.878362 | AB123: 5374338.844 | AC123: 4085.227352 | AD123: 0.3546628466
A124: 10 | B124: 10 | C124: 15 | D124: 11 | E124: 485 | F124: 65 | G124: 41.95498156 | H124: 150 | I124: 185.8110934 | J124: 937.766075 | K124: 50 | L124: 1964.662362 | M124: 353275 | N124: 385280.7 | O124: 1408023.711 | P124: 471047.8448 | Q124: 43767.7739 | R124: 2762825.029 | V124: 40 | W124: 101430 | X124: 0.4773166592 | Y124: 330.2204948 | Z124: 691.8268794 | AA124: 1406.259459 | AB124: 5788243.457 | AC124: 3993.520795 | AD124: 0.3521352538
A125: 10 | B125: 10 | C125: 15 | D125: 12 | E125: 535 | F125: 65 | G125: 41.95498156 | H125: 150 | I125: 185.8110934 | J125: 987.766075 | K125: 50 | L125: 2114.662362 | M125: 353275 | N125: 385280.7 | O125: 1541623.711 | P125: 471047.8448 | Q125: 43767.7739 | R125: 2896425.029 | V125: 40 | W125: 101430 | X125: 0.4671034454 | Y125: 345.5833464 | Z125: 739.8432827 | AA125: 1369.686756 | AB125: 6200821.377 | AC125: 3914.916979 | AD125: 0.3498635508
A126: 10 | B126: 10 | C126: 15 | D126: 13 | E126: 585 | F126: 65 | G126: 41.95498156 | H126: 150 | I126: 185.8110934 | J126: 1037.766075 | K126: 50 | L126: 2264.662362 | M126: 353275 | N126: 385280.7 | O126: 1675223.711 | P126: 471047.8448 | Q126: 43767.7739 | R126: 3030025.029 | V126: 40 | W126: 101430 | X126: 0.4582431768 | Y126: 360.946198 | Z126: 787.6739169 | AA126: 1337.958841 | AB126: 6612264.367 | AC126: 3846.801277 | AD126: 0.3478107511
A127: 10 | B127: 10 | C127: 15 | D127: 14 | E127: 635 | F127: 65 | G127: 41.95498156 | H127: 150 | I127: 185.8110934 | J127: 1087.766075 | K127: 50 | L127: 2414.662362 | M127: 353275 | N127: 385280.7 | O127: 1808823.711 | P127: 471047.8448 | Q127: 43767.7739 | R127: 3163625.029 | V127: 40 | W127: 101430 | X127: 0.4504837166 | Y127: 376.3090495 | Z127: 835.3443991 | AA127: 1310.172834 | AB127: 7022728.931 | AC127: 3787.21044 | AD127: 0.3459466683
A128: 10 | B128: 10 | C128: 15 | D128: 15 | E128: 685 | F128: 65 | G128: 41.95498156 | H128: 150 | I128: 185.8110934 | J128: 1137.766075 | K128: 50 | L128: 2564.662362 | M128: 353275 | N128: 385280.7 | O128: 1942423.711 | P128: 471047.8448 | Q128: 43767.7739 | R128: 3297225.029 | V128: 40 | W128: 101430 | X128: 0.443631915 | Y128: 391.6719011 | Z128: 882.8758433 | AA128: 1285.63708 | AB128: 7432344.062 | AC128: 3734.641801 | AD128: 0.3442464226
A129: 10 | B129: 10 | C129: 15 | D129: 16 | E129: 735 | F129: 65 | G129: 41.95498156 | H129: 150 | I129: 185.8110934 | J129: 1187.766075 | K129: 50 | L129: 2714.662362 | M129: 353275 | N129: 385280.7 | O129: 2076023.711 | P129: 471047.8448 | Q129: 43767.7739 | R129: 3430825.029 | V129: 40 | W129: 101430 | X129: 0.4375373128 | Y129: 407.0347527 | Z129: 930.2858082 | AA129: 1263.812796 | AB129: 7841217.032 | AC129: 3687.925796 | AD129: 0.3426893235
A130: 10 | B130: 10 | C130: 15 | D130: 17 | E130: 785 | F130: 65 | G130: 41.95498156 | H130: 150 | I130: 185.8110934 | J130: 1237.766075 | K130: 50 | L130: 2864.662362 | M130: 353275 | N130: 385280.7 | O130: 2209623.711 | P130: 471047.8448 | Q130: 43767.7739 | R130: 3564425.029 | V130: 40 | W130: 101430 | X130: 0.4320809641 | Y130: 422.3976043 | Z130: 977.5890154 | AA130: 1244.274047 | AB130: 8249437.781 | AC130: 3646.138585 | AD130: 0.3412580235
A131: 10 | B131: 10 | C131: 15 | D131: 18 | E131: 835 | F131: 65 | G131: 41.95498156 | H131: 150 | I131: 185.8110934 | J131: 1287.766075 | K131: 50 | L131: 3014.662362 | M131: 353275 | N131: 385280.7 | O131: 2343223.711 | P131: 471047.8448 | Q131: 43767.7739 | R131: 3698025.029 | V131: 40 | W131: 101430 | X131: 0.4271675964 | Y131: 437.7604558 | Z131: 1024.7979 | AA131: 1226.679669 | AB131: 8657082.28 | AC131: 3608.540795 | AD131: 0.3399378694
A132: 10 | B132: 10 | C132: 15 | D132: 19 | E132: 885 | F132: 65 | G132: 41.95498156 | H132: 150 | I132: 185.8110934 | J132: 1337.766075 | K132: 50 | L132: 3164.662362 | M132: 353275 | N132: 385280.7 | O132: 2476823.711 | P132: 471047.8448 | Q132: 43767.7739 | R132: 3831625.029 | V132: 40 | W132: 101430 | X132: 0.4227200005 | Y132: 453.1233074 | Z132: 1071.923039 | AA132: 1210.753184 | AB132: 9064215.143 | AC132: 3574.533704 | AD132: 0.3387163988
A133: 10 | B133: 10 | C133: 15 | D133: 20 | E133: 935 | F133: 65 | G133: 41.95498156 | H133: 150 | I133: 185.8110934 | J133: 1387.766075 | K133: 50 | L133: 3314.662362 | M133: 353275 | N133: 385280.7 | O133: 2610423.711 | P133: 471047.8448 | Q133: 43767.7739 | R133: 3965225.029 | V133: 40 | W133: 101430 | X133: 0.4186749429 | Y133: 468.486159 | Z133: 1118.973483 | AA133: 1196.268155 | AB133: 9470891.671 | AC133: 3543.627343 | AD133: 0.3375829453
A134: 10 | B134: 10 | C134: 15 | D134: 21 | E134: 985 | F134: 65 | G134: 41.95498156 | H134: 150 | I134: 185.8110934 | J134: 1437.766075 | K134: 50 | L134: 3464.662362 | M134: 353275 | N134: 385280.7 | O134: 2744023.711 | P134: 471047.8448 | Q134: 43767.7739 | R134: 4098825.029 | V134: 40 | W134: 101430 | X134: 0.4149801409 | Y134: 483.8490105 | Z134: 1165.957025 | AA134: 1183.037365 | AB134: 9877159.473 | AC134: 3515.416899 | AD134: 0.3365283261
A135: 10 | B135: 10 | C135: 15 | D135: 22 | E135: 1035 | F135: 65 | G135: 41.95498156 | H135: 150 | I135: 185.8110934 | J135: 1487.766075 | K135: 50 | L135: 3614.662362 | M135: 353275 | N135: 385280.7 | O135: 2877623.711 | P135: 471047.8448 | Q135: 43767.7739 | R135: 4232425.029 | V135: 40 | W135: 101430 | X135: 0.4115919901 | Y135: 499.2118621 | Z135: 1212.880411 | AA135: 1170.904667 | AB135: 10283059.76 | AC135: 3489.564998 | AD135: 0.335544593
A136: 10 | B136: 10 | C136: 15 | D136: 23 | E136: 1085 | F136: 65 | G136: 41.95498156 | H136: 150 | I136: 185.8110934 | J136: 1537.766075 | K136: 50 | L136: 3764.662362 | M136: 353275 | N136: 385280.7 | O136: 3011223.711 | P136: 471047.8448 | Q136: 43767.7739 | R136: 4366025.029 | V136: 40 | W136: 101430 | X136: 0.4084738357 | Y136: 514.5747137 | Z136: 1259.749508 | AA136: 1159.738805 | AB136: 10688628.37 | AC136: 3465.788238 | AD136: 0.3346248315
A137: 10 | B137: 10 | C137: 15 | D137: 24 | E137: 1135 | F137: 65 | G137: 41.95498156 | H137: 150 | I137: 185.8110934 | J137: 1587.766075 | K137: 50 | L137: 3914.662362 | M137: 353275 | N137: 385280.7 | O137: 3144823.711 | P137: 471047.8448 | Q137: 43767.7739 | R137: 4499625.029 | V137: 40 | W137: 101430 | X137: 0.4055946409 | Y137: 529.9375653 | Z137: 1306.569446 | AA137: 1149.428639 | AB137: 11093896.65 | AC137: 3443.846818 | AD137: 0.333762998
A138: 10 | B138: 10 | C138: 15 | D138: 25 | E138: 1185 | F138: 65 | G138: 41.95498156 | H138: 150 | I138: 185.8110934 | J138: 1637.766075 | K138: 50 | L138: 4064.662362 | M138: 353275 | N138: 385280.7 | O138: 3278423.711 | P138: 471047.8448 | Q138: 43767.7739 | R138: 4633225.029 | V138: 40 | W138: 101430 | X138: 0.4029279505 | Y138: 545.3004168 | Z138: 1353.344726 | AA138: 1139.879433 | AB138: 11498892.11 | AC138: 3423.536472 | AD138: 0.332953787
A139: 10 | B139: 10 | C139: 15 | D139: 26 | E139: 1235 | F139: 65 | G139: 41.95498156 | H139: 150 | I139: 185.8110934 | J139: 1687.766075 | K139: 50 | L139: 4214.662362 | M139: 353275 | N139: 385280.7 | O139: 3412023.711 | P139: 471047.8448 | Q139: 43767.7739 | R139: 4766825.029 | V139: 40 | W139: 101430 | X139: 0.4004510753 | Y139: 560.6632684 | Z139: 1400.079318 | AA139: 1131.009941 | AB139: 11903638.98 | AC139: 3404.682127 | AD139: 0.3321925217
A140: 10 | B140: 10 | C140: 16 | D140: 10 | E140: 455 | F140: 65 | G140: 41.95498156 | H140: 160 | I140: 198.8651663 | J140: 930.8201479 | K140: 52 | L140: 1935.639852 | M140: 353275 | N140: 410966.08 | O140: 1327863.711 | P140: 504141.0944 | Q140: 45388.8026 | R140: 2743064.688 | V140: 40 | W140: 101430 | X140: 0.4808849883 | Y140: 326.83058 | Z140: 679.6439647 | AA140: 1417.135881 | AB140: 5704201.117 | AC140: 4036.031849 | AD140: 0.3511210848
A141: 10 | B141: 10 | C141: 16 | D141: 11 | E141: 507 | F141: 65 | G141: 41.95498156 | H141: 160 | I141: 198.8651663 | J141: 982.8201479 | K141: 52 | L141: 2095.639852 | M141: 353275 | N141: 410966.08 | O141: 1466807.711 | P141: 504141.0944 | Q141: 45388.8026 | R141: 2882008.688 | V141: 40 | W141: 101430 | X141: 0.4689833259 | Y141: 342.8079457 | Z141: 730.9597735 | AA141: 1375.240447 | AB141: 6145226.341 | AC141: 3942.773313 | AD141: 0.348800283
A142: 10 | B142: 10 | C142: 16 | D142: 12 | E142: 559 | F142: 65 | G142: 41.95498156 | H142: 160 | I142: 198.8651663 | J142: 1034.820148 | K142: 52 | L142: 2255.639852 | M142: 353275 | N142: 410966.08 | O142: 1605751.711 | P142: 504141.0944 | Q142: 45388.8026 | R142: 3020952.688 | V142: 40 | W142: 101430 | X142: 0.458770112 | Y142: 358.7853113 | Z142: 782.0590354 | AA142: 1339.288577 | AB142: 6584894.282 | AC142: 3862.819238 | AD142: 0.346712723
A143: 10 | B143: 10 | C143: 16 | D143: 13 | E143: 611 | F143: 65 | G143: 41.95498156 | H143: 160 | I143: 198.8651663 | J143: 1086.820148 | K143: 52 | L143: 2415.639852 | M143: 353275 | N143: 410966.08 | O143: 1744695.711 | P143: 504141.0944 | Q143: 45388.8026 | R143: 3159896.688 | V143: 40 | W143: 101430 | X143: 0.4499098434 | Y143: 374.762677 | Z143: 832.9728331 | AA143: 1308.099253 | AB143: 7023399.763 | AC143: 3793.517102 | AD143: 0.3448249259
A144: 10 | B144: 10 | C144: 16 | D144: 14 | E144: 663 | F144: 65 | G144: 41.95498156 | H144: 160 | I144: 198.8651663 | J144: 1138.820148 | K144: 52 | L144: 2575.639852 | M144: 353275 | N144: 410966.08 | O144: 1883639.711 | P144: 504141.0944 | Q144: 45388.8026 | R144: 3298840.688 | V144: 40 | W144: 101430 | X144: 0.4421503832 | Y144: 390.7400426 | Z144: 883.7265722 | AA144: 1280.784922 | AB144: 7460902.021 | AC144: 3732.874841 | AD144: 0.3431095273
A145: 10 | B145: 10 | C145: 16 | D145: 15 | E145: 715 | F145: 65 | G145: 41.95498156 | H145: 160 | I145: 198.8651663 | J145: 1190.820148 | K145: 52 | L145: 2735.639852 | M145: 353275 | N145: 410966.08 | O145: 2022583.711 | P145: 504141.0944 | Q145: 45388.8026 | R145: 3437784.688 | V145: 40 | W145: 101430 | X145: 0.4352985817 | Y145: 406.7174082 | Z145: 934.3412207 | AA145: 1256.66567 | AB145: 7897532.48 | AC145: 3679.367464 | AD145: 0.3415439426
A146: 10 | B146: 10 | C146: 16 | D146: 16 | E146: 767 | F146: 65 | G146: 41.95498156 | H146: 160 | I146: 198.8651663 | J146: 1242.820148 | K146: 52 | L146: 2895.639852 | M146: 353275 | N146: 410966.08 | O146: 2161527.711 | P146: 504141.0944 | Q146: 45388.8026 | R146: 3576728.688 | V146: 40 | W146: 101430 | X146: 0.4292039795 | Y146: 422.6947739 | Z146: 984.8342375 | AA146: 1235.21186 | AB146: 8333400.571 | AC146: 3631.807823 | AD146: 0.3401093671
A147: 10 | B147: 10 | C147: 16 | D147: 17 | E147: 819 | F147: 65 | G147: 41.95498156 | H147: 160 | I147: 198.8651663 | J147: 1294.820148 | K147: 52 | L147: 3055.639852 | M147: 353275 | N147: 410966.08 | O147: 2300471.711 | P147: 504141.0944 | Q147: 45388.8026 | R147: 3715672.688 | V147: 40 | W147: 101430 | X147: 0.4237476307 | Y147: 438.6721395 | Z147: 1035.220277 | AA147: 1216.004787 | AB147: 8768598.143 | AC147: 3589.258027 | AD147: 0.3387900167
A148: 10 | B148: 10 | C148: 16 | D148: 18 | E148: 871 | F148: 65 | G148: 41.95498156 | H148: 160 | I148: 198.8651663 | J148: 1346.820148 | K148: 52 | L148: 3215.639852 | M148: 353275 | N148: 410966.08 | O148: 2439415.711 | P148: 504141.0944 | Q148: 45388.8026 | R148: 3854616.688 | V148: 40 | W148: 101430 | X148: 0.4188342631 | Y148: 454.6495051 | Z148: 1085.511729 | AA148: 1198.70908 | AB148: 9203202.86 | AC148: 3550.967331 | AD148: 0.3375725451
A149: 10 | B149: 10 | C149: 16 | D149: 19 | E149: 923 | F149: 65 | G149: 41.95498156 | H149: 160 | I149: 198.8651663 | J149: 1398.820148 | K149: 52 | L149: 3375.639852 | M149: 353275 | N149: 410966.08 | O149: 2578359.711 | P149: 504141.0944 | Q149: 45388.8026 | R149: 3993560.688 | V149: 40 | W149: 101430 | X149: 0.4143866671 | Y149: 470.6268708 | Z149: 1135.719144 | AA149: 1183.052951 | AB149: 9637280.841 | AC149: 3516.327703 | AD149: 0.3364455906
A150: 10 | B150: 10 | C150: 16 | D150: 20 | E150: 975 | F150: 65 | G150: 41.95498156 | H150: 160 | I150: 198.8651663 | J150: 1450.820148 | K150: 52 | L150: 3535.639852 | M150: 353275 | N150: 410966.08 | O150: 2717303.711 | P150: 504141.0944 | Q150: 45388.8026 | R150: 4132504.688 | V150: 40 | W150: 101430 | X150: 0.4103416095 | Y150: 486.6042364 | Z150: 1185.851557 | AA150: 1168.81381 | AB150: 10070888.72 | AC150: 3484.841475 | AD150: 0.3353994202
A151: 10 | B151: 10 | C151: 16 | D151: 21 | E151: 1027 | F151: 65 | G151: 41.95498156 | H151: 160 | I151: 198.8651663 | J151: 1502.820148 | K151: 52 | L151: 3695.639852 | M151: 353275 | N151: 410966.08 | O151: 2856247.711 | P151: 504141.0944 | Q151: 45388.8026 | R151: 4271448.688 | V151: 40 | W151: 101430 | X151: 0.4066468075 | Y151: 502.581602 | Z151: 1235.916753 | AA151: 1155.807616 | AB151: 10504075.3 | AC151: 3456.097409 | AD151: 0.3344256482
A152: 10 | B152: 10 | C152: 16 | D152: 22 | E152: 1079 | F152: 65 | G152: 41.95498156 | H152: 160 | I152: 198.8651663 | J152: 1554.820148 | K152: 52 | L152: 3855.639852 | M152: 353275 | N152: 410966.08 | O152: 2995191.711 | P152: 504141.0944 | Q152: 45388.8026 | R152: 4410392.688 | V152: 40 | W152: 101430 | X152: 0.4032586568 | Y152: 518.5589677 | Z152: 1285.921477 | AA152: 1143.880875 | AB152: 10936882.85 | AC152: 3429.752722 | AD152: 0.3335170106
A153: 10 | B153: 10 | C153: 16 | D153: 23 | E153: 1131 | F153: 65 | G153: 41.95498156 | H153: 160 | I153: 198.8651663 | J153: 1606.820148 | K153: 52 | L153: 4015.639852 | M153: 353275 | N153: 410966.08 | O153: 3134135.711 | P153: 504141.0944 | Q153: 45388.8026 | R153: 4549336.688 | V153: 40 | W153: 101430 | X153: 0.4001405024 | Y153: 534.5363333 | Z153: 1335.871601 | AA153: 1132.904557 | AB153: 11369348.17 | AC153: 3405.519427 | AD153: 0.3326671837
A154: 10 | B154: 10 | C154: 16 | D154: 24 | E154: 1183 | F154: 65 | G154: 41.95498156 | H154: 160 | I154: 198.8651663 | J154: 1658.820148 | K154: 52 | L154: 4175.639852 | M154: 353275 | N154: 410966.08 | O154: 3273079.711 | P154: 504141.0944 | Q154: 45388.8026 | R154: 4688280.688 | V154: 40 | W154: 101430 | X154: 0.3972613076 | Y154: 550.5136989 | Z154: 1385.772257 | AA154: 1122.769409 | AB154: 11801503.44 | AC154: 3383.153807 | AD154: 0.3318706369
A155: 10 | B155: 10 | C155: 16 | D155: 25 | E155: 1235 | F155: 65 | G155: 41.95498156 | H155: 160 | I155: 198.8651663 | J155: 1710.820148 | K155: 52 | L155: 4335.639852 | M155: 353275 | N155: 410966.08 | O155: 3412023.711 | P155: 504141.0944 | Q155: 45388.8026 | R155: 4827224.688 | V155: 40 | W155: 101430 | X155: 0.3945946172 | Y155: 566.4910646 | Z155: 1435.627958 | AA155: 1113.382304 | AB155: 12233376.93 | AC155: 3362.448231 | AD155: 0.3311225118
A156: 10 | B156: 10 | C156: 16 | D156: 26 | E156: 1287 | F156: 65 | G156: 41.95498156 | H156: 160 | I156: 198.8651663 | J156: 1762.820148 | K156: 52 | L156: 4495.639852 | M156: 353275 | N156: 410966.08 | O156: 3550967.711 | P156: 504141.0944 | Q156: 45388.8026 | R156: 4966168.688 | V156: 40 | W156: 101430 | X156: 0.392117742 | Y156: 582.4684302 | Z156: 1485.442682 | AA156: 1104.663374 | AB156: 12664993.59 | AC156: 3343.224716 | AD156: 0.3304185234
A157: 10 | B157: 10 | C157: 17 | D157: 10 | E157: 475 | F157: 65 | G157: 41.95498156 | H157: 170 | I157: 211.9192392 | J157: 973.8742207 | K157: 54 | L157: 2056.617343 | M157: 353275 | N157: 436651.46 | O157: 1381303.711 | P157: 537234.3441 | Q157: 47009.8312 | R157: 2856904.346 | V157: 40 | W157: 101430 | X157: 0.4735320471 | Y157: 338.8035168 | Z157: 715.4817058 | AA157: 1389.12781 | AB157: 6033180.57 | AC157: 3992.980286 | AD157: 0.347892479
A158: 10 | B158: 10 | C158: 17 | D158: 11 | E158: 529 | F158: 65 | G158: 41.95498156 | H158: 170 | I158: 211.9192392 | J158: 1027.874221 | K158: 54 | L158: 2226.617343 | M158: 353275 | N158: 436651.46 | O158: 1525591.711 | P158: 537234.3441 | Q158: 47009.8312 | R158: 3001192.346 | V158: 40 | W158: 101430 | X158: 0.4616303847 | Y158: 355.3953965 | Z158: 769.8700266 | AA158: 1347.870731 | AB158: 6501288.575 | AC158: 3898.310419 | AD158: 0.3457576709
A159: 10 | B159: 10 | C159: 17 | D159: 12 | E159: 583 | F159: 65 | G159: 41.95498156 | H159: 170 | I159: 211.9192392 | J159: 1081.874221 | K159: 54 | L159: 2396.617343 | M159: 353275 | N159: 436651.46 | O159: 1669879.711 | P159: 537234.3441 | Q159: 47009.8312 | R159: 3145480.346 | V159: 40 | W159: 101430 | X159: 0.4514171709 | Y159: 371.9872762 | Z159: 824.0432581 | AA159: 1312.466654 | AB159: 6968012.183 | AC159: 3817.130127 | AD159: 0.3438359738
A160: 10 | B160: 10 | C160: 17 | D160: 13 | E160: 637 | F160: 65 | G160: 41.95498156 | H160: 170 | I160: 211.9192392 | J160: 1135.874221 | K160: 54 | L160: 2566.617343 | M160: 353275 | N160: 436651.46 | O160: 1814167.711 | P160: 537234.3441 | Q160: 47009.8312 | R160: 3289768.346 | V160: 40 | W160: 101430 | X160: 0.4425569023 | Y160: 388.5791559 | Z160: 878.0320767 | AA160: 1281.752558 | AB160: 7433548.837 | AC160: 3746.751894 | AD160: 0.3420969935
A161: 10 | B161: 10 | C161: 17 | D161: 14 | E161: 691 | F161: 65 | G161: 41.95498156 | H161: 170 | I161: 211.9192392 | J161: 1189.874221 | K161: 54 | L161: 2736.617343 | M161: 353275 | N161: 436651.46 | O161: 1958455.711 | P161: 537234.3441 | Q161: 47009.8312 | R161: 3434056.346 | V161: 40 | W161: 101430 | X161: 0.4347974421 | Y161: 405.1710356 | Z161: 931.8615899 | AA161: 1254.854412 | AB161: 7898060.14 | AC161: 3685.157091 | AD161: 0.3405158533
A162: 10 | B162: 10 | C162: 17 | D162: 15 | E162: 745 | F162: 65 | G162: 41.95498156 | H162: 170 | I162: 211.9192392 | J162: 1243.874221 | K162: 54 | L162: 2906.617343 | M162: 353275 | N162: 436651.46 | O162: 2102743.711 | P162: 537234.3441 | Q162: 47009.8312 | R162: 3578344.346 | V162: 40 | W162: 101430 | X162: 0.4279456405 | Y162: 421.7629153 | Z162: 985.5525454 | AA162: 1231.102661 | AB162: 8361679.632 | AC162: 3630.800166 | AD162: 0.3390719964
A163: 10 | B163: 10 | C163: 17 | D163: 16 | E163: 799 | F163: 65 | G163: 41.95498156 | H163: 170 | I163: 211.9192392 | J163: 1297.874221 | K163: 54 | L163: 3076.617343 | M163: 353275 | N163: 436651.46 | O163: 2247031.711 | P163: 537234.3441 | Q163: 47009.8312 | R163: 3722632.346 | V163: 40 | W163: 101430 | X163: 0.4218510383 | Y163: 438.354795 | Z163: 1039.122238 | AA163: 1209.97574 | AB163: 8824518.628 | AC163: 3582.477797 | AD163: 0.3377482872
A164: 10 | B164: 10 | C164: 17 | D164: 17 | E164: 853 | F164: 65 | G164: 41.95498156 | H164: 170 | I164: 211.9192392 | J164: 1351.874221 | K164: 54 | L164: 3246.617343 | M164: 353275 | N164: 436651.46 | O164: 2391319.711 | P164: 537234.3441 | Q164: 47009.8312 | R164: 3866920.346 | V164: 40 | W164: 101430 | X164: 0.4163946896 | Y164: 454.9466747 | Z164: 1092.585199 | AA164: 1191.061322 | AB164: 9286670.659 | AC164: 3539.239182 | AD164: 0.3365303279
A165: 10 | B165: 10 | C165: 17 | D165: 18 | E165: 907 | F165: 65 | G165: 41.95498156 | H165: 170 | I165: 211.9192392 | J165: 1405.874221 | K165: 54 | L165: 3416.617343 | M165: 353275 | N165: 436651.46 | O165: 2535607.711 | P165: 537234.3441 | Q165: 47009.8312 | R165: 4011208.346 | V165: 40 | W165: 101430 | X165: 0.4114813219 | Y165: 471.5385544 | Z165: 1145.953727 | AA165: 1174.029147 | AB165: 9748214.883 | AC165: 3500.323138 | AD165: 0.3354059328
A166: 10 | B166: 10 | C166: 17 | D166: 19 | E166: 961 | F166: 65 | G166: 41.95498156 | H166: 170 | I166: 211.9192392 | J166: 1459.874221 | K166: 54 | L166: 3586.617343 | M166: 353275 | N166: 436651.46 | O166: 2679895.711 | P166: 537234.3441 | Q166: 47009.8312 | R166: 4155496.346 | V166: 40 | W166: 101430 | X166: 0.4070337259 | Y166: 488.1304341 | Z166: 1199.238301 | AA166: 1158.611569 | AB166: 10209218.75 | AC166: 3465.113098 | AD166: 0.3343647194
A167: 10 | B167: 10 | C167: 17 | D167: 20 | E167: 1015 | F167: 65 | G167: 41.95498156 | H167: 170 | I167: 211.9192392 | J167: 1513.874221 | K167: 54 | L167: 3756.617343 | M167: 353275 | N167: 436651.46 | O167: 2824183.711 | P167: 537234.3441 | Q167: 47009.8312 | R167: 4299784.346 | V167: 40 | W167: 101430 | X167: 0.4029886684 | Y167: 504.7223138 | Z167: 1252.447906 | AA167: 1144.589388 | AB167: 10669740.08 | AC167: 3433.104344 | AD167: 0.3333977862
A168: 10 | B168: 10 | C168: 17 | D168: 21 | E168: 1069 | F168: 65 | G168: 41.95498156 | H168: 170 | I168: 211.9192392 | J168: 1567.874221 | K168: 54 | L168: 3926.617343 | M168: 353275 | N168: 436651.46 | O168: 2968471.711 | P168: 537234.3441 | Q168: 47009.8312 | R168: 4444072.346 | V168: 40 | W168: 101430 | X168: 0.3992938664 | Y168: 521.3141935 | Z168: 1305.590287 | AA168: 1131.781367 | AB168: 11129828.73 | AC168: 3403.879755 | AD168: 0.3324974584
A169: 10 | B169: 10 | C169: 17 | D169: 22 | E169: 1123 | F169: 65 | G169: 41.95498156 | H169: 170 | I169: 211.9192392 | J169: 1621.874221 | K169: 54 | L169: 4096.617343 | M169: 353275 | N169: 436651.46 | O169: 3112759.711 | P169: 537234.3441 | Q169: 47009.8312 | R169: 4588360.346 | V169: 40 | W169: 101430 | X169: 0.3959057156 | Y169: 537.9060732 | Z169: 1358.672159 | AA169: 1120.036352 | AB169: 11589527.92 | AC169: 3377.091609 | AD169: 0.3316570831
A170: 10 | B170: 10 | C170: 17 | D170: 23 | E170: 1177 | F170: 65 | G170: 41.95498156 | H170: 170 | I170: 211.9192392 | J170: 1675.874221 | K170: 54 | L170: 4266.617343 | M170: 353275 | N170: 436651.46 | O170: 3257047.711 | P170: 537234.3441 | Q170: 47009.8312 | R170: 4732648.346 | V170: 40 | W170: 101430 | X170: 0.3927875612 | Y170: 554.4979529 | Z170: 1411.699371 | AA170: 1109.227279 | AB170: 12048875.31 | AC170: 3352.447727 | AD170: 0.3308708649
A171: 10 | B171: 10 | C171: 17 | D171: 24 | E171: 1231 | F171: 65 | G171: 41.95498156 | H171: 170 | I171: 211.9192392 | J171: 1729.874221 | K171: 54 | L171: 4436.617343 | M171: 353275 | N171: 436651.46 | O171: 3401335.711 | P171: 537234.3441 | Q171: 47009.8312 | R171: 4876936.346 | V171: 40 | W171: 101430 | X171: 0.3899083664 | Y171: 571.0898326 | Z171: 1464.677042 | AA171: 1099.246559 | AB171: 12507903.82 | AC171: 3329.70082 | AD171: 0.3301337321
A172: 10 | B172: 10 | C172: 17 | D172: 25 | E172: 1285 | F172: 65 | G172: 41.95498156 | H172: 170 | I172: 211.9192392 | J172: 1783.874221 | K172: 54 | L172: 4606.617343 | M172: 353275 | N172: 436651.46 | O172: 3545623.711 | P172: 537234.3441 | Q172: 47009.8312 | R172: 5021224.346 | V172: 40 | W172: 101430 | X172: 0.387241676 | Y172: 587.6817123 | Z172: 1517.60967 | AA172: 1090.002484 | AB172: 12966642.43 | AC172: 3308.640188 | AD172: 0.3294412271
A173: 10 | B173: 10 | C173: 17 | D173: 26 | E173: 1339 | F173: 65 | G173: 41.95498156 | H173: 170 | I173: 211.9192392 | J173: 1837.874221 | K173: 54 | L173: 4776.617343 | M173: 353275 | N173: 436651.46 | O173: 3689911.711 | P173: 537234.3441 | Q173: 47009.8312 | R173: 5165512.346 | V173: 40 | W173: 101430 | X173: 0.3847648008 | Y173: 604.273592 | Z173: 1570.501228 | AA173: 1081.416403 | AB173: 13425116.68 | AC173: 3289.085201 | AD173: 0.3287894162
A174: 10 | B174: 10 | C174: 18 | D174: 10 | E174: 495 | F174: 65 | G174: 41.95498156 | H174: 180 | I174: 224.9733121 | J174: 1016.928294 | K174: 56 | L174: 2177.594834 | M174: 353275 | N174: 462336.84 | O174: 1434743.711 | P174: 570327.5937 | Q174: 48630.8599 | R174: 2970744.004 | V174: 40 | W174: 101430 | X174: 0.4669960994 | Y174: 350.7764536 | Z174: 751.1335835 | AA174: 1364.231747 | AB174: 6361389.331 | AC174: 3955.014221 | AD174: 0.3449372545
A175: 10 | B175: 10 | C175: 18 | D175: 11 | E175: 551 | F175: 65 | G175: 41.95498156 | H175: 180 | I175: 224.9733121 | J175: 1072.928294 | K175: 56 | L175: 2357.594834 | M175: 353275 | N175: 462336.84 | O175: 1584375.711 | P175: 570327.5937 | Q175: 48630.8599 | R175: 3120376.004 | V175: 40 | W175: 101430 | X175: 0.455094437 | Y175: 367.9828474 | Z175: 808.5856857 | AA175: 1323.542094 | AB175: 6856546.138 | AC175: 3859.054222 | AD175: 0.3429705877
A176: 10 | B176: 10 | C176: 18 | D176: 12 | E176: 607 | F176: 65 | G176: 41.95498156 | H176: 180 | I176: 224.9733121 | J176: 1128.928294 | K176: 56 | L176: 2537.594834 | M176: 353275 | N176: 462336.84 | O176: 1734007.711 | P176: 570327.5937 | Q176: 48630.8599 | R176: 3270008.004 | V176: 40 | W176: 101430 | X176: 0.4448812232 | Y176: 385.1892412 | Z176: 865.8249014 | AA176: 1288.624945 | AB176: 7350294.492 | AC176: 3776.754398 | AD176: 0.3411990322
A177: 10 | B177: 10 | C177: 18 | D177: 13 | E177: 663 | F177: 65 | G177: 41.95498156 | H177: 180 | I177: 224.9733121 | J177: 1184.928294 | K177: 56 | L177: 2717.594834 | M177: 353275 | N177: 462336.84 | O177: 1883639.711 | P177: 570327.5937 | Q177: 48630.8599 | R177: 3419640.004 | V177: 40 | W177: 101430 | X177: 0.4360209546 | Y177: 402.3956349 | Z177: 922.8814137 | AA177: 1258.333274 | AB177: 7842834.085 | AC177: 3705.394814 | AD177: 0.3395949249
A178: 10 | B178: 10 | C178: 18 | D178: 14 | E178: 719 | F178: 65 | G178: 41.95498156 | H178: 180 | I178: 224.9733121 | J178: 1240.928294 | K178: 56 | L178: 2897.594834 | M178: 353275 | N178: 462336.84 | O178: 2033271.711 | P178: 570327.5937 | Q178: 48630.8599 | R178: 3569272.004 | V178: 40 | W178: 101430 | X178: 0.4282614943 | Y178: 419.6020287 | Z178: 979.7799574 | AA178: 1231.805069 | AB178: 8334328.562 | AC178: 3642.93225 | AD178: 0.3381355964
A179: 10 | B179: 10 | C179: 18 | D179: 15 | E179: 775 | F179: 65 | G179: 41.95498156 | H179: 180 | I179: 224.9733121 | J179: 1296.928294 | K179: 56 | L179: 3077.594834 | M179: 353275 | N179: 462336.84 | O179: 2182903.711 | P179: 570327.5937 | Q179: 48630.8599 | R179: 3718904.004 | V179: 40 | W179: 101430 | X179: 0.4214096928 | Y179: 436.8084225 | Z179: 1036.540995 | AA179: 1208.379987 | AB179: 8824913.303 | AC179: 3587.802143 | AD179: 0.3368022925
A180: 10 | B180: 10 | C180: 18 | D180: 16 | E180: 831 | F180: 65 | G180: 41.95498156 | H180: 180 | I180: 224.9733121 | J180: 1352.928294 | K180: 56 | L180: 3257.594834 | M180: 353275 | N180: 462336.84 | O180: 2332535.711 | P180: 570327.5937 | Q180: 48630.8599 | R180: 3868536.004 | V180: 40 | W180: 101430 | X180: 0.4153150906 | Y180: 454.0148162 | Z180: 1093.181602 | AA180: 1187.543633 | AB180: 9314701.276 | AC180: 3538.786233 | AD180: 0.3355793639
A181: 10 | B181: 10 | C181: 18 | D181: 17 | E181: 887 | F181: 65 | G181: 41.95498156 | H181: 180 | I181: 224.9733121 | J181: 1408.928294 | K181: 56 | L181: 3437.594834 | M181: 353275 | N181: 462336.84 | O181: 2482167.711 | P181: 570327.5937 | Q181: 48630.8599 | R181: 4018168.004 | V181: 40 | W181: 101430 | X181: 0.4098587418 | Y181: 471.22121 | Z181: 1149.716138 | AA181: 1168.889354 | AB181: 9803787.486 | AC181: 3494.921807 | AD181: 0.3344536497
A182: 10 | B182: 10 | C182: 18 | D182: 18 | E182: 943 | F182: 65 | G182: 41.95498156 | H182: 180 | I182: 224.9733121 | J182: 1464.928294 | K182: 56 | L182: 3617.594834 | M182: 353275 | N182: 462336.84 | O182: 2631799.711 | P182: 570327.5937 | Q182: 48630.8599 | R182: 4167800.004 | V182: 40 | W182: 101430 | X182: 0.4049453742 | Y182: 488.4276037 | Z182: 1206.156768 | AA182: 1152.09143 | AB182: 10292252.41 | AC182: 3455.438061 | AD182: 0.3334140011
A183: 10 | B183: 10 | C183: 18 | D183: 19 | E183: 999 | F183: 65 | G183: 41.95498156 | H183: 180 | I183: 224.9733121 | J183: 1520.928294 | K183: 56 | L183: 3797.594834 | M183: 353275 | N183: 462336.84 | O183: 2781431.711 | P183: 570327.5937 | Q183: 48630.8599 | R183: 4317432.004 | V183: 40 | W183: 101430 | X183: 0.4004977782 | Y183: 505.6339975 | Z183: 1262.513864 | AA183: 1136.885896 | AB183: 10780164.68 | AC183: 3419.710569 | AD183: 0.3324509115
A184: 10 | B184: 10 | C184: 18 | D184: 20 | E184: 1055 | F184: 65 | G184: 41.95498156 | H184: 180 | I184: 224.9733121 | J184: 1576.928294 | K184: 56 | L184: 3977.594834 | M184: 353275 | N184: 462336.84 | O184: 2931063.711 | P184: 570327.5937 | Q184: 48630.8599 | R184: 4467064.004 | V184: 40 | W184: 101430 | X184: 0.3964527207 | Y184: 522.8403913 | Z184: 1318.796326 | AA184: 1123.056568 | AB184: 11267583.17 | AC184: 3387.228124 | AD184: 0.3315562244
A185: 10 | B185: 10 | C185: 18 | D185: 21 | E185: 1111 | F185: 65 | G185: 41.95498156 | H185: 180 | I185: 224.9733121 | J185: 1632.928294 | K185: 56 | L185: 4157.594834 | M185: 353275 | N185: 462336.84 | O185: 3080695.711 | P185: 570327.5937 | Q185: 48630.8599 | R185: 4616696.004 | V185: 40 | W185: 101430 | X185: 0.3927579187 | Y185: 540.046785 | Z185: 1375.011831 | AA185: 1110.424702 | AB185: 11754558.69 | AC185: 3357.568203 | AD185: 0.3307229026
A186: 10 | B186: 10 | C186: 18 | D186: 22 | E186: 1167 | F186: 65 | G186: 41.95498156 | H186: 180 | I186: 224.9733121 | J186: 1688.928294 | K186: 56 | L186: 4337.594834 | M186: 353275 | N186: 462336.84 | O186: 3230327.711 | P186: 570327.5937 | Q186: 48630.8599 | R186: 4766328.004 | V186: 40 | W186: 101430 | X186: 0.3893697679 | Y186: 557.2531788 | Z186: 1431.167042 | AA186: 1098.841221 | AB186: 12241135.28 | AC186: 3330.378541 | AD186: 0.3299448419
A187: 10 | B187: 10 | C187: 18 | D187: 23 | E187: 1223 | F187: 65 | G187: 41.95498156 | H187: 180 | I187: 224.9733121 | J187: 1744.928294 | K187: 56 | L187: 4517.594834 | M187: 353275 | N187: 462336.84 | O187: 3379959.711 | P187: 570327.5937 | Q187: 48630.8599 | R187: 4915960.004 | V187: 40 | W187: 101430 | X187: 0.3862516135 | Y187: 574.4595726 | Z187: 1487.267762 | AA187: 1088.18081 | AB187: 12727351.38 | AC187: 3305.363117 | AD187: 0.3292167218
A188: 10 | B188: 10 | C188: 18 | D188: 24 | E188: 1279 | F188: 65 | G188: 41.95498156 | H188: 180 | I188: 224.9733121 | J188: 1800.928294 | K188: 56 | L188: 4697.594834 | M188: 353275 | N188: 462336.84 | O188: 3529591.711 | P188: 570327.5937 | Q188: 48630.8599 | R188: 5065592.004 | V188: 40 | W188: 101430 | X188: 0.3833724187 | Y188: 591.6659663 | Z188: 1543.319074 | AA188: 1078.337358 | AB188: 13213240.59 | AC188: 3282.271365 | AD188: 0.3285338836
A189: 10 | B189: 10 | C189: 18 | D189: 25 | E189: 1335 | F189: 65 | G189: 41.95498156 | H189: 180 | I189: 224.9733121 | J189: 1856.928294 | K189: 56 | L189: 4877.594834 | M189: 353275 | N189: 462336.84 | O189: 3679223.711 | P189: 570327.5937 | Q189: 48630.8599 | R189: 5215224.004 | V189: 40 | W189: 101430 | X189: 0.3807057283 | Y189: 608.8723601 | Z189: 1599.32545 | AA189: 1069.220422 | AB189: 13698832.5 | AC189: 3260.889774 | AD189: 0.3278922305
A190: 10 | B190: 10 | C190: 18 | D190: 26 | E190: 1391 | F190: 65 | G190: 41.95498156 | H190: 180 | I190: 224.9733121 | J190: 1912.928294 | K190: 56 | L190: 5057.594834 | M190: 353275 | N190: 462336.84 | O190: 3828855.711 | P190: 570327.5937 | Q190: 48630.8599 | R190: 5364856.004 | V190: 40 | W190: 101430 | X190: 0.3782288531 | Y190: 626.0787538 | Z190: 1655.290834 | AA190: 1060.752429 | AB190: 14184153.22 | AC190: 3241.035287 | AD190: 0.3272881456
A191: 10 | B191: 10 | C191: 19 | D191: 10 | E191: 515 | F191: 65 | G191: 41.95498156 | H191: 190 | I191: 238.027385 | J191: 1059.982367 | K191: 58 | L191: 2298.572325 | M191: 353275 | N191: 488022.22 | O191: 1488183.711 | P191: 603420.8434 | Q191: 50251.8886 | R191: 3084583.663 | V191: 40 | W191: 101430 | X191: 0.4611481462 | Y191: 362.7493904 | Z191: 786.6222459 | AA191: 1341.956322 | AB191: 6688921.311 | AC191: 3921.302352 | AD191: 0.3422220991
A192: 10 | B192: 10 | C192: 19 | D192: 11 | E192: 573 | F192: 65 | G192: 41.95498156 | H192: 190 | I192: 238.027385 | J192: 1117.982367 | K192: 58 | L192: 2488.572325 | M192: 353275 | N192: 488022.22 | O192: 1643159.711 | P192: 603420.8434 | Q192: 50251.8886 | R192: 3239559.663 | V192: 40 | W192: 101430 | X192: 0.4492464838 | Y192: 380.5702983 | Z192: 847.1302771 | AA192: 1301.774367 | AB192: 7211096.313 | AC192: 3824.157571 | AD192: 0.3404081403
A193: 10 | B193: 10 | C193: 19 | D193: 12 | E193: 631 | F193: 65 | G193: 41.95498156 | H193: 190 | I193: 238.027385 | J193: 1175.982367 | K193: 58 | L193: 2678.572325 | M193: 353275 | N193: 488022.22 | O193: 1798135.711 | P193: 603420.8434 | Q193: 50251.8886 | R193: 3394535.663 | V193: 40 | W193: 101430 | X193: 0.4390332699 | Y193: 398.3912061 | Z193: 907.4282825 | AA193: 1267.29289 | AB193: 7731841.514 | AC193: 3740.830794 | AD193: 0.3387731121
A194: 10 | B194: 10 | C194: 19 | D194: 13 | E194: 689 | F194: 65 | G194: 41.95498156 | H194: 190 | I194: 238.027385 | J194: 1233.982367 | K194: 58 | L194: 2868.572325 | M194: 353275 | N194: 488022.22 | O194: 1953111.711 | P194: 603420.8434 | Q194: 50251.8886 | R194: 3549511.663 | V194: 40 | W194: 101430 | X194: 0.4301730013 | Y194: 416.2121139 | Z194: 967.5458772 | AA194: 1237.379177 | AB194: 8251358.527 | AC194: 3668.571947 | AD194: 0.3372917841
A195: 10 | B195: 10 | C195: 19 | D195: 14 | E195: 747 | F195: 65 | G195: 41.95498156 | H195: 190 | I195: 238.027385 | J195: 1291.982367 | K195: 58 | L195: 3058.572325 | M195: 353275 | N195: 488022.22 | O195: 2108087.711 | P195: 603420.8434 | Q195: 50251.8886 | R195: 3704487.663 | V195: 40 | W195: 101430 | X195: 0.4224135411 | Y195: 434.0330217 | Z195: 1027.507358 | AA195: 1211.181973 | AB195: 8769812.759 | AC195: 3605.314972 | AD195: 0.3359434563
A196: 10 | B196: 10 | C196: 19 | D196: 15 | E196: 805 | F196: 65 | G196: 41.95498156 | H196: 190 | I196: 238.027385 | J196: 1349.982367 | K196: 58 | L196: 3248.572325 | M196: 353275 | N196: 488022.22 | O196: 2263063.711 | P196: 603420.8434 | Q196: 50251.8886 | R196: 3859463.663 | V196: 40 | W196: 101430 | X196: 0.4155617396 | Y196: 451.8539296 | Z196: 1087.332847 | AA196: 1188.049173 | AB196: 9287341.193 | AC196: 3549.477671 | AD196: 0.3347109864
A197: 10 | B197: 10 | C197: 19 | D197: 16 | E197: 863 | F197: 65 | G197: 41.95498156 | H197: 190 | I197: 238.027385 | J197: 1407.982367 | K197: 58 | L197: 3438.572325 | M197: 353275 | N197: 488022.22 | O197: 2418039.711 | P197: 603420.8434 | Q197: 50251.8886 | R197: 4014439.663 | V197: 40 | W197: 101430 | X197: 0.4094671374 | Y197: 469.6748374 | Z197: 1147.03915 | AA197: 1167.472801 | AB197: 9804058.241 | AC197: 3499.827936 | AD197: 0.3335800565
A198: 10 | B198: 10 | C198: 19 | D198: 17 | E198: 921 | F198: 65 | G198: 41.95498156 | H198: 190 | I198: 238.027385 | J198: 1465.982367 | K198: 58 | L198: 3628.572325 | M198: 353275 | N198: 488022.22 | O198: 2573015.711 | P198: 603420.8434 | Q198: 50251.8886 | R198: 4169415.663 | V198: 40 | W198: 101430 | X198: 0.4040107886 | Y198: 487.4957452 | Z198: 1206.640414 | AA198: 1149.051277 | AB198: 10320060.21 | AC198: 3455.392024 | AD198: 0.3325386146
A199: 10 | B199: 10 | C199: 19 | D199: 18 | E199: 979 | F199: 65 | G199: 41.95498156 | H199: 190 | I199: 238.027385 | J199: 1523.982367 | K199: 58 | L199: 3818.572325 | M199: 353275 | N199: 488022.22 | O199: 2727991.711 | P199: 603420.8434 | Q199: 50251.8886 | R199: 4324391.663 | V199: 40 | W199: 101430 | X199: 0.3990974209 | Y199: 505.316653 | Z199: 1266.148631 | AA199: 1132.462946 | AB199: 10835428.73 | AC199: 3415.39023 | AD199: 0.3315764435
A200: 10 | B200: 10 | C200: 19 | D200: 19 | E200: 1037 | F200: 65 | G200: 41.95498156 | H200: 190 | I200: 238.027385 | J200: 1581.982367 | K200: 58 | L200: 4008.572325 | M200: 353275 | N200: 488022.22 | O200: 2882967.711 | P200: 603420.8434 | Q200: 50251.8886 | R200: 4479367.663 | V200: 40 | W200: 101430 | X200: 0.394649825 | Y200: 523.1375609 | Z200: 1325.574035 | AA200: 1117.447136 | AB200: 11350233.5 | AC200: 3379.19086 | AD200: 0.3306848243
... 3118 more rows

Sheet Graf simulace
A1: Grafy výsledné simulace
A58: Minimální cena objektu | J58: ='Výsledky simulace'!AF2 -> 1832347.421
A60: Maximální cena objektu | J60: ='Výsledky simulace'!AF3 -> 10005975.67
A62: Medián ceny objektu | J62: ='Výsledky simulace'!AG2 -> 4953807.327

Sheet Výstup pro tisk
A1: Obálka 2015
A2: =Úvod!B83 -> Rodiný dům
A4: Adresa objektu : | C4: =Úvod!B81 -> Krupská 308 Teplice
C5: =Úvod!B82 -> 417 12
A7: Objednatel : | C7: =Úvod!B72 -> Petr Macháček
A8: Tel: | C8: =Úvod!B74 -> 712542454
A9: Email: | C9: =Úvod!B73 -> machacek.petr@seznam.cz
A11: Projektant: | C11: =Úvod!B75 -> Ing. Jan Skála
A12: Tel: | C12: =Úvod!B77 -> 743200119
A13: Email: | C13: =Úvod!B76 -> skala.jan@archpra.com
A15: Dodavatel: | C15: =Úvod!B78 -> RYCHLOSTAV s.r.o.
A16: Tel: | C16: =Úvod!B80 -> 787492465
A17: Email: | C17: =Úvod!B79 -> help@rychlostav.cz
A19: Parametry objektu
A20: Okna
A21: Typ oken : | C21: =Úvod!A16 -> eurookno oknasirer.cz 2 sklo u=1
A22: Plocha oken (m2): | C22: =Úvod!Q23 -> 65
A23: Součinitel prostupu tepla oken W/(m2K): | C23: =Úvod!P35 -> 1
A25: Cena oken: | C25: =Úvod!V52 -> 353275
A27: Střešní okna
A28: Typ oken : | C28: =Úvod!A18 -> Velux GLU 00551 U=1,1
A29: Plocha oken (m2): | C29: =Úvod!E11 -> 10
A30: Součinitel prostupu tepla okenW/(m2K): | C30: =Úvod!P36 -> 1.1
A32: =A25 -> Cena oken: | C32: =Úvod!V57 -> 101430
A34: Podlaha
A35: Skladba podlahy: | C35: =Úvod!A23 -> Anhydritový potěr 50mm
C36: =Úvod!A24 -> Separační vrstva z asfaltového pásu
C37: =Úvod!A25 -> Polystyren EPS 100mm
C38: =Úvod!A26 -> Asfaltový pás
C39: =Úvod!A27 -> Asfaltový nátěr
C40: =Úvod!A28 -> ŽLB deska 160mm
A41: Plocha podlahy (m2): | C41: =Úvod!Q26 -> 112
A42: Součinitel prostupu tepla podlahy W/(m2K): | C42: =Úvod!P37 -> 0.3513782793
A44: Tloušťka podlahy (mm): | C44: =Úvod!E32 -> 314.7
A45: Cena podlahy: | C45: =Úvod!V53 -> 287676.256
A46: 1
A50: Stěna
A51: Skladba stěny: | C51: =Úvod!A37 -> Omítka vnější tenko. 2mm+ sklovlak.
C52: =Úvod!A38 -> ISOVER NF333 s kol.or.vlaken tl. 80mm
C53: =Úvod!A39 -> Porotherm P8/P10 36,5
C54: =Úvod!A40 -> Omítka vnitřní Cemix 032 10mm
C55: =Úvod!A41 -> Nic
C56: =Úvod!A42 -> Nic
A57: Plocha stěn (m2): | C57: =Úvod!Q22+Úvod!Q25 -> 809.2317639
A58: Součinitel prostupu tepla stěnou W/(m2K): | C58: =Úvod!P38 -> 0.2072570315
A60: Tloušťka stěny (mm): | C60: =Úvod!E46 -> 460
A61: Cena stěny: | C61: =Úvod!V54 -> 2162267.273
A63: Střecha nad vytápěným prostorem
A64: Skladba střechy: | C64: =Úvod!A51 -> Taška betonová Moravská plus 33,5x42
C65: =Úvod!A52 -> Laťování 30x50 150-360mm max60°
C66: =Úvod!A53 -> Folie podstřešní difuzní JUTAFOL D
C67: =Úvod!A54 -> Kontrolatě po 1m sklon do 60° 30x50
C68: =Úvod!A55 -> Parotěsná folie JUTAFOL N 140g SDK podhled
C69: =Úvod!A56 -> SDK podkroví +300 mm ISOVER ORSIK
A70: Plocha střechy (m2): | C70: =Úvod!Q27 -> 136.2056164
A71: Součinitel prostupu tepla střechou W/(m2K): | C71: =Úvod!P39 -> 0.1220628624
A73: Tloušťka střechy (mm): | C73: =Úvod!E60 -> 390.5
A74: Cena střechy: | C74: =Úvod!V55 -> 413941.1268
A76: Přesahy střechy
A77: Skladba přesahů: | C77: =Střecha!L3 -> Taška betonová Moravská plus 33,5x42
C78: =Střecha!L4 -> Laťování 30x50 150-360mm max60°
C79: =Střecha!L5 -> Folie podstřešní difuzní JUTAFOL D
C80: =Střecha!L6 -> 
C81: =Střecha!L7 -> 
C82: =Střecha!L8 -> SDK podkroví +300 mm ISOVER ORSIK
A83: Plocha přesahů (mm): | C83: =Úvod!K64 -> 62.65954989
A84: Cena přesahů: | C84: =Úvod!V56 -> 32742.1212
A88: 2
A93: Posouzení konstrukcí
A94: Konstrukce: | C94: Součinitel prostupu tepla W/(m2K): | E94: Posouzení konstrukce:
A96: Okno | C96: =Úvod!Q52 -> 1 | E96: =IF(Úvod!P35<=Úvod!R35,"Konstrukce splňuje požadovánou hodnotu součinitele prostupu tepla.","Konstrukce nesplňuje požadovanou hodnotu součinitele prostupu tepla.") -> Konstrukce splňuje požadovánou hodnotu součinitele prostupu tepla. | H96: =IF(Úvod!P35<=Úvod!T35,"Konstrukce splňuje doporučenou hodnotu součinitele prostupu tepla.","Konstrukce nesplňuje doporučenou hodnotu součinitele prostupu tepla.") -> Konstrukce splňuje doporučenou hodnotu součinitele prostupu tepla.
A97: Střešní okno | C97: =Úvod!Q57 -> 1.1 | E97: =IF(Úvod!P36<=Úvod!R36,"Konstrukce splňuje požadovánou hodnotu součinitele prostupu tepla.","Konstrukce nesplňuje požadovanou hodnotu součinitele prostupu tepla.") -> Konstrukce splňuje požadovánou hodnotu součinitele prostupu tepla. | H97: =IF(Úvod!P36<=Úvod!T36,"Konstrukce splňuje doporučenou hodnotu součinitele prostupu tepla.","Konstrukce nesplňuje doporučenou hodnotu součinitele prostupu tepla.") -> Konstrukce splňuje doporučenou hodnotu součinitele prostupu tepla.
A98: Podlaha | C98: =Úvod!Q53 -> 0.3513782793 | E98: =IF(Úvod!P37<=Úvod!R37,"Konstrukce splňuje požadovánou hodnotu součinitele prostupu tepla.","Konstrukce nesplňuje požadovanou hodnotu součinitele prostupu tepla.") -> Konstrukce splňuje požadovánou hodnotu součinitele prostupu tepla. | H98: =IF(Úvod!P37<=Úvod!T37,"Konstrukce splňuje doporučenou hodnotu součinitele prostupu tepla.","Konstrukce nesplňuje doporučenou hodnotu součinitele prostupu tepla.") -> Konstrukce nesplňuje doporučenou hodnotu součinitele prostupu tepla.
A99: Stěna | C99: =Úvod!Q54 -> 0.2072570315 | E99: =IF(Úvod!P38<=Úvod!R38,"Konstrukce splňuje požadovánou hodnotu součinitele prostupu tepla.","Konstrukce nesplňuje požadovanou hodnotu součinitele prostupu tepla.") -> Konstrukce splňuje požadovánou hodnotu součinitele prostupu tepla. | H99: =IF(Úvod!P38<=Úvod!T38,"Konstrukce splňuje doporučenou hodnotu součinitele prostupu tepla.","Konstrukce nesplňuje doporučenou hodnotu součinitele prostupu tepla.") -> Konstrukce splňuje doporučenou hodnotu součinitele prostupu tepla.
A100: Střecha | C100: =Úvod!Q55 -> 0.1220628624 | E100: =IF(Úvod!P39<=Úvod!R39,"Konstrukce splňuje požadovánou hodnotu součinitele prostupu tepla.","Konstrukce nesplňuje požadovanou hodnotu součinitele prostupu tepla.") -> Konstrukce splňuje požadovánou hodnotu součinitele prostupu tepla. | H100: =IF(Úvod!P39<=Úvod!T39,"Konstrukce splňuje doporučenou hodnotu součinitele prostupu tepla.","Konstrukce nesplňuje doporučenou hodnotu součinitele prostupu tepla.") -> Konstrukce splňuje doporučenou hodnotu součinitele prostupu tepla.
A101: Všechny konstrukce jako celek | C101: =Úvod!V48 -> 0.3439862006 | E101: =IF(Úvod!V48<=Úvod!V45,"Objekt splňuje požadavky na průměrný součinitel prostupu tepla.","Objekt nesplňuje požadavky na průměrný součinitel prostupu tepla.") -> Objekt splňuje požadavky na průměrný součinitel prostupu tepla.
A103: Rekapitulace:
D104: Cena bez DPH | F104: Sazba DPH | G104: DPH | I104: Cena s DPH
A105: =A25 -> Cena oken: | D105: =C25 -> 353275 | F105: =Úvod!B84 -> 0.21 | G105: =D105*F105 -> 74187.75 | I105: =G105+D105 -> 427462.75
A106: Cena střešních oken: | D106: =C32 -> 101430 | F106: =F105 -> 0.21 | G106: =D106*F106 -> 21300.3 | I106: =G106+D106 -> 122730.3
A107: Cena podlahy: | D107: =C45 -> 287676.256 | F107: =F106 -> 0.21 | G107: 60412.01376 | I107: 348088.2698
A108: Cena stěny: | D108: =C61 -> 2162267.273 | F108: 0.21 | G108: 454076.1273 | I108: 2616343.4
A109: Cena střechy nad vytápěným prostorem | D109: =C74 -> 413941.1268 | F109: 0.21 | G109: 86927.63662 | I109: 500868.7634
A110: Cena přesahů střechy | D110: =Úvod!V56 -> 32742.1212 | F110: 0.21 | G110: 6875.845452 | I110: 39617.96665
A111: Celkem: | D111: =SUM(D105:E110) -> 3351331.777 | F111: 0.21 | G111: =D111*F111 -> 703779.6732 | I111: 4055111.45
A118: 3
